Publisher Label,Publisher URI,Body Name,Service Area Categorisation,Service Division Categorisation,Expenses Type,Date,Transaction Number,Amount,Capital or Revenue,Supplier Name,Merchant Category
Peterborough,http://opendatacommunities.org/id/unitary-authority/peterborough,Peterborough City Council,Children's & Safeguarding,Access to Resources & Specialist Commissioning,Services,01/06/2016 00:00,30054087,3554.46,Revenue,Fostering Solutions,Boarding Out Allowances
Peterborough,http://opendatacommunities.org/id/unitary-authority/peterborough,Peterborough City Council,Children's & Safeguarding,Access to Resources & Specialist Commissioning,Services,01/06/2016 00:00,30058632,3520.71,Revenue,St Christopher's Fellowship,Boarding Out Allowances
Peterborough,http://opendatacommunities.org/id/unitary-authority/peterborough,Peterborough City Council,Children's & Safeguarding,Access to Resources & Specialist Commissioning,Services,01/06/2016 00:00,30059214,9214.35,Revenue,Cambian Childcare Ltd,Boarding Out Allowances
Peterborough,http://opendatacommunities.org/id/unitary-authority/peterborough,Peterborough City Council,Children's & Safeguarding,Access to Resources & Specialist Commissioning,Services,01/06/2016 00:00,30061356,4011.97,Revenue,Fostering Solutions,Boarding Out Allowances
Peterborough,http://opendatacommunities.org/id/unitary-authority/peterborough,Peterborough City Council,Children's & Safeguarding,Access to Resources & Specialist Commissioning,Services,01/06/2016 00:00,30061374,2860.77,Revenue,Fostering Solutions,Boarding Out Allowances
Peterborough,http://opendatacommunities.org/id/unitary-authority/peterborough,Peterborough City Council,Children's & Safeguarding,Access to Resources & Specialist Commissioning,Services,01/06/2016 00:00,30062381,15114.22,Revenue,Cambian Childcare Ltd,Boarding Out Allowances
Peterborough,http://opendatacommunities.org/id/unitary-authority/peterborough,Peterborough City Council,Children's & Safeguarding,Access to Resources & Specialist Commissioning,Services,01/06/2016 00:00,30063344,3432.7,Revenue,St Christopher's Fellowship,Boarding Out Allowances
Peterborough,http://opendatacommunities.org/id/unitary-authority/peterborough,Peterborough City Council,Children's & Safeguarding,Access to Resources & Specialist Commissioning,Services,01/06/2016 00:00,30063437,3267.81,Revenue,Fostering Solutions,Boarding Out Allowances
Peterborough,http://opendatacommunities.org/id/unitary-authority/peterborough,Peterborough City Council,Children's & Safeguarding,Access to Resources & Specialist Commissioning,Services,01/06/2016 00:00,30063715,3128.14,Revenue,Key2,Boarding Out Allowances
Peterborough,http://opendatacommunities.org/id/unitary-authority/peterborough,Peterborough City Council,Children's & Safeguarding,Access to Resources & Specialist Commissioning,Services,01/06/2016 00:00,30063717,946.35,Revenue,Key2,Boarding Out Allowances
Peterborough,http://opendatacommunities.org/id/unitary-authority/peterborough,Peterborough City Council,Children's & Safeguarding,Access to Resources & Specialist Commissioning,Services,01/06/2016 00:00,30064043,5608.76,Revenue,IAS TACT,Boarding Out Allowances
Peterborough,http://opendatacommunities.org/id/unitary-authority/peterborough,Peterborough City Council,Children's & Safeguarding,Access to Resources & Specialist Commissioning,Services,01/06/2016 00:00,30064271,19057.06,Revenue,Cambian Childcare Ltd,Boarding Out Allowances
Peterborough,http://opendatacommunities.org/id/unitary-authority/peterborough,Peterborough City Council,Children's & Safeguarding,Access to Resources & Specialist Commissioning,Services,01/06/2016 00:00,30064444,20693.61,Revenue,Young Options College Ltd,Boarding Out Allowances
Peterborough,http://opendatacommunities.org/id/unitary-authority/peterborough,Peterborough City Council,Children's & Safeguarding,Access to Resources & Specialist Commissioning,Services,01/06/2016 00:00,30065243,2676.21,Revenue,Fostering Solutions,Boarding Out Allowances
Peterborough,http://opendatacommunities.org/id/unitary-authority/peterborough,Peterborough City Council,Children's & Safeguarding,Access to Resources & Specialist Commissioning,Services,01/06/2016 00:00,30065249,3753.14,Revenue,Fostering Solutions,Boarding Out Allowances
Peterborough,http://opendatacommunities.org/id/unitary-authority/peterborough,Peterborough City Council,Children's & Safeguarding,Access to Resources & Specialist Commissioning,Services,01/06/2016 00:00,30065548,1955.79,Revenue,Key2,Boarding Out Allowances
Peterborough,http://opendatacommunities.org/id/unitary-authority/peterborough,Peterborough City Council,Children's & Safeguarding,Access to Resources & Specialist Commissioning,Services,01/06/2016 00:00,30065551,-4928.57,Revenue,Trax Care Ltd,Boarding Out Allowances
Peterborough,http://opendatacommunities.org/id/unitary-authority/peterborough,Peterborough City Council,Children's & Safeguarding,Access to Resources & Specialist Commissioning,Services,01/06/2016 00:00,30066105,18515.48,Revenue,Heathcotes Limited,Boarding Out Allowances
Peterborough,http://opendatacommunities.org/id/unitary-authority/peterborough,Peterborough City Council,Children's & Safeguarding,Access to Resources & Specialist Commissioning,Services,01/06/2016 00:00,30067307,6007.06,Revenue,National Fostering Agency,Boarding Out Allowances
Peterborough,http://opendatacommunities.org/id/unitary-authority/peterborough,Peterborough City Council,Children's & Safeguarding,Access to Resources & Specialist Commissioning,Services,01/06/2016 00:00,30067347,5725.47,Revenue,Heath Farm Family Services Ltd,Boarding Out Allowances
Peterborough,http://opendatacommunities.org/id/unitary-authority/peterborough,Peterborough City Council,Children's & Safeguarding,Access to Resources & Specialist Commissioning,Services,01/06/2016 00:00,30067357,2438.61,Revenue,Key2,Boarding Out Allowances
Peterborough,http://opendatacommunities.org/id/unitary-authority/peterborough,Peterborough City Council,Children's & Safeguarding,Access to Resources & Specialist Commissioning,Services,01/06/2016 00:00,30067362,18578.61,Revenue,Young Options College Ltd,Boarding Out Allowances
Peterborough,http://opendatacommunities.org/id/unitary-authority/peterborough,Peterborough City Council,Children's & Safeguarding,Access to Resources & Specialist Commissioning,Services,01/06/2016 00:00,30067365,19197.9,Revenue,Young Options College Ltd,Boarding Out Allowances
Peterborough,http://opendatacommunities.org/id/unitary-authority/peterborough,Peterborough City Council,Children's & Safeguarding,Access to Resources & Specialist Commissioning,Services,01/06/2016 00:00,30067440,20371.34,Revenue,Cambian Childcare Ltd,Boarding Out Allowances
Peterborough,http://opendatacommunities.org/id/unitary-authority/peterborough,Peterborough City Council,Children's & Safeguarding,Access to Resources & Specialist Commissioning,Services,01/06/2016 00:00,30068072,23250,Revenue,Trax Care Ltd,Boarding Out Allowances
Peterborough,http://opendatacommunities.org/id/unitary-authority/peterborough,Peterborough City Council,Children's & Safeguarding,Access to Resources & Specialist Commissioning,Services,01/06/2016 00:00,30068877,4978.75,Revenue,Heathcotes M Ltd,Boarding Out Allowances
Peterborough,http://opendatacommunities.org/id/unitary-authority/peterborough,Peterborough City Council,Children's & Safeguarding,Access to Resources & Specialist Commissioning,Services,01/06/2016 00:00,30068878,1576,Revenue,Heathcotes Limited,Boarding Out Allowances
Peterborough,http://opendatacommunities.org/id/unitary-authority/peterborough,Peterborough City Council,Children's & Safeguarding,Access to Resources & Specialist Commissioning,Services,01/06/2016 00:00,30068879,12142.82,Revenue,Heathcotes M Ltd,Boarding Out Allowances
Peterborough,http://opendatacommunities.org/id/unitary-authority/peterborough,Peterborough City Council,Children's & Safeguarding,Access to Resources & Specialist Commissioning,Services,01/06/2016 00:00,30068880,25256.92,Revenue,Heathcotes M Ltd,Boarding Out Allowances
Peterborough,http://opendatacommunities.org/id/unitary-authority/peterborough,Peterborough City Council,Children's & Safeguarding,Access to Resources & Specialist Commissioning,Services,01/06/2016 00:00,30068881,8833.45,Revenue,Heathcotes M Ltd,Boarding Out Allowances
Peterborough,http://opendatacommunities.org/id/unitary-authority/peterborough,Peterborough City Council,Children's & Safeguarding,Access to Resources & Specialist Commissioning,Services,01/06/2016 00:00,30069279,3554.46,Revenue,Fostering Solutions,Boarding Out Allowances
Peterborough,http://opendatacommunities.org/id/unitary-authority/peterborough,Peterborough City Council,Children's & Safeguarding,Access to Resources & Specialist Commissioning,Services,01/06/2016 00:00,30071120,2780.96,Revenue,Norfolk County Council,Boarding Out Allowances
Peterborough,http://opendatacommunities.org/id/unitary-authority/peterborough,Peterborough City Council,Children's & Safeguarding,Access to Resources & Specialist Commissioning,Services,01/06/2016 00:00,30071347,5766.75,Revenue,IAS TACT,Boarding Out Allowances
Peterborough,http://opendatacommunities.org/id/unitary-authority/peterborough,Peterborough City Council,Children's & Safeguarding,Access to Resources & Specialist Commissioning,Services,01/06/2016 00:00,30071602,3487.2,Revenue,Fostering Options Ltd,Boarding Out Allowances
Peterborough,http://opendatacommunities.org/id/unitary-authority/peterborough,Peterborough City Council,Children's & Safeguarding,Access to Resources & Specialist Commissioning,Services,01/06/2016 00:00,30071899,974.56,Revenue,Key2,Boarding Out Allowances
Peterborough,http://opendatacommunities.org/id/unitary-authority/peterborough,Peterborough City Council,Children's & Safeguarding,Access to Resources & Specialist Commissioning,Services,01/06/2016 00:00,30071900,664.61,Revenue,Key2,Boarding Out Allowances
Peterborough,http://opendatacommunities.org/id/unitary-authority/peterborough,Peterborough City Council,Children's & Safeguarding,Access to Resources & Specialist Commissioning,Services,01/06/2016 00:00,30071902,2606.79,Revenue,Key2,Boarding Out Allowances
Peterborough,http://opendatacommunities.org/id/unitary-authority/peterborough,Peterborough City Council,Children's & Safeguarding,Access to Resources & Specialist Commissioning,Services,01/06/2016 00:00,30071993,6421.34,Revenue,National Fostering Agency,Boarding Out Allowances
Peterborough,http://opendatacommunities.org/id/unitary-authority/peterborough,Peterborough City Council,Children's & Safeguarding,Access to Resources & Specialist Commissioning,Services,01/06/2016 00:00,30072307,27500,Revenue,Wilds Lodge School,Boarding Out Allowances
Peterborough,http://opendatacommunities.org/id/unitary-authority/peterborough,Peterborough City Council,Children's & Safeguarding,Access to Resources & Specialist Commissioning,Services,01/06/2016 00:00,30072309,27500,Revenue,Wilds Lodge School,Boarding Out Allowances
Peterborough,http://opendatacommunities.org/id/unitary-authority/peterborough,Peterborough City Council,Children's & Safeguarding,Access to Resources & Specialist Commissioning,Services,01/06/2016 00:00,30072447,19250.65,Revenue,Young Options College Ltd,Boarding Out Allowances
Peterborough,http://opendatacommunities.org/id/unitary-authority/peterborough,Peterborough City Council,Children's & Safeguarding,Access to Resources & Specialist Commissioning,Services,01/06/2016 00:00,30072448,19197.9,Revenue,Young Options College Ltd,Boarding Out Allowances
Peterborough,http://opendatacommunities.org/id/unitary-authority/peterborough,Peterborough City Council,Children's & Safeguarding,Access to Resources & Specialist Commissioning,Services,01/06/2016 00:00,30072450,-4677.89,Revenue,Young Options College Ltd,Boarding Out Allowances
Peterborough,http://opendatacommunities.org/id/unitary-authority/peterborough,Peterborough City Council,Adult Services & Communities - Adults,Therapy/Reablement/Community Equipment,Agency Staff,01/06/2016 00:00,30072708,1267.88,Revenue,Sanctuary Personnel Ltd,External Temporary Staff
Peterborough,http://opendatacommunities.org/id/unitary-authority/peterborough,Peterborough City Council,Children's & Safeguarding,Access to Resources & Specialist Commissioning,Services,01/06/2016 00:00,30072954,3521.29,Revenue,Tree House Care Fostering Solutions Ltd,Boarding Out Allowances
Peterborough,http://opendatacommunities.org/id/unitary-authority/peterborough,Peterborough City Council,Children's & Safeguarding,Access to Resources & Specialist Commissioning,Services,01/06/2016 00:00,30074440,11493,Revenue,Royal National College for Blind,Boarding Out Allowances
Peterborough,http://opendatacommunities.org/id/unitary-authority/peterborough,Peterborough City Council,Children's & Safeguarding,Access to Resources & Specialist Commissioning,Services,01/06/2016 00:00,30074591,3262.77,Revenue,Tree House Care Fostering Solutions Ltd,Boarding Out Allowances
Peterborough,http://opendatacommunities.org/id/unitary-authority/peterborough,Peterborough City Council,Corporate,Corporate,Non Revenue,01/06/2016 00:00,30074747,2675,Capital,Number 10 Interim Ltd,Consultants Fees
Peterborough,http://opendatacommunities.org/id/unitary-authority/peterborough,Peterborough City Council,Business Management and Commercial Operations,Clare Lodge,Agency Staff,01/06/2016 00:00,30074864,512,Revenue,Wrixon Care Services,External Temporary Staff
Peterborough,http://opendatacommunities.org/id/unitary-authority/peterborough,Peterborough City Council,Business Management and Commercial Operations,Clare Lodge,Agency Staff,01/06/2016 00:00,30074865,1504,Revenue,Wrixon Care Services,External Temporary Staff
Peterborough,http://opendatacommunities.org/id/unitary-authority/peterborough,Peterborough City Council,Business Management and Commercial Operations,Clare Lodge,Agency Staff,01/06/2016 00:00,30074866,512,Revenue,Wrixon Care Services,External Temporary Staff
Peterborough,http://opendatacommunities.org/id/unitary-authority/peterborough,Peterborough City Council,Business Management and Commercial Operations,Clare Lodge,Agency Staff,01/06/2016 00:00,30074867,944,Revenue,Wrixon Care Services,External Temporary Staff
Peterborough,http://opendatacommunities.org/id/unitary-authority/peterborough,Peterborough City Council,Public Health,Housing and Health - Public Health,Services,01/06/2016 00:00,30074898,897,Revenue,Orton Bushfield Medical Practice,Third Party Payments - Contract
Peterborough,http://opendatacommunities.org/id/unitary-authority/peterborough,Peterborough City Council,Public Health,Housing and Health - Public Health,Services,01/06/2016 00:00,30074900,1173,Revenue,Bretton Medical Practice,Third Party Payments - Contract
Peterborough,http://opendatacommunities.org/id/unitary-authority/peterborough,Peterborough City Council,Public Health,Housing and Health - Public Health,Services,01/06/2016 00:00,30074915,713,Revenue,Hodgson Surgery,Third Party Payments - Contract
Peterborough,http://opendatacommunities.org/id/unitary-authority/peterborough,Peterborough City Council,Public Health,Housing and Health - Public Health,Services,01/06/2016 00:00,30074930,1656,Revenue,Millfield Medical Centre,Third Party Payments - Contract
Peterborough,http://opendatacommunities.org/id/unitary-authority/peterborough,Peterborough City Council,Public Health,Housing and Health - Public Health,Services,01/06/2016 00:00,30074931,3680,Revenue,Nene Valley Medical Practice,Third Party Payments - Contract
Peterborough,http://opendatacommunities.org/id/unitary-authority/peterborough,Peterborough City Council,Public Health,Housing and Health - Public Health,Services,01/06/2016 00:00,30074936,2162,Revenue,Park Medical Centre,Third Party Payments - Contract
Peterborough,http://opendatacommunities.org/id/unitary-authority/peterborough,Peterborough City Council,Public Health,Housing and Health - Public Health,Services,01/06/2016 00:00,30074938,3496,Revenue,Thistlemoor Healthcare & Management,Third Party Payments - Contract
Peterborough,http://opendatacommunities.org/id/unitary-authority/peterborough,Peterborough City Council,Public Health,Housing and Health - Public Health,Services,01/06/2016 00:00,30074939,920,Revenue,Thomas Walker Surgery,Third Party Payments - Contract
Peterborough,http://opendatacommunities.org/id/unitary-authority/peterborough,Peterborough City Council,Public Health,Housing and Health - Public Health,Services,01/06/2016 00:00,30074941,1541,Revenue,Welland Medical Practices,Third Party Payments - Contract
Peterborough,http://opendatacommunities.org/id/unitary-authority/peterborough,Peterborough City Council,Public Health,Housing and Health - Public Health,Services,01/06/2016 00:00,30074942,1702,Revenue,Thorpe Road Surgery,Third Party Payments - Contract
Peterborough,http://opendatacommunities.org/id/unitary-authority/peterborough,Peterborough City Council,Public Health,Housing and Health - Public Health,Services,01/06/2016 00:00,30074946,1219,Revenue,Westwood Surgery,Third Party Payments - Contract
Peterborough,http://opendatacommunities.org/id/unitary-authority/peterborough,Peterborough City Council,Corporate,Corporate,Non Revenue,01/06/2016 00:00,30075036,1695,Capital,Oakleaf Surveying Ltd,Building And Site Works
Peterborough,http://opendatacommunities.org/id/unitary-authority/peterborough,Peterborough City Council,Children's & Safeguarding,Children's Social Care,Agency Staff,01/06/2016 00:00,30075235,1602.85,Revenue,Pulse,External Temporary Staff
Peterborough,http://opendatacommunities.org/id/unitary-authority/peterborough,Peterborough City Council,Adult Services & Communities - Adults,Independent Sector Placements,Services,01/06/2016 00:00,30075313,640.9,Revenue,Barchester Healthcare (Werrington Lodge),Residential Care
Peterborough,http://opendatacommunities.org/id/unitary-authority/peterborough,Peterborough City Council,Adult Services & Communities - Adults,Independent Sector Placements,Services,01/06/2016 00:00,30075320,1555.84,Revenue,Barchester Healthcare (Werrington Lodge),Residential Care
Peterborough,http://opendatacommunities.org/id/unitary-authority/peterborough,Peterborough City Council,Adult Services & Communities - Adults,Independent Sector Placements,Services,01/06/2016 00:00,30075322,1953.8,Revenue,Barchester Healthcare (Werrington Lodge),Residential Care
Peterborough,http://opendatacommunities.org/id/unitary-authority/peterborough,Peterborough City Council,Adult Services & Communities - Adults,Independent Sector Placements,Services,01/06/2016 00:00,30075323,1503.14,Revenue,Barchester Healthcare (Werrington Lodge),Residential Care
Peterborough,http://opendatacommunities.org/id/unitary-authority/peterborough,Peterborough City Council,Adult Services & Communities - Adults,Independent Sector Placements,Services,01/06/2016 00:00,30075324,1022.96,Revenue,Barchester Healthcare (Werrington Lodge),Residential Care
Peterborough,http://opendatacommunities.org/id/unitary-authority/peterborough,Peterborough City Council,Adult Services & Communities - Adults,Independent Sector Placements,Services,01/06/2016 00:00,30075325,2128.92,Revenue,Barchester Healthcare (Werrington Lodge),Residential Care
Peterborough,http://opendatacommunities.org/id/unitary-authority/peterborough,Peterborough City Council,Adult Services & Communities - Adults,Independent Sector Placements,Services,01/06/2016 00:00,30075326,1409.62,Revenue,Barchester Healthcare (Werrington Lodge),Residential Care
Peterborough,http://opendatacommunities.org/id/unitary-authority/peterborough,Peterborough City Council,Adult Services & Communities - Adults,Independent Sector Placements,Services,01/06/2016 00:00,30075327,1767.64,Revenue,Barchester Healthcare (Werrington Lodge),Residential Care
Peterborough,http://opendatacommunities.org/id/unitary-authority/peterborough,Peterborough City Council,Adult Services & Communities - Adults,Independent Sector Placements,Services,01/06/2016 00:00,30075328,1627.72,Revenue,Barchester Healthcare (Werrington Lodge),Residential Care
Peterborough,http://opendatacommunities.org/id/unitary-authority/peterborough,Peterborough City Council,Adult Services & Communities - Adults,Independent Sector Placements,Services,01/06/2016 00:00,30075331,1623.72,Revenue,Barchester Healthcare (Werrington Lodge),Residential Care
Peterborough,http://opendatacommunities.org/id/unitary-authority/peterborough,Peterborough City Council,Adult Services & Communities - Adults,Independent Sector Placements,Services,01/06/2016 00:00,30075333,1607.32,Revenue,Barchester Healthcare (Werrington Lodge),Residential Care
Peterborough,http://opendatacommunities.org/id/unitary-authority/peterborough,Peterborough City Council,Adult Services & Communities - Adults,Independent Sector Placements,Services,01/06/2016 00:00,30075335,2128.92,Revenue,Barchester Healthcare (Werrington Lodge),Residential Care
Peterborough,http://opendatacommunities.org/id/unitary-authority/peterborough,Peterborough City Council,Adult Services & Communities - Adults,Independent Sector Placements,Services,01/06/2016 00:00,30075336,1623.72,Revenue,Barchester Healthcare (Werrington Lodge),Residential Care
Peterborough,http://opendatacommunities.org/id/unitary-authority/peterborough,Peterborough City Council,Adult Services & Communities - Adults,Independent Sector Placements,Services,01/06/2016 00:00,30075337,1597.32,Revenue,Barchester Healthcare (Werrington Lodge),Residential Care
Peterborough,http://opendatacommunities.org/id/unitary-authority/peterborough,Peterborough City Council,Adult Services & Communities - Adults,Independent Sector Placements,Services,01/06/2016 00:00,30075338,1663.72,Revenue,Barchester Healthcare (Werrington Lodge),Residential Care
Peterborough,http://opendatacommunities.org/id/unitary-authority/peterborough,Peterborough City Council,Children's & Safeguarding,Access to Resources & Specialist Commissioning,Services,01/06/2016 00:00,30075392,17725.8,Revenue,Horizon Care,Boarding Out Allowances
Peterborough,http://opendatacommunities.org/id/unitary-authority/peterborough,Peterborough City Council,Business Management and Commercial Operations,Commissioning,Services,01/06/2016 00:00,30075484,2066.22,Revenue,Barnardo Services Limited,Third Party Payments - Contract
Peterborough,http://opendatacommunities.org/id/unitary-authority/peterborough,Peterborough City Council,Legal & Democratic,Legal Services,Services,01/06/2016 00:00,30075521,700,Revenue,"Collins, Mr Peter",Legal Costs
Peterborough,http://opendatacommunities.org/id/unitary-authority/peterborough,Peterborough City Council,Peterborough Highway Services,Transport & Infrastructure Commissioning,Services,01/06/2016 00:00,30075538,2280,Revenue,Centrebus North Ltd,Contractors
Peterborough,http://opendatacommunities.org/id/unitary-authority/peterborough,Peterborough City Council,Westcombe Engineering,Westcombe Engineering,Services,01/06/2016 00:00,30075673,813.96,Revenue,Barron Clark Castings Ltd,Items For Resale
Peterborough,http://opendatacommunities.org/id/unitary-authority/peterborough,Peterborough City Council,Westcombe Engineering,Westcombe Engineering,Services,01/06/2016 00:00,30075675,1324,Revenue,Barron Clark Castings Ltd,Items For Resale
Peterborough,http://opendatacommunities.org/id/unitary-authority/peterborough,Peterborough City Council,Children's & Safeguarding,Children's Social Care,Agency Staff,01/06/2016 00:00,30075696,1675,Revenue,Service Care Solutions Ltd,External Temporary Staff
Peterborough,http://opendatacommunities.org/id/unitary-authority/peterborough,Peterborough City Council,Adult Services & Communities - Adults,Day Opportunities / In House,Agency Staff,01/06/2016 00:00,30075702,1313.5,Revenue,Service Care Solutions Ltd,External Temporary Staff
Peterborough,http://opendatacommunities.org/id/unitary-authority/peterborough,Peterborough City Council,Corporate,Corporate,Non Revenue,01/06/2016 00:00,30075753,2500,Capital,Gaswise Services Ltd,Grant Payment
Peterborough,http://opendatacommunities.org/id/unitary-authority/peterborough,Peterborough City Council,Corporate,Corporate,Non Revenue,01/06/2016 00:00,30075754,6170,Capital,Gaswise Services Ltd,Grant Payment
Peterborough,http://opendatacommunities.org/id/unitary-authority/peterborough,Peterborough City Council,Education,Home to School Transport,Contract Hire and Operating Leases,01/06/2016 00:00,30075844,4475.1,Revenue,Respond Care Ltd,Hired Transport
Peterborough,http://opendatacommunities.org/id/unitary-authority/peterborough,Peterborough City Council,Adults and Communities - Communities,Housing and Health,Services,01/06/2016 00:00,30075877,1000,Revenue,"Snelling, Mr Charles",Legal Costs
Peterborough,http://opendatacommunities.org/id/unitary-authority/peterborough,Peterborough City Council,Adult Services & Communities - Adults,Therapy/Reablement/Community Equipment,"Tools, Equipment, Furniture & Materials",01/06/2016 00:00,30075913,89699.83,Revenue,NRS Healthcare,Occupational Therapy Equipment
Peterborough,http://opendatacommunities.org/id/unitary-authority/peterborough,Peterborough City Council,Adult Services & Communities - Adults,Therapy/Reablement/Community Equipment,"Tools, Equipment, Furniture & Materials",01/06/2016 00:00,30075915,1109.59,Revenue,NRS Healthcare,Occupational Therapy Equipment
Peterborough,http://opendatacommunities.org/id/unitary-authority/peterborough,Peterborough City Council,Various,Various,Services,01/06/2016 00:00,30075921,1541.04,Revenue,Whistl UK Ltd,Postage
Peterborough,http://opendatacommunities.org/id/unitary-authority/peterborough,Peterborough City Council,City Servs & Communications,Parking Services,Services,01/06/2016 00:00,30075994,874.33,Revenue,Loomis UK Ltd,Cash Collection Services
Peterborough,http://opendatacommunities.org/id/unitary-authority/peterborough,Peterborough City Council,Business Management and Commercial Operations,Commissioning,Services,01/06/2016 00:00,30076046,504,Revenue,Cellmark,Hired Services
Peterborough,http://opendatacommunities.org/id/unitary-authority/peterborough,Peterborough City Council,Children's & Safeguarding,Child Health,Services,01/06/2016 00:00,30076124,848.52,Revenue,Sahara Community Care Services,Hired Services
Peterborough,http://opendatacommunities.org/id/unitary-authority/peterborough,Peterborough City Council,ICT,ICT,Services,01/06/2016 00:00,30076214,546,Revenue,Speedy Couriers,Disaster Recovery
Peterborough,http://opendatacommunities.org/id/unitary-authority/peterborough,Peterborough City Council,Corporate Property,Strategic Projects,Agency Staff,01/06/2016 00:00,30076218,1639.4,Revenue,Eden Brown Ltd,External Temporary Staff
Peterborough,http://opendatacommunities.org/id/unitary-authority/peterborough,Peterborough City Council,Corporate Property,Strategic Projects,Agency Staff,01/06/2016 00:00,30076226,1566.13,Revenue,Eden Brown Ltd,External Temporary Staff
Peterborough,http://opendatacommunities.org/id/unitary-authority/peterborough,Peterborough City Council,Corporate Property,Strategic Projects,Agency Staff,01/06/2016 00:00,30076227,1602.98,Revenue,Eden Brown Ltd,External Temporary Staff
Peterborough,http://opendatacommunities.org/id/unitary-authority/peterborough,Peterborough City Council,Children's & Safeguarding,Children's Social Care,Agency Staff,01/06/2016 00:00,30076228,1581.6,Revenue,Eden Brown Ltd,External Temporary Staff
Peterborough,http://opendatacommunities.org/id/unitary-authority/peterborough,Peterborough City Council,Children's & Safeguarding,Children's Social Care,Agency Staff,01/06/2016 00:00,30076479,1221,Revenue,SWP Consulting,External Temporary Staff
Peterborough,http://opendatacommunities.org/id/unitary-authority/peterborough,Peterborough City Council,Children's & Safeguarding,Children's Social Care,Agency Staff,01/06/2016 00:00,30076483,1221,Revenue,SWP Consulting,External Temporary Staff
Peterborough,http://opendatacommunities.org/id/unitary-authority/peterborough,Peterborough City Council,Children's & Safeguarding,Access to Resources & Specialist Commissioning,Services,01/06/2016 00:00,30076518,17357.32,Revenue,Direct Care Limited,Boarding Out Allowances
Peterborough,http://opendatacommunities.org/id/unitary-authority/peterborough,Peterborough City Council,City Servs & Communications,Regulatory Services,Services,01/06/2016 00:00,30076566,1573.2,Revenue,Northgate Public Services (UK) Ltd,Administration Expenses
Peterborough,http://opendatacommunities.org/id/unitary-authority/peterborough,Peterborough City Council,Business Management and Commercial Operations,Commissioning,Services,01/06/2016 00:00,30076586,2284.5,Revenue,Oracle Care Ltd (Region 2),Hired Services
Peterborough,http://opendatacommunities.org/id/unitary-authority/peterborough,Peterborough City Council,Business Management and Commercial Operations,Commissioning,Services,01/06/2016 00:00,30076641,808.18,Revenue,CAPITA Translation and Interpreting,Interpretation Expenses
Peterborough,http://opendatacommunities.org/id/unitary-authority/peterborough,Peterborough City Council,Peterborough Highway Services,Network and Traffic Management,Services,01/06/2016 00:00,30076749,582.54,Revenue,Johnston Press Midlands Division,Advertising
Peterborough,http://opendatacommunities.org/id/unitary-authority/peterborough,Peterborough City Council,Development and Construction,Development Management,Services,01/06/2016 00:00,30076752,705.5,Revenue,Johnston Press Midlands Division,Advertising
Peterborough,http://opendatacommunities.org/id/unitary-authority/peterborough,Peterborough City Council,Peterborough Highway Services,Network and Traffic Management,Services,01/06/2016 00:00,30076758,610.16,Revenue,Johnston Press Midlands Division,Advertising
Peterborough,http://opendatacommunities.org/id/unitary-authority/peterborough,Peterborough City Council,Corporate,Corporate,Non Revenue,01/06/2016 00:00,30076794,3000,Capital,Peterborough Sea Cadets Corps,Grant Payment
Peterborough,http://opendatacommunities.org/id/unitary-authority/peterborough,Peterborough City Council,Corporate,Corporate,Non Revenue,01/06/2016 00:00,30076801,2517.31,Capital,Enterprise Managed Services Limited,Building And Site Works
Peterborough,http://opendatacommunities.org/id/unitary-authority/peterborough,Peterborough City Council,Corporate,Corporate,Non Revenue,01/06/2016 00:00,30076802,544.98,Capital,Enterprise Managed Services Limited,Building And Site Works
Peterborough,http://opendatacommunities.org/id/unitary-authority/peterborough,Peterborough City Council,Adult Services & Communities - Adults,Day Opportunities / In House,Agency Staff,01/06/2016 00:00,30076894,1050,Revenue,Caritas Recruitment,External Temporary Staff
Peterborough,http://opendatacommunities.org/id/unitary-authority/peterborough,Peterborough City Council,Adult Services & Communities - Adults,Day Opportunities / In House,Agency Staff,01/06/2016 00:00,30076897,700,Revenue,Caritas Recruitment,External Temporary Staff
Peterborough,http://opendatacommunities.org/id/unitary-authority/peterborough,Peterborough City Council,Adult Services & Communities - Adults,Day Opportunities / In House,Agency Staff,01/06/2016 00:00,30076898,1190,Revenue,Caritas Recruitment,External Temporary Staff
Peterborough,http://opendatacommunities.org/id/unitary-authority/peterborough,Peterborough City Council,Adult Services & Communities - Adults,Day Opportunities / In House,Agency Staff,01/06/2016 00:00,30076899,1045.1,Revenue,Caritas Recruitment,External Temporary Staff
Peterborough,http://opendatacommunities.org/id/unitary-authority/peterborough,Peterborough City Council,Adult Services & Communities - Adults,Day Opportunities / In House,Agency Staff,01/06/2016 00:00,30076900,1050,Revenue,Caritas Recruitment,External Temporary Staff
Peterborough,http://opendatacommunities.org/id/unitary-authority/peterborough,Peterborough City Council,Adult Services & Communities - Adults,Day Opportunities / In House,Agency Staff,01/06/2016 00:00,30076901,2000,Revenue,Caritas Recruitment,External Temporary Staff
Peterborough,http://opendatacommunities.org/id/unitary-authority/peterborough,Peterborough City Council,Adult Services & Communities - Adults,Day Opportunities / In House,Agency Staff,01/06/2016 00:00,30076902,1295,Revenue,Caritas Recruitment,External Temporary Staff
Peterborough,http://opendatacommunities.org/id/unitary-authority/peterborough,Peterborough City Council,Adult Services & Communities - Adults,Day Opportunities / In House,Agency Staff,01/06/2016 00:00,30076905,1306.25,Revenue,Caritas Recruitment,External Temporary Staff
Peterborough,http://opendatacommunities.org/id/unitary-authority/peterborough,Peterborough City Council,Children's & Safeguarding,Access to Resources & Specialist Commissioning,Services,01/06/2016 00:00,30076909,1555.71,Revenue,University College Northampton,Course Fees
Peterborough,http://opendatacommunities.org/id/unitary-authority/peterborough,Peterborough City Council,Adult Services & Communities - Adults,Independent Sector Placements,Services,01/06/2016 00:00,30076924,1852.67,Revenue,ABOUT ME CARE AND SUPPORT LTD,Home Care
Peterborough,http://opendatacommunities.org/id/unitary-authority/peterborough,Peterborough City Council,Adult Services & Communities - Adults,Independent Sector Placements,Services,01/06/2016 00:00,30076935,1527.21,Revenue,Qu'appelle Care Home Ltd,Residential Care
Peterborough,http://opendatacommunities.org/id/unitary-authority/peterborough,Peterborough City Council,Education,Service Director Resources,Agency Staff,01/06/2016 00:00,30076968,3000,Revenue,Baltimore Consulting,External Temporary Staff
Peterborough,http://opendatacommunities.org/id/unitary-authority/peterborough,Peterborough City Council,Education,Assets and Schools Place Planning,Agency Staff,01/06/2016 00:00,30076969,11000,Revenue,Baltimore Consulting,External Temporary Staff
Peterborough,http://opendatacommunities.org/id/unitary-authority/peterborough,Peterborough City Council,Adults and Communities - Communities,Youth / Youth Offending,Services,01/06/2016 00:00,30076971,3076.92,Revenue,The Froglife Trust,Special Projects
Peterborough,http://opendatacommunities.org/id/unitary-authority/peterborough,Peterborough City Council,Children's & Safeguarding,Child Health,"Tools, Equipment, Furniture & Materials",01/06/2016 00:00,30076978,2238.5,Revenue,Jiraffe,Occupational Therapy Equipment
Peterborough,http://opendatacommunities.org/id/unitary-authority/peterborough,Peterborough City Council,Children's & Safeguarding,Access to Resources & Specialist Commissioning,Services,01/06/2016 00:00,30076983,2002.6,Revenue,Medway Council,Out Of Area Education Costs
Peterborough,http://opendatacommunities.org/id/unitary-authority/peterborough,Peterborough City Council,Children's & Safeguarding,Access to Resources & Specialist Commissioning,Services,01/06/2016 00:00,30076984,2564.73,Revenue,Medway Council,Out Of Area Education Costs
Peterborough,http://opendatacommunities.org/id/unitary-authority/peterborough,Peterborough City Council,Children's & Safeguarding,Children's Social Care,Agency Staff,01/06/2016 00:00,30076998,1602.85,Revenue,Pulse,External Temporary Staff
Peterborough,http://opendatacommunities.org/id/unitary-authority/peterborough,Peterborough City Council,Adult Services & Communities - Adults,Therapy/Reablement/Community Equipment,"Tools, Equipment, Furniture & Materials",01/06/2016 00:00,30077002,924.99,Revenue,Laybrook,Occupational Therapy Equipment
Peterborough,http://opendatacommunities.org/id/unitary-authority/peterborough,Peterborough City Council,Children's & Safeguarding,Children's Social Care,Services,01/06/2016 00:00,30077005,1673.69,Revenue,Redacted Personal Data,Adoption
Peterborough,http://opendatacommunities.org/id/unitary-authority/peterborough,Peterborough City Council,Adults and Communities - Communities,Housing and Health,Services,01/06/2016 00:00,30077008,6782.55,Revenue,Midland Environmental Contracts Ltd,Third Party Payments - Contract
Peterborough,http://opendatacommunities.org/id/unitary-authority/peterborough,Peterborough City Council,"Cemeteries, Cremation & Registrars",Bereavement Service,Services,01/06/2016 00:00,30077010,1400,Revenue,Anglia Co-operative Funerals,Contract Funerals
Peterborough,http://opendatacommunities.org/id/unitary-authority/peterborough,Peterborough City Council,Vivacity/Cultural Services,Cultural Services,Services,01/06/2016 00:00,30077033,1260,Revenue,Normans,Equipment Purchase
Peterborough,http://opendatacommunities.org/id/unitary-authority/peterborough,Peterborough City Council,Adult Services & Communities - Adults,Independent Sector Placements,Services,01/06/2016 00:00,30077039,536,Revenue,MEARS GROUP,Home Care
Peterborough,http://opendatacommunities.org/id/unitary-authority/peterborough,Peterborough City Council,Adults and Communities - Communities,Early Help ASC/CSC,Agency Staff,01/06/2016 00:00,30077045,740,Revenue,Service Care Solutions Ltd,External Temporary Staff
Peterborough,http://opendatacommunities.org/id/unitary-authority/peterborough,Peterborough City Council,Children's & Safeguarding,Children's Social Care,Agency Staff,01/06/2016 00:00,30077046,1315.55,Revenue,Service Care Solutions Ltd,External Temporary Staff
Peterborough,http://opendatacommunities.org/id/unitary-authority/peterborough,Peterborough City Council,Children's & Safeguarding,Children's Social Care,Agency Staff,01/06/2016 00:00,30077047,1315.55,Revenue,Service Care Solutions Ltd,External Temporary Staff
Peterborough,http://opendatacommunities.org/id/unitary-authority/peterborough,Peterborough City Council,Children's & Safeguarding,Children's Social Care,Agency Staff,01/06/2016 00:00,30077048,1315.55,Revenue,Service Care Solutions Ltd,External Temporary Staff
Peterborough,http://opendatacommunities.org/id/unitary-authority/peterborough,Peterborough City Council,Business Management and Commercial Operations,Business Management and Commercial Operations,Services,01/06/2016 00:00,30077059,35766.5,Revenue,Social Finance Limited,Special Projects
Peterborough,http://opendatacommunities.org/id/unitary-authority/peterborough,Peterborough City Council,Corporate,Corporate,Non Revenue,01/06/2016 00:00,30077087,700,Capital,Barker Storey Matthews,Professional Fees
Peterborough,http://opendatacommunities.org/id/unitary-authority/peterborough,Peterborough City Council,Adults and Communities - Communities,Youth / Youth Offending,Services,01/06/2016 00:00,30077099,787,Revenue,Royal Mail,Postage
Peterborough,http://opendatacommunities.org/id/unitary-authority/peterborough,Peterborough City Council,Children's & Safeguarding,Child Health,"Printing, Stationery & General Office Expenses",01/06/2016 00:00,30077114,600.64,Revenue,Cherry Lodge (Imprest),Stationery
Peterborough,http://opendatacommunities.org/id/unitary-authority/peterborough,Peterborough City Council,Business Management and Commercial Operations,Clare Lodge,Services,01/06/2016 00:00,30077117,984.9,Revenue,Clare Lodge Secure Unit (Imprest),Financial Assistance
Peterborough,http://opendatacommunities.org/id/unitary-authority/peterborough,Peterborough City Council,Corporate,Corporate,Non Revenue,01/06/2016 00:00,30077120,9621.98,Capital,Telent Technology Services Ltd,Infrastructure
Peterborough,http://opendatacommunities.org/id/unitary-authority/peterborough,Peterborough City Council,Corporate,Corporate,Non Revenue,01/06/2016 00:00,30077127,550,Capital,Richardson Chartered Surveyors,Consultants Fees
Peterborough,http://opendatacommunities.org/id/unitary-authority/peterborough,Peterborough City Council,Amey Peterborough & Waste Management,Waste & Operational Svs Mgmt,Services,01/06/2016 00:00,30077128,1813,Revenue,Huntingdonshire District Council,Refuse Collection
Peterborough,http://opendatacommunities.org/id/unitary-authority/peterborough,Peterborough City Council,Adults and Communities - Communities,Housing and Health,Services,01/06/2016 00:00,30077132,2933.36,Revenue,NACRO,Grant-Third Party
Peterborough,http://opendatacommunities.org/id/unitary-authority/peterborough,Peterborough City Council,Children's & Safeguarding,Children's Social Care,Contract Hire and Operating Leases,01/06/2016 00:00,30077143,1271.4,Revenue,PSS Secure Transport,Hired Transport
Peterborough,http://opendatacommunities.org/id/unitary-authority/peterborough,Peterborough City Council,Adult Services & Communities - Adults,Independent Sector Placements,Services,01/06/2016 00:00,30077165,700,Revenue,Spotless {Cleaning Services},Home Care
Peterborough,http://opendatacommunities.org/id/unitary-authority/peterborough,Peterborough City Council,Development and Construction,Development Management,Services,01/06/2016 00:00,30077202,913,Revenue,Johnston Press Midlands Division,Advertising
Peterborough,http://opendatacommunities.org/id/unitary-authority/peterborough,Peterborough City Council,Education,Pupil Referral Unit,Grounds Maintenance,01/06/2016 00:00,30077223,630,Revenue,Sovereign Landscapes,Grounds Maintenance
Peterborough,http://opendatacommunities.org/id/unitary-authority/peterborough,Peterborough City Council,Adult Services & Communities - Adults,Independent Sector Placements,Services,01/06/2016 00:00,30077224,684.25,Revenue,Homecare Solutions,Home Care
Peterborough,http://opendatacommunities.org/id/unitary-authority/peterborough,Peterborough City Council,Adult Services & Communities - Adults,Independent Sector Placements,Services,01/06/2016 00:00,30077225,6674.4,Revenue,Homecare Solutions,Home Care
Peterborough,http://opendatacommunities.org/id/unitary-authority/peterborough,Peterborough City Council,Adult Services & Communities - Adults,Independent Sector Placements,Services,01/06/2016 00:00,30077226,6674.4,Revenue,Homecare Solutions,Home Care
Peterborough,http://opendatacommunities.org/id/unitary-authority/peterborough,Peterborough City Council,Adult Services & Communities - Adults,Independent Sector Placements,Services,01/06/2016 00:00,30077227,6674.4,Revenue,Homecare Solutions,Home Care
Peterborough,http://opendatacommunities.org/id/unitary-authority/peterborough,Peterborough City Council,Adult Services & Communities - Adults,Independent Sector Placements,Services,01/06/2016 00:00,30077228,6674.4,Revenue,Homecare Solutions,Home Care
Peterborough,http://opendatacommunities.org/id/unitary-authority/peterborough,Peterborough City Council,Adult Services & Communities - Adults,Independent Sector Placements,Services,01/06/2016 00:00,30077229,6674.4,Revenue,Homecare Solutions,Home Care
Peterborough,http://opendatacommunities.org/id/unitary-authority/peterborough,Peterborough City Council,City Servs & Communications,Marketing & Communications,Services,01/06/2016 00:00,30077230,837.5,Revenue,Liberty Services Ltd,Printing
Peterborough,http://opendatacommunities.org/id/unitary-authority/peterborough,Peterborough City Council,Adults and Communities - Communities,Housing and Health,Services,01/06/2016 00:00,30077231,44166.66,Revenue,Axiom Housing Association,Grant-Third Party
Peterborough,http://opendatacommunities.org/id/unitary-authority/peterborough,Peterborough City Council,Corporate,Corporate,Non Revenue,01/06/2016 00:00,30077232,854.71,Capital,Garfield Builders Ltd,Building And Site Works
Peterborough,http://opendatacommunities.org/id/unitary-authority/peterborough,Peterborough City Council,Adult Services & Communities - Adults,Independent Sector Placements,Services,01/06/2016 00:00,30077233,6674.4,Revenue,Homecare Solutions,Home Care
Peterborough,http://opendatacommunities.org/id/unitary-authority/peterborough,Peterborough City Council,Adult Services & Communities - Adults,Independent Sector Placements,Services,01/06/2016 00:00,30077234,6674.4,Revenue,Homecare Solutions,Home Care
Peterborough,http://opendatacommunities.org/id/unitary-authority/peterborough,Peterborough City Council,Education,Pupil Referral Unit,Agency Staff,01/06/2016 00:00,30077235,1598.2,Revenue,Vision for Education Ltd,Supply Teachers
Peterborough,http://opendatacommunities.org/id/unitary-authority/peterborough,Peterborough City Council,Adult Services & Communities - Adults,Independent Sector Placements,Services,01/06/2016 00:00,30077236,6674.4,Revenue,Homecare Solutions,Home Care
Peterborough,http://opendatacommunities.org/id/unitary-authority/peterborough,Peterborough City Council,Education,Pupil Referral Unit,Agency Staff,01/06/2016 00:00,30077237,3070,Revenue,Vision for Education Ltd,Supply Teachers
Peterborough,http://opendatacommunities.org/id/unitary-authority/peterborough,Peterborough City Council,Adult Services & Communities - Adults,Independent Sector Placements,Services,01/06/2016 00:00,30077239,6674.4,Revenue,Homecare Solutions,Home Care
Peterborough,http://opendatacommunities.org/id/unitary-authority/peterborough,Peterborough City Council,Adult Services & Communities - Adults,Independent Sector Placements,Services,01/06/2016 00:00,30077240,3574.2,Revenue,Homecare Solutions,Home Care
Peterborough,http://opendatacommunities.org/id/unitary-authority/peterborough,Peterborough City Council,Adult Services & Communities - Adults,Independent Sector Placements,Services,01/06/2016 00:00,30077241,3574.2,Revenue,Homecare Solutions,Home Care
Peterborough,http://opendatacommunities.org/id/unitary-authority/peterborough,Peterborough City Council,Adult Services & Communities - Adults,Independent Sector Placements,Services,01/06/2016 00:00,30077242,3574.2,Revenue,Homecare Solutions,Home Care
Peterborough,http://opendatacommunities.org/id/unitary-authority/peterborough,Peterborough City Council,Vivacity/Cultural Services,Cultural Services,Energy Costs,01/06/2016 00:00,30077244,6905.22,Revenue,Corona Energy Retail 4 Limited,Gas
Peterborough,http://opendatacommunities.org/id/unitary-authority/peterborough,Peterborough City Council,"Cemeteries, Cremation & Registrars",Bereavement Service,Energy Costs,01/06/2016 00:00,30077244,2316.37,Revenue,Corona Energy Retail 4 Limited,Gas
Peterborough,http://opendatacommunities.org/id/unitary-authority/peterborough,Peterborough City Council,Vivacity/Cultural Services,Cultural Services,Energy Costs,01/06/2016 00:00,30077244,2432.45,Revenue,Corona Energy Retail 4 Limited,Gas
Peterborough,http://opendatacommunities.org/id/unitary-authority/peterborough,Peterborough City Council,Corporate Property,Strategic Projects,Energy Costs,01/06/2016 00:00,30077244,679.17,Revenue,Corona Energy Retail 4 Limited,Gas
Peterborough,http://opendatacommunities.org/id/unitary-authority/peterborough,Peterborough City Council,Adult Services & Communities - Adults,Independent Sector Placements,Services,01/06/2016 00:00,30077248,1301.34,Revenue,THE TUDORS,Residential Care
Peterborough,http://opendatacommunities.org/id/unitary-authority/peterborough,Peterborough City Council,Adult Services & Communities - Adults,Independent Sector Placements,Services,01/06/2016 00:00,30077250,1821.88,Revenue,THE TUDORS,Residential Care
Peterborough,http://opendatacommunities.org/id/unitary-authority/peterborough,Peterborough City Council,Adult Services & Communities - Adults,Independent Sector Placements,Services,01/06/2016 00:00,30077251,1821.88,Revenue,THE TUDORS,Residential Care
Peterborough,http://opendatacommunities.org/id/unitary-authority/peterborough,Peterborough City Council,Business Management and Commercial Operations,Commissioning,Water Services,01/06/2016 00:00,30077252,727.72,Revenue,Anglian Water,Water
Peterborough,http://opendatacommunities.org/id/unitary-authority/peterborough,Peterborough City Council,Adult Services & Communities - Adults,Independent Sector Placements,Services,01/06/2016 00:00,30077253,1821.88,Revenue,THE TUDORS,Residential Care
Peterborough,http://opendatacommunities.org/id/unitary-authority/peterborough,Peterborough City Council,Adult Services & Communities - Adults,Independent Sector Placements,Services,01/06/2016 00:00,30077254,1366.41,Revenue,THE TUDORS,Residential Care
Peterborough,http://opendatacommunities.org/id/unitary-authority/peterborough,Peterborough City Council,Adult Services & Communities - Adults,Independent Sector Placements,Services,01/06/2016 00:00,30077256,1821.88,Revenue,THE TUDORS,Residential Care
Peterborough,http://opendatacommunities.org/id/unitary-authority/peterborough,Peterborough City Council,Adult Services & Communities - Adults,Independent Sector Placements,Services,01/06/2016 00:00,30077257,1576.24,Revenue,THE TUDORS,Residential Care
Peterborough,http://opendatacommunities.org/id/unitary-authority/peterborough,Peterborough City Council,Vivacity/Cultural Services,Cultural Services,Water Services,01/06/2016 00:00,30077258,6750.41,Revenue,Anglian Water,Water
Peterborough,http://opendatacommunities.org/id/unitary-authority/peterborough,Peterborough City Council,Adults and Communities - Communities,Housing and Health,Water Services,01/06/2016 00:00,30077258,1227.73,Revenue,Anglian Water,Water
Peterborough,http://opendatacommunities.org/id/unitary-authority/peterborough,Peterborough City Council,Corporate Property,Commercial Propety,Water Services,01/06/2016 00:00,30077258,1149.35,Revenue,Anglian Water,Water
Peterborough,http://opendatacommunities.org/id/unitary-authority/peterborough,Peterborough City Council,Adult Services & Communities - Adults,Independent Sector Placements,Services,01/06/2016 00:00,30077259,1561.61,Revenue,THE TUDORS,Residential Care
Peterborough,http://opendatacommunities.org/id/unitary-authority/peterborough,Peterborough City Council,Adult Services & Communities - Adults,Independent Sector Placements,Services,01/06/2016 00:00,30077260,1576.24,Revenue,THE TUDORS,Residential Care
Peterborough,http://opendatacommunities.org/id/unitary-authority/peterborough,Peterborough City Council,Adult Services & Communities - Adults,Independent Sector Placements,Services,01/06/2016 00:00,30077261,1822.28,Revenue,THE TUDORS,Residential Care
Peterborough,http://opendatacommunities.org/id/unitary-authority/peterborough,Peterborough City Council,Adult Services & Communities - Adults,Independent Sector Placements,Services,01/06/2016 00:00,30077263,1886.95,Revenue,THE TUDORS,Residential Care
Peterborough,http://opendatacommunities.org/id/unitary-authority/peterborough,Peterborough City Council,Adult Services & Communities - Adults,Independent Sector Placements,Services,01/06/2016 00:00,30077265,1407.36,Revenue,THE TUDORS,Residential Care
Peterborough,http://opendatacommunities.org/id/unitary-authority/peterborough,Peterborough City Council,Adult Services & Communities - Adults,Independent Sector Placements,Services,01/06/2016 00:00,30077266,1407.36,Revenue,THE TUDORS,Residential Care
Peterborough,http://opendatacommunities.org/id/unitary-authority/peterborough,Peterborough City Council,Education,Pupil Referral Unit,Services,01/06/2016 00:00,30077281,600,Revenue,"Cooke, Mr T C & CA",Courses And Seminars
Peterborough,http://opendatacommunities.org/id/unitary-authority/peterborough,Peterborough City Council,Education,Pupil Referral Unit,Catering,01/06/2016 00:00,30077284,516.25,Revenue,The Pantry.,Catering Provisions
Peterborough,http://opendatacommunities.org/id/unitary-authority/peterborough,Peterborough City Council,Peterborough Highway Services,Network and Traffic Management,Services,01/06/2016 00:00,30077300,748.83,Revenue,Johnston Press Midlands Division,Advertising
Peterborough,http://opendatacommunities.org/id/unitary-authority/peterborough,Peterborough City Council,Development and Construction,Development Management,Services,01/06/2016 00:00,30077301,622.5,Revenue,Johnston Press Midlands Division,Advertising
Peterborough,http://opendatacommunities.org/id/unitary-authority/peterborough,Peterborough City Council,Peterborough Highway Services,Network and Traffic Management,Services,01/06/2016 00:00,30077307,582.42,Revenue,Johnston Press Midlands Division,Advertising
Peterborough,http://opendatacommunities.org/id/unitary-authority/peterborough,Peterborough City Council,Adult Services & Communities - Adults,Independent Sector Placements,Services,01/06/2016 00:00,30077308,4054.4,Revenue,Voyage,Home Care
Peterborough,http://opendatacommunities.org/id/unitary-authority/peterborough,Peterborough City Council,Adult Services & Communities - Adults,Independent Sector Placements,Services,01/06/2016 00:00,30077309,3083.2,Revenue,Voyage,Home Care
Peterborough,http://opendatacommunities.org/id/unitary-authority/peterborough,Peterborough City Council,Adult Services & Communities - Adults,Independent Sector Placements,Services,01/06/2016 00:00,30077310,3368,Revenue,Voyage,Home Care
Peterborough,http://opendatacommunities.org/id/unitary-authority/peterborough,Peterborough City Council,Adult Services & Communities - Adults,Independent Sector Placements,Services,01/06/2016 00:00,30077311,5110.4,Revenue,Voyage,Home Care
Peterborough,http://opendatacommunities.org/id/unitary-authority/peterborough,Peterborough City Council,Adult Services & Communities - Adults,Independent Sector Placements,Services,01/06/2016 00:00,30077312,4318.4,Revenue,Voyage,Home Care
Peterborough,http://opendatacommunities.org/id/unitary-authority/peterborough,Peterborough City Council,Adult Services & Communities - Adults,Independent Sector Placements,Services,01/06/2016 00:00,30077313,3875.2,Revenue,Voyage,Home Care
Peterborough,http://opendatacommunities.org/id/unitary-authority/peterborough,Peterborough City Council,Adult Services & Communities - Adults,Independent Sector Placements,Services,01/06/2016 00:00,30077314,2990.04,Revenue,Voyage,Home Care
Peterborough,http://opendatacommunities.org/id/unitary-authority/peterborough,Peterborough City Council,Adult Services & Communities - Adults,Independent Sector Placements,Services,01/06/2016 00:00,30077315,4265.6,Revenue,Voyage,Home Care
Peterborough,http://opendatacommunities.org/id/unitary-authority/peterborough,Peterborough City Council,Adult Services & Communities - Adults,Independent Sector Placements,Services,01/06/2016 00:00,30077316,3496.44,Revenue,Voyage,Home Care
Peterborough,http://opendatacommunities.org/id/unitary-authority/peterborough,Peterborough City Council,Adult Services & Communities - Adults,Independent Sector Placements,Services,01/06/2016 00:00,30077317,3875.2,Revenue,Voyage,Home Care
Peterborough,http://opendatacommunities.org/id/unitary-authority/peterborough,Peterborough City Council,Adult Services & Communities - Adults,Independent Sector Placements,Services,01/06/2016 00:00,30077318,6125.84,Revenue,Voyage,Home Care
Peterborough,http://opendatacommunities.org/id/unitary-authority/peterborough,Peterborough City Council,Adult Services & Communities - Adults,Independent Sector Placements,Services,01/06/2016 00:00,30077319,-12058.06,Revenue,Voyage,Home Care
Peterborough,http://opendatacommunities.org/id/unitary-authority/peterborough,Peterborough City Council,Adult Services & Communities - Adults,Independent Sector Placements,Services,01/06/2016 00:00,30077321,-917.4,Revenue,Voyage,Home Care
Peterborough,http://opendatacommunities.org/id/unitary-authority/peterborough,Peterborough City Council,Adult Services & Communities - Adults,Independent Sector Placements,Services,01/06/2016 00:00,30077322,1507.52,Revenue,Voyage,Home Care
Peterborough,http://opendatacommunities.org/id/unitary-authority/peterborough,Peterborough City Council,Adult Services & Communities - Adults,Independent Sector Placements,Services,01/06/2016 00:00,30077327,1303.48,Revenue,Maxey House Res Home,Residential Care
Peterborough,http://opendatacommunities.org/id/unitary-authority/peterborough,Peterborough City Council,Adult Services & Communities - Adults,Independent Sector Placements,Services,01/06/2016 00:00,30077328,1262.44,Revenue,Maxey House Res Home,Residential Care
Peterborough,http://opendatacommunities.org/id/unitary-authority/peterborough,Peterborough City Council,Adult Services & Communities - Adults,Independent Sector Placements,Services,01/06/2016 00:00,30077329,1123.68,Revenue,Maxey House Res Home,Residential Care
Peterborough,http://opendatacommunities.org/id/unitary-authority/peterborough,Peterborough City Council,Adult Services & Communities - Adults,Independent Sector Placements,Services,01/06/2016 00:00,30077330,1316.68,Revenue,Maxey House Res Home,Residential Care
Peterborough,http://opendatacommunities.org/id/unitary-authority/peterborough,Peterborough City Council,Adult Services & Communities - Adults,Independent Sector Placements,Services,01/06/2016 00:00,30077331,981.18,Revenue,Maxey House Res Home,Residential Care
Peterborough,http://opendatacommunities.org/id/unitary-authority/peterborough,Peterborough City Council,Adult Services & Communities - Adults,Independent Sector Placements,Services,01/06/2016 00:00,30077332,957,Revenue,Maxey House Res Home,Residential Care
Peterborough,http://opendatacommunities.org/id/unitary-authority/peterborough,Peterborough City Council,Adult Services & Communities - Adults,Independent Sector Placements,Services,01/06/2016 00:00,30077333,1252.42,Revenue,Maxey House Res Home,Residential Care
Peterborough,http://opendatacommunities.org/id/unitary-authority/peterborough,Peterborough City Council,Adult Services & Communities - Adults,Independent Sector Placements,Services,01/06/2016 00:00,30077334,1087.72,Revenue,Runwood Homes Ltd,Residential Care
Peterborough,http://opendatacommunities.org/id/unitary-authority/peterborough,Peterborough City Council,Adult Services & Communities - Adults,Independent Sector Placements,Services,01/06/2016 00:00,30077335,1576.24,Revenue,Maxey House Res Home,Residential Care
Peterborough,http://opendatacommunities.org/id/unitary-authority/peterborough,Peterborough City Council,Adult Services & Communities - Adults,Independent Sector Placements,Services,01/06/2016 00:00,30077336,1303.48,Revenue,Maxey House Res Home,Residential Care
Peterborough,http://opendatacommunities.org/id/unitary-authority/peterborough,Peterborough City Council,Adult Services & Communities - Adults,Independent Sector Placements,Services,01/06/2016 00:00,30077337,5686.8,Revenue,WYCAR LEYS,Residential Care
Peterborough,http://opendatacommunities.org/id/unitary-authority/peterborough,Peterborough City Council,Adult Services & Communities - Adults,Independent Sector Placements,Services,01/06/2016 00:00,30077338,1057.84,Revenue,Maxey House Res Home,Residential Care
Peterborough,http://opendatacommunities.org/id/unitary-authority/peterborough,Peterborough City Council,Adult Services & Communities - Adults,Independent Sector Placements,Services,01/06/2016 00:00,30077339,1303.48,Revenue,Maxey House Res Home,Residential Care
Peterborough,http://opendatacommunities.org/id/unitary-authority/peterborough,Peterborough City Council,Adult Services & Communities - Adults,Independent Sector Placements,Services,01/06/2016 00:00,30077340,1999.8,Revenue,RUNWOOD HOMES,Residential Care
Peterborough,http://opendatacommunities.org/id/unitary-authority/peterborough,Peterborough City Council,Adult Services & Communities - Adults,Independent Sector Placements,Services,01/06/2016 00:00,30077341,2100.76,Revenue,Ashmere,Residential Care
Peterborough,http://opendatacommunities.org/id/unitary-authority/peterborough,Peterborough City Council,Adult Services & Communities - Adults,Independent Sector Placements,Services,01/06/2016 00:00,30077343,1941.21,Revenue,Cambridgeshire County Council,Day Care
Peterborough,http://opendatacommunities.org/id/unitary-authority/peterborough,Peterborough City Council,Adult Services & Communities - Adults,Independent Sector Placements,Services,01/06/2016 00:00,30077360,1952.01,Revenue,THE TUDORS,Residential Care
Peterborough,http://opendatacommunities.org/id/unitary-authority/peterborough,Peterborough City Council,Adult Services & Communities - Adults,Independent Sector Placements,Services,01/06/2016 00:00,30077361,1821.88,Revenue,THE TUDORS,Residential Care
Peterborough,http://opendatacommunities.org/id/unitary-authority/peterborough,Peterborough City Council,Adult Services & Communities - Adults,Independent Sector Placements,Services,01/06/2016 00:00,30077363,1576.24,Revenue,THE TUDORS,Residential Care
Peterborough,http://opendatacommunities.org/id/unitary-authority/peterborough,Peterborough City Council,Adult Services & Communities - Adults,Independent Sector Placements,Services,01/06/2016 00:00,30077364,1576.24,Revenue,THE TUDORS,Residential Care
Peterborough,http://opendatacommunities.org/id/unitary-authority/peterborough,Peterborough City Council,Legal & Democratic,Legal Services,Agency Staff,01/06/2016 00:00,30077366,1591,Revenue,Venn Group Ltd,External Temporary Staff
Peterborough,http://opendatacommunities.org/id/unitary-authority/peterborough,Peterborough City Council,Education,Pupil Referral Unit,Agency Staff,01/06/2016 00:00,30077367,1722,Revenue,Vision for Education Ltd,Supply Teachers
Peterborough,http://opendatacommunities.org/id/unitary-authority/peterborough,Peterborough City Council,"Cemeteries, Cremation & Registrars",Bereavement Service,Services,01/06/2016 00:00,30077368,613.52,Revenue,Yaboo Company Ltd T/a Wesley Music,Hired Services
Peterborough,http://opendatacommunities.org/id/unitary-authority/peterborough,Peterborough City Council,Education,Pupil Referral Unit,Catering,01/06/2016 00:00,30077369,604.25,Revenue,The Pantry.,Catering Provisions
Peterborough,http://opendatacommunities.org/id/unitary-authority/peterborough,Peterborough City Council,City Servs & Communications,Regulatory Services,Services,01/06/2016 00:00,30077372,1863.84,Revenue,VIP-System Ltd,Equipment Purchase
Peterborough,http://opendatacommunities.org/id/unitary-authority/peterborough,Peterborough City Council,Children's & Safeguarding,Access to Resources & Specialist Commissioning,Services,01/06/2016 00:00,30077373,3407.7,Revenue,Tree House Care Fostering Solutions Ltd,Boarding Out Allowances
Peterborough,http://opendatacommunities.org/id/unitary-authority/peterborough,Peterborough City Council,Children's & Safeguarding,Access to Resources & Specialist Commissioning,Services,01/06/2016 00:00,30077374,3407.7,Revenue,Tree House Care Fostering Solutions Ltd,Boarding Out Allowances
Peterborough,http://opendatacommunities.org/id/unitary-authority/peterborough,Peterborough City Council,Adult Services & Communities - Adults,Independent Sector Placements,Services,01/06/2016 00:00,30077377,1490.16,Revenue,STAR RESIDENTIAL HOME LTD,Residential Care
Peterborough,http://opendatacommunities.org/id/unitary-authority/peterborough,Peterborough City Council,Adult Services & Communities - Adults,Independent Sector Placements,Services,01/06/2016 00:00,30077378,2521.68,Revenue,STAR RESIDENTIAL HOME LTD,Residential Care
Peterborough,http://opendatacommunities.org/id/unitary-authority/peterborough,Peterborough City Council,Adult Services & Communities - Adults,Independent Sector Placements,Services,01/06/2016 00:00,30077379,1606.08,Revenue,STAR RESIDENTIAL HOME LTD,Residential Care
Peterborough,http://opendatacommunities.org/id/unitary-authority/peterborough,Peterborough City Council,Adult Services & Communities - Adults,Independent Sector Placements,Services,01/06/2016 00:00,30077380,2217.6,Revenue,STAR RESIDENTIAL HOME LTD,Residential Care
Peterborough,http://opendatacommunities.org/id/unitary-authority/peterborough,Peterborough City Council,Adult Services & Communities - Adults,Independent Sector Placements,Services,01/06/2016 00:00,30077381,2330.16,Revenue,STAR RESIDENTIAL HOME LTD,Residential Care
Peterborough,http://opendatacommunities.org/id/unitary-authority/peterborough,Peterborough City Council,Adult Services & Communities - Adults,Independent Sector Placements,Services,01/06/2016 00:00,30077382,1524,Revenue,STAR RESIDENTIAL HOME LTD,Residential Care
Peterborough,http://opendatacommunities.org/id/unitary-authority/peterborough,Peterborough City Council,Adult Services & Communities - Adults,Independent Sector Placements,Services,01/06/2016 00:00,30077383,762,Revenue,STAR RESIDENTIAL HOME LTD,Residential Care
Peterborough,http://opendatacommunities.org/id/unitary-authority/peterborough,Peterborough City Council,Adult Services & Communities - Adults,Independent Sector Placements,Services,01/06/2016 00:00,30077384,595.64,Revenue,BROADLEIGH NURSING HOME,Residential Care
Peterborough,http://opendatacommunities.org/id/unitary-authority/peterborough,Peterborough City Council,Adult Services & Communities - Adults,Independent Sector Placements,Services,01/06/2016 00:00,30077385,2600,Revenue,BROADLEIGH NURSING HOME,Residential Care
Peterborough,http://opendatacommunities.org/id/unitary-authority/peterborough,Peterborough City Council,Adult Services & Communities - Adults,Independent Sector Placements,Services,01/06/2016 00:00,30077386,1994.6,Revenue,BROADLEIGH NURSING HOME,Residential Care
Peterborough,http://opendatacommunities.org/id/unitary-authority/peterborough,Peterborough City Council,Adult Services & Communities - Adults,Independent Sector Placements,Services,01/06/2016 00:00,30077387,1616.4,Revenue,BROADLEIGH NURSING HOME,Residential Care
Peterborough,http://opendatacommunities.org/id/unitary-authority/peterborough,Peterborough City Council,Adult Services & Communities - Adults,Independent Sector Placements,Services,01/06/2016 00:00,30077388,1623.72,Revenue,BROADLEIGH NURSING HOME,Residential Care
Peterborough,http://opendatacommunities.org/id/unitary-authority/peterborough,Peterborough City Council,Adult Services & Communities - Adults,Independent Sector Placements,Services,01/06/2016 00:00,30077389,945,Revenue,BROADLEIGH NURSING HOME,Residential Care
Peterborough,http://opendatacommunities.org/id/unitary-authority/peterborough,Peterborough City Council,Adult Services & Communities - Adults,Independent Sector Placements,Services,01/06/2016 00:00,30077397,1680,Revenue,EXCELCARE GLENNFIELD HOUSE,Residential Care
Peterborough,http://opendatacommunities.org/id/unitary-authority/peterborough,Peterborough City Council,Adult Services & Communities - Adults,Independent Sector Placements,Services,01/06/2016 00:00,30077398,3400,Revenue,EXCELCARE GLENNFIELD HOUSE,Residential Care
Peterborough,http://opendatacommunities.org/id/unitary-authority/peterborough,Peterborough City Council,Adult Services & Communities - Adults,Independent Sector Placements,Services,01/06/2016 00:00,30077399,3400,Revenue,EXCELCARE GLENNFIELD HOUSE,Residential Care
Peterborough,http://opendatacommunities.org/id/unitary-authority/peterborough,Peterborough City Council,Adult Services & Communities - Adults,Independent Sector Placements,Services,01/06/2016 00:00,30077400,3200,Revenue,EXCELCARE GLENNFIELD HOUSE,Residential Care
Peterborough,http://opendatacommunities.org/id/unitary-authority/peterborough,Peterborough City Council,Adult Services & Communities - Adults,Independent Sector Placements,Services,01/06/2016 00:00,30077405,3400,Revenue,EXCELCARE GLENNFIELD HOUSE,Residential Care
Peterborough,http://opendatacommunities.org/id/unitary-authority/peterborough,Peterborough City Council,Adult Services & Communities - Adults,Independent Sector Placements,Services,01/06/2016 00:00,30077406,3400,Revenue,EXCELCARE GLENNFIELD HOUSE,Residential Care
Peterborough,http://opendatacommunities.org/id/unitary-authority/peterborough,Peterborough City Council,Adult Services & Communities - Adults,Independent Sector Placements,Services,01/06/2016 00:00,30077407,3400,Revenue,EXCELCARE GLENNFIELD HOUSE,Residential Care
Peterborough,http://opendatacommunities.org/id/unitary-authority/peterborough,Peterborough City Council,Adult Services & Communities - Adults,Independent Sector Placements,Services,01/06/2016 00:00,30077408,3400,Revenue,EXCELCARE GLENNFIELD HOUSE,Residential Care
Peterborough,http://opendatacommunities.org/id/unitary-authority/peterborough,Peterborough City Council,Adult Services & Communities - Adults,Independent Sector Placements,Services,01/06/2016 00:00,30077409,1694.8,Revenue,LAVENDER HOUSE RESIDENTIAL HOME,Residential Care
Peterborough,http://opendatacommunities.org/id/unitary-authority/peterborough,Peterborough City Council,Adult Services & Communities - Adults,Independent Sector Placements,Services,01/06/2016 00:00,30077410,697.53,Revenue,LAVENDER HOUSE RESIDENTIAL HOME,Residential Care
Peterborough,http://opendatacommunities.org/id/unitary-authority/peterborough,Peterborough City Council,Adult Services & Communities - Adults,Independent Sector Placements,Services,01/06/2016 00:00,30077411,626.75,Revenue,LAVENDER HOUSE RESIDENTIAL HOME,Residential Care
Peterborough,http://opendatacommunities.org/id/unitary-authority/peterborough,Peterborough City Council,Adult Services & Communities - Adults,Independent Sector Placements,Services,01/06/2016 00:00,30077414,2121.43,Revenue,LAVENDER HOUSE RESIDENTIAL HOME,Residential Care
Peterborough,http://opendatacommunities.org/id/unitary-authority/peterborough,Peterborough City Council,Adult Services & Communities - Adults,Independent Sector Placements,Services,01/06/2016 00:00,30077415,1777.56,Revenue,LAVENDER HOUSE RESIDENTIAL HOME,Residential Care
Peterborough,http://opendatacommunities.org/id/unitary-authority/peterborough,Peterborough City Council,Adult Services & Communities - Adults,Independent Sector Placements,Services,01/06/2016 00:00,30077416,822.84,Revenue,LAVENDER HOUSE RESIDENTIAL HOME,Residential Care
Peterborough,http://opendatacommunities.org/id/unitary-authority/peterborough,Peterborough City Council,Adult Services & Communities - Adults,Independent Sector Placements,Services,01/06/2016 00:00,30077417,712.28,Revenue,LAVENDER HOUSE RESIDENTIAL HOME,Residential Care
Peterborough,http://opendatacommunities.org/id/unitary-authority/peterborough,Peterborough City Council,Adult Services & Communities - Adults,Independent Sector Placements,Services,01/06/2016 00:00,30077418,1350,Revenue,LAVENDER HOUSE RESIDENTIAL HOME,Residential Care
Peterborough,http://opendatacommunities.org/id/unitary-authority/peterborough,Peterborough City Council,Adult Services & Communities - Adults,Independent Sector Placements,Services,01/06/2016 00:00,30077448,506,Revenue,Goldhay Arts,Day Care
Peterborough,http://opendatacommunities.org/id/unitary-authority/peterborough,Peterborough City Council,Adult Services & Communities - Adults,Independent Sector Placements,Services,01/06/2016 00:00,30077453,666,Revenue,Goldhay Arts,Day Care
Peterborough,http://opendatacommunities.org/id/unitary-authority/peterborough,Peterborough City Council,Adult Services & Communities - Adults,Independent Sector Placements,Services,01/06/2016 00:00,30077458,566,Revenue,Goldhay Arts,Day Care
Peterborough,http://opendatacommunities.org/id/unitary-authority/peterborough,Peterborough City Council,Adult Services & Communities - Adults,Independent Sector Placements,Services,01/06/2016 00:00,30077459,630,Revenue,Goldhay Arts,Day Care
Peterborough,http://opendatacommunities.org/id/unitary-authority/peterborough,Peterborough City Council,Adult Services & Communities - Adults,Independent Sector Placements,Services,01/06/2016 00:00,30077464,1240,Revenue,OAKHOUSE HOMECARE LTD,Residential Care
Peterborough,http://opendatacommunities.org/id/unitary-authority/peterborough,Peterborough City Council,Adult Services & Communities - Adults,Independent Sector Placements,Services,01/06/2016 00:00,30077465,1172.68,Revenue,OAKHOUSE HOMECARE LTD,Residential Care
Peterborough,http://opendatacommunities.org/id/unitary-authority/peterborough,Peterborough City Council,Adult Services & Communities - Adults,Independent Sector Placements,Services,01/06/2016 00:00,30077466,1024.04,Revenue,OAKHOUSE HOMECARE LTD,Residential Care
Peterborough,http://opendatacommunities.org/id/unitary-authority/peterborough,Peterborough City Council,Adult Services & Communities - Adults,Independent Sector Placements,Services,01/06/2016 00:00,30077468,652.52,Revenue,Sense,Day Care
Peterborough,http://opendatacommunities.org/id/unitary-authority/peterborough,Peterborough City Council,Adult Services & Communities - Adults,Independent Sector Placements,Services,01/06/2016 00:00,30077469,1030.57,Revenue,Sense,Day Care
Peterborough,http://opendatacommunities.org/id/unitary-authority/peterborough,Peterborough City Council,Adult Services & Communities - Adults,Independent Sector Placements,Services,01/06/2016 00:00,30077473,8940.6,Revenue,Sense,Residential Care
Peterborough,http://opendatacommunities.org/id/unitary-authority/peterborough,Peterborough City Council,Adult Services & Communities - Adults,Independent Sector Placements,Services,01/06/2016 00:00,30077474,8538.4,Revenue,Sense,Residential Care
Peterborough,http://opendatacommunities.org/id/unitary-authority/peterborough,Peterborough City Council,Adult Services & Communities - Adults,Independent Sector Placements,Services,01/06/2016 00:00,30077475,5234.6,Revenue,Sense,Residential Care
Peterborough,http://opendatacommunities.org/id/unitary-authority/peterborough,Peterborough City Council,Adult Services & Communities - Adults,Independent Sector Placements,Services,01/06/2016 00:00,30077476,6599.4,Revenue,Sense,Residential Care
Peterborough,http://opendatacommunities.org/id/unitary-authority/peterborough,Peterborough City Council,Adult Services & Communities - Adults,Independent Sector Placements,Services,01/06/2016 00:00,30077477,5722.32,Revenue,Sense,Residential Care
Peterborough,http://opendatacommunities.org/id/unitary-authority/peterborough,Peterborough City Council,Adult Services & Communities - Adults,Independent Sector Placements,Services,01/06/2016 00:00,30077478,607.5,Revenue,Sahara Community Care Services,Home Care
Peterborough,http://opendatacommunities.org/id/unitary-authority/peterborough,Peterborough City Council,Adult Services & Communities - Adults,Independent Sector Placements,Services,01/06/2016 00:00,30077485,827.12,Revenue,Sahara Community Care Services,Home Care
Peterborough,http://opendatacommunities.org/id/unitary-authority/peterborough,Peterborough City Council,Adult Services & Communities - Adults,Independent Sector Placements,Services,01/06/2016 00:00,30077486,796.28,Revenue,Sahara Community Care Services,Home Care
Peterborough,http://opendatacommunities.org/id/unitary-authority/peterborough,Peterborough City Council,Adult Services & Communities - Adults,Independent Sector Placements,Services,01/06/2016 00:00,30077487,799.46,Revenue,Sahara Community Care Services,Home Care
Peterborough,http://opendatacommunities.org/id/unitary-authority/peterborough,Peterborough City Council,Vivacity/Cultural Services,Cultural Services,Services,01/06/2016 00:00,30077505,5910,Revenue,T Corfield Music Services,Hired Services
Peterborough,http://opendatacommunities.org/id/unitary-authority/peterborough,Peterborough City Council,Westcombe Engineering,Westcombe Engineering,"Tools, Equipment, Furniture & Materials",01/06/2016 00:00,30077513,83500,Revenue,Craig Strong Machine Tools Ltd,Furniture And Equipment Purchase
Peterborough,http://opendatacommunities.org/id/unitary-authority/peterborough,Peterborough City Council,Westcombe Engineering,Westcombe Engineering,"Tools, Equipment, Furniture & Materials",01/06/2016 00:00,30077514,37280,Revenue,RMS Engineers LTD,Furniture And Equipment Purchase
Peterborough,http://opendatacommunities.org/id/unitary-authority/peterborough,Peterborough City Council,Children's & Safeguarding,Access to Resources & Specialist Commissioning,Services,01/06/2016 00:00,30077515,14785.71,Revenue,Meadows Care Ltd,Boarding Out Allowances
Peterborough,http://opendatacommunities.org/id/unitary-authority/peterborough,Peterborough City Council,Children's & Safeguarding,Access to Resources & Specialist Commissioning,Services,01/06/2016 00:00,30077516,12578.57,Revenue,Meadows Care Ltd,Boarding Out Allowances
Peterborough,http://opendatacommunities.org/id/unitary-authority/peterborough,Peterborough City Council,Children's & Safeguarding,Access to Resources & Specialist Commissioning,Services,01/06/2016 00:00,30077517,14785.71,Revenue,Meadows Care Ltd,Boarding Out Allowances
Peterborough,http://opendatacommunities.org/id/unitary-authority/peterborough,Peterborough City Council,Children's & Safeguarding,Access to Resources & Specialist Commissioning,Services,01/06/2016 00:00,30077520,15278.57,Revenue,Meadows Care Ltd,Boarding Out Allowances
Peterborough,http://opendatacommunities.org/id/unitary-authority/peterborough,Peterborough City Council,Corporate,Corporate,Non Revenue,01/06/2016 00:00,30077522,17489.41,Capital,Balfour Beatty Civils Ltd,Infrastructure
Peterborough,http://opendatacommunities.org/id/unitary-authority/peterborough,Peterborough City Council,"Cemeteries, Cremation & Registrars",Registration Service,Repair & Maintenance of Buildings,01/06/2016 00:00,30077533,3245,Revenue,The Lawns(Peterborough) Ltd,Service Charges - Premises
Peterborough,http://opendatacommunities.org/id/unitary-authority/peterborough,Peterborough City Council,"Cemeteries, Cremation & Registrars",Registration Service,Rents,01/06/2016 00:00,30077534,11469,Revenue,The Lawns(Peterborough) Ltd,Rent
Peterborough,http://opendatacommunities.org/id/unitary-authority/peterborough,Peterborough City Council,Adult Services & Communities - Adults,Day Opportunities / In House,Contract Hire and Operating Leases,01/06/2016 00:00,30077575,514,Revenue,A2B Euro Cars,Hired Transport
Peterborough,http://opendatacommunities.org/id/unitary-authority/peterborough,Peterborough City Council,Peterborough Highway Services,Network and Traffic Management,Services,01/06/2016 00:00,30077576,4192.8,Revenue,Cambridgeshire County Council,Real Time Passenger Information
Peterborough,http://opendatacommunities.org/id/unitary-authority/peterborough,Peterborough City Council,Children's & Safeguarding,Access to Resources & Specialist Commissioning,Services,01/06/2016 00:00,30077579,3107.14,Revenue,Sunbeam Fostering,Boarding Out Allowances
Peterborough,http://opendatacommunities.org/id/unitary-authority/peterborough,Peterborough City Council,Children's & Safeguarding,Access to Resources & Specialist Commissioning,Services,01/06/2016 00:00,30077580,3214.29,Revenue,Sunbeam Fostering,Boarding Out Allowances
Peterborough,http://opendatacommunities.org/id/unitary-authority/peterborough,Peterborough City Council,Children's & Safeguarding,Access to Resources & Specialist Commissioning,Services,01/06/2016 00:00,30077582,18316.66,Revenue,Horizon Care,Boarding Out Allowances
Peterborough,http://opendatacommunities.org/id/unitary-authority/peterborough,Peterborough City Council,Children's & Safeguarding,Access to Resources & Specialist Commissioning,Services,01/06/2016 00:00,30077593,4269.13,Revenue,By The Bridge,Boarding Out Allowances
Peterborough,http://opendatacommunities.org/id/unitary-authority/peterborough,Peterborough City Council,Amey Peterborough & Waste Management,Waste Management,Services,01/06/2016 00:00,30077612,11606.28,Revenue,Biogen (UK) Ltd,Recycling
Peterborough,http://opendatacommunities.org/id/unitary-authority/peterborough,Peterborough City Council,Peterborough Highway Services,Transport & Infrastructure Commissioning,Services,01/06/2016 00:00,30077613,672.25,Revenue,Cambridgeshire County Council,Road Safety
Peterborough,http://opendatacommunities.org/id/unitary-authority/peterborough,Peterborough City Council,Adults and Communities - Communities,Housing and Health,Services,01/06/2016 00:00,30077614,2586,Revenue,Cambridgeshire County Council,Road Safety
Peterborough,http://opendatacommunities.org/id/unitary-authority/peterborough,Peterborough City Council,Adult Services & Communities - Adults,Finance,Employers Superannuation Contributions,01/06/2016 00:00,30077615,4300,Revenue,Cambridgeshire County Council,Pensions
Peterborough,http://opendatacommunities.org/id/unitary-authority/peterborough,Peterborough City Council,Children's & Safeguarding,Access to Resources & Specialist Commissioning,Services,01/06/2016 00:00,30077617,5989.51,Revenue,Kasper Fostering,Boarding Out Allowances
Peterborough,http://opendatacommunities.org/id/unitary-authority/peterborough,Peterborough City Council,Children's & Safeguarding,Access to Resources & Specialist Commissioning,Services,01/06/2016 00:00,30077618,3774.87,Revenue,Fosterplus Ltd,Boarding Out Allowances
Peterborough,http://opendatacommunities.org/id/unitary-authority/peterborough,Peterborough City Council,Children's & Safeguarding,Access to Resources & Specialist Commissioning,Services,01/06/2016 00:00,30077619,4441.99,Revenue,Fosterplus Ltd,Boarding Out Allowances
Peterborough,http://opendatacommunities.org/id/unitary-authority/peterborough,Peterborough City Council,Children's & Safeguarding,Access to Resources & Specialist Commissioning,Services,01/06/2016 00:00,30077623,2860.77,Revenue,Fostering Solutions,Boarding Out Allowances
Peterborough,http://opendatacommunities.org/id/unitary-authority/peterborough,Peterborough City Council,Children's & Safeguarding,Access to Resources & Specialist Commissioning,Services,01/06/2016 00:00,30077624,4883.57,Revenue,St Christopher's Fellowship,Boarding Out Allowances
Peterborough,http://opendatacommunities.org/id/unitary-authority/peterborough,Peterborough City Council,Children's & Safeguarding,Access to Resources & Specialist Commissioning,Services,01/06/2016 00:00,30077627,-15500,Revenue,Cambian Childcare Ltd,Boarding Out Allowances
Peterborough,http://opendatacommunities.org/id/unitary-authority/peterborough,Peterborough City Council,Children's & Safeguarding,Access to Resources & Specialist Commissioning,Services,01/06/2016 00:00,30077637,514.28,Revenue,Elite Care Provider,Boarding Out Allowances
Peterborough,http://opendatacommunities.org/id/unitary-authority/peterborough,Peterborough City Council,City Servs & Communications,"Markets, Tourism & Events",Services,01/06/2016 00:00,30077645,795,Revenue,Nabma,Subscriptions
Peterborough,http://opendatacommunities.org/id/unitary-authority/peterborough,Peterborough City Council,Westcombe Engineering,Westcombe Engineering,Services,01/06/2016 00:00,30077648,1245,Revenue,Perkins Engines Co Ltd,Items For Resale
Peterborough,http://opendatacommunities.org/id/unitary-authority/peterborough,Peterborough City Council,Children's & Safeguarding,Children's Social Care,Services,01/06/2016 00:00,30078065,2463.57,Revenue,Sixteen Plus Limited,Financial Assistance
Peterborough,http://opendatacommunities.org/id/unitary-authority/peterborough,Peterborough City Council,Children's & Safeguarding,Access to Resources & Specialist Commissioning,Services,01/06/2016 00:00,8000063991,600,Revenue,Redacted Personal Data,Boarding Out Allowances
Peterborough,http://opendatacommunities.org/id/unitary-authority/peterborough,Peterborough City Council,Children's & Safeguarding,Access to Resources & Specialist Commissioning,Services,01/06/2016 00:00,8000063991,613.6,Revenue,Redacted Personal Data,Boarding Out Allowances
Peterborough,http://opendatacommunities.org/id/unitary-authority/peterborough,Peterborough City Council,Children's & Safeguarding,Access to Resources & Specialist Commissioning,Services,01/06/2016 00:00,8000063991,627.06,Revenue,Redacted Personal Data,Boarding Out Allowances
Peterborough,http://opendatacommunities.org/id/unitary-authority/peterborough,Peterborough City Council,Children's & Safeguarding,Access to Resources & Specialist Commissioning,Services,01/06/2016 00:00,8000063991,627.06,Revenue,Redacted Personal Data,Boarding Out Allowances
Peterborough,http://opendatacommunities.org/id/unitary-authority/peterborough,Peterborough City Council,Children's & Safeguarding,Access to Resources & Specialist Commissioning,Services,01/06/2016 00:00,8000063991,584.08,Revenue,Redacted Personal Data,Boarding Out Allowances
Peterborough,http://opendatacommunities.org/id/unitary-authority/peterborough,Peterborough City Council,Children's & Safeguarding,Access to Resources & Specialist Commissioning,Services,01/06/2016 00:00,8000063991,627.06,Revenue,Redacted Personal Data,Boarding Out Allowances
Peterborough,http://opendatacommunities.org/id/unitary-authority/peterborough,Peterborough City Council,Children's & Safeguarding,Access to Resources & Specialist Commissioning,Services,01/06/2016 00:00,8000063991,584.08,Revenue,Redacted Personal Data,Boarding Out Allowances
Peterborough,http://opendatacommunities.org/id/unitary-authority/peterborough,Peterborough City Council,Children's & Safeguarding,Access to Resources & Specialist Commissioning,Services,01/06/2016 00:00,8000063991,584.08,Revenue,Redacted Personal Data,Boarding Out Allowances
Peterborough,http://opendatacommunities.org/id/unitary-authority/peterborough,Peterborough City Council,Children's & Safeguarding,Access to Resources & Specialist Commissioning,Services,01/06/2016 00:00,8000063991,584.08,Revenue,Redacted Personal Data,Boarding Out Allowances
Peterborough,http://opendatacommunities.org/id/unitary-authority/peterborough,Peterborough City Council,Children's & Safeguarding,Access to Resources & Specialist Commissioning,Services,01/06/2016 00:00,8000063991,527.52,Revenue,Redacted Personal Data,Boarding Out Allowances
Peterborough,http://opendatacommunities.org/id/unitary-authority/peterborough,Peterborough City Council,Children's & Safeguarding,Access to Resources & Specialist Commissioning,Services,01/06/2016 00:00,8000063991,584.08,Revenue,Redacted Personal Data,Boarding Out Allowances
Peterborough,http://opendatacommunities.org/id/unitary-authority/peterborough,Peterborough City Council,Children's & Safeguarding,Access to Resources & Specialist Commissioning,Services,01/06/2016 00:00,8000063991,584.08,Revenue,Redacted Personal Data,Boarding Out Allowances
Peterborough,http://opendatacommunities.org/id/unitary-authority/peterborough,Peterborough City Council,Children's & Safeguarding,Access to Resources & Specialist Commissioning,Services,01/06/2016 00:00,8000063991,527.52,Revenue,Redacted Personal Data,Boarding Out Allowances
Peterborough,http://opendatacommunities.org/id/unitary-authority/peterborough,Peterborough City Council,Children's & Safeguarding,Access to Resources & Specialist Commissioning,Services,01/06/2016 00:00,8000063991,584.08,Revenue,Redacted Personal Data,Boarding Out Allowances
Peterborough,http://opendatacommunities.org/id/unitary-authority/peterborough,Peterborough City Council,Children's & Safeguarding,Access to Resources & Specialist Commissioning,Services,01/06/2016 00:00,8000063991,584.08,Revenue,Redacted Personal Data,Boarding Out Allowances
Peterborough,http://opendatacommunities.org/id/unitary-authority/peterborough,Peterborough City Council,Children's & Safeguarding,Access to Resources & Specialist Commissioning,Services,01/06/2016 00:00,8000063991,584.08,Revenue,Redacted Personal Data,Boarding Out Allowances
Peterborough,http://opendatacommunities.org/id/unitary-authority/peterborough,Peterborough City Council,Children's & Safeguarding,Access to Resources & Specialist Commissioning,Services,01/06/2016 00:00,8000063991,584.08,Revenue,Redacted Personal Data,Boarding Out Allowances
Peterborough,http://opendatacommunities.org/id/unitary-authority/peterborough,Peterborough City Council,Children's & Safeguarding,Access to Resources & Specialist Commissioning,Services,01/06/2016 00:00,8000063991,527.52,Revenue,Redacted Personal Data,Boarding Out Allowances
Peterborough,http://opendatacommunities.org/id/unitary-authority/peterborough,Peterborough City Council,Children's & Safeguarding,Access to Resources & Specialist Commissioning,Services,01/06/2016 00:00,8000063991,527.52,Revenue,Redacted Personal Data,Boarding Out Allowances
Peterborough,http://opendatacommunities.org/id/unitary-authority/peterborough,Peterborough City Council,Children's & Safeguarding,Access to Resources & Specialist Commissioning,Services,01/06/2016 00:00,8000063991,627.06,Revenue,Redacted Personal Data,Boarding Out Allowances
Peterborough,http://opendatacommunities.org/id/unitary-authority/peterborough,Peterborough City Council,Children's & Safeguarding,Access to Resources & Specialist Commissioning,Services,01/06/2016 00:00,8000063991,527.52,Revenue,Redacted Personal Data,Boarding Out Allowances
Peterborough,http://opendatacommunities.org/id/unitary-authority/peterborough,Peterborough City Council,Children's & Safeguarding,Access to Resources & Specialist Commissioning,Services,01/06/2016 00:00,8000063991,691.95,Revenue,Redacted Personal Data,Boarding Out Allowances
Peterborough,http://opendatacommunities.org/id/unitary-authority/peterborough,Peterborough City Council,Children's & Safeguarding,Access to Resources & Specialist Commissioning,Services,01/06/2016 00:00,8000063991,527.52,Revenue,Redacted Personal Data,Boarding Out Allowances
Peterborough,http://opendatacommunities.org/id/unitary-authority/peterborough,Peterborough City Council,Children's & Safeguarding,Access to Resources & Specialist Commissioning,Services,01/06/2016 00:00,8000063991,527.52,Revenue,Redacted Personal Data,Boarding Out Allowances
Peterborough,http://opendatacommunities.org/id/unitary-authority/peterborough,Peterborough City Council,Children's & Safeguarding,Access to Resources & Specialist Commissioning,Services,01/06/2016 00:00,8000063991,584.08,Revenue,Redacted Personal Data,Boarding Out Allowances
Peterborough,http://opendatacommunities.org/id/unitary-authority/peterborough,Peterborough City Council,Children's & Safeguarding,Access to Resources & Specialist Commissioning,Services,01/06/2016 00:00,8000063991,627.06,Revenue,Redacted Personal Data,Boarding Out Allowances
Peterborough,http://opendatacommunities.org/id/unitary-authority/peterborough,Peterborough City Council,Children's & Safeguarding,Access to Resources & Specialist Commissioning,Services,01/06/2016 00:00,8000063991,527.52,Revenue,Redacted Personal Data,Boarding Out Allowances
Peterborough,http://opendatacommunities.org/id/unitary-authority/peterborough,Peterborough City Council,Children's & Safeguarding,Access to Resources & Specialist Commissioning,Services,01/06/2016 00:00,8000063991,584.08,Revenue,Redacted Personal Data,Boarding Out Allowances
Peterborough,http://opendatacommunities.org/id/unitary-authority/peterborough,Peterborough City Council,Children's & Safeguarding,Access to Resources & Specialist Commissioning,Services,01/06/2016 00:00,8000063991,909.86,Revenue,Redacted Personal Data,Boarding Out Allowances
Peterborough,http://opendatacommunities.org/id/unitary-authority/peterborough,Peterborough City Council,Children's & Safeguarding,Access to Resources & Specialist Commissioning,Services,01/06/2016 00:00,8000063991,627.06,Revenue,Redacted Personal Data,Boarding Out Allowances
Peterborough,http://opendatacommunities.org/id/unitary-authority/peterborough,Peterborough City Council,Children's & Safeguarding,Access to Resources & Specialist Commissioning,Services,01/06/2016 00:00,8000063991,627.06,Revenue,Redacted Personal Data,Boarding Out Allowances
Peterborough,http://opendatacommunities.org/id/unitary-authority/peterborough,Peterborough City Council,Children's & Safeguarding,Access to Resources & Specialist Commissioning,Services,01/06/2016 00:00,8000063991,646.15,Revenue,Redacted Personal Data,Boarding Out Allowances
Peterborough,http://opendatacommunities.org/id/unitary-authority/peterborough,Peterborough City Council,Children's & Safeguarding,Access to Resources & Specialist Commissioning,Services,01/06/2016 00:00,8000063991,646.15,Revenue,Redacted Personal Data,Boarding Out Allowances
Peterborough,http://opendatacommunities.org/id/unitary-authority/peterborough,Peterborough City Council,Children's & Safeguarding,Access to Resources & Specialist Commissioning,Services,01/06/2016 00:00,8000063991,632.38,Revenue,Redacted Personal Data,Boarding Out Allowances
Peterborough,http://opendatacommunities.org/id/unitary-authority/peterborough,Peterborough City Council,Children's & Safeguarding,Access to Resources & Specialist Commissioning,Services,01/06/2016 00:00,8000063991,632.38,Revenue,Redacted Personal Data,Boarding Out Allowances
Peterborough,http://opendatacommunities.org/id/unitary-authority/peterborough,Peterborough City Council,Children's & Safeguarding,Access to Resources & Specialist Commissioning,Services,01/06/2016 00:00,8000063991,792,Revenue,Redacted Personal Data,Boarding Out Allowances
Peterborough,http://opendatacommunities.org/id/unitary-authority/peterborough,Peterborough City Council,Children's & Safeguarding,Access to Resources & Specialist Commissioning,Services,01/06/2016 00:00,8000063991,792,Revenue,Redacted Personal Data,Boarding Out Allowances
Peterborough,http://opendatacommunities.org/id/unitary-authority/peterborough,Peterborough City Council,Children's & Safeguarding,Access to Resources & Specialist Commissioning,Services,01/06/2016 00:00,8000063991,844.48,Revenue,Redacted Personal Data,Boarding Out Allowances
Peterborough,http://opendatacommunities.org/id/unitary-authority/peterborough,Peterborough City Council,Children's & Safeguarding,Access to Resources & Specialist Commissioning,Services,01/06/2016 00:00,8000063991,527.52,Revenue,Redacted Personal Data,Boarding Out Allowances
Peterborough,http://opendatacommunities.org/id/unitary-authority/peterborough,Peterborough City Council,Children's & Safeguarding,Access to Resources & Specialist Commissioning,Services,01/06/2016 00:00,8000063991,527.52,Revenue,Redacted Personal Data,Boarding Out Allowances
Peterborough,http://opendatacommunities.org/id/unitary-authority/peterborough,Peterborough City Council,Children's & Safeguarding,Access to Resources & Specialist Commissioning,Services,01/06/2016 00:00,8000063991,527.52,Revenue,Redacted Personal Data,Boarding Out Allowances
Peterborough,http://opendatacommunities.org/id/unitary-authority/peterborough,Peterborough City Council,Children's & Safeguarding,Access to Resources & Specialist Commissioning,Services,01/06/2016 00:00,8000063991,527.52,Revenue,Redacted Personal Data,Boarding Out Allowances
Peterborough,http://opendatacommunities.org/id/unitary-authority/peterborough,Peterborough City Council,Children's & Safeguarding,Access to Resources & Specialist Commissioning,Services,01/06/2016 00:00,8000063991,691.95,Revenue,Redacted Personal Data,Boarding Out Allowances
Peterborough,http://opendatacommunities.org/id/unitary-authority/peterborough,Peterborough City Council,Children's & Safeguarding,Access to Resources & Specialist Commissioning,Services,01/06/2016 00:00,8000063991,584.08,Revenue,Redacted Personal Data,Boarding Out Allowances
Peterborough,http://opendatacommunities.org/id/unitary-authority/peterborough,Peterborough City Council,Children's & Safeguarding,Access to Resources & Specialist Commissioning,Services,01/06/2016 00:00,8000063991,538.68,Revenue,Redacted Personal Data,Boarding Out Allowances
Peterborough,http://opendatacommunities.org/id/unitary-authority/peterborough,Peterborough City Council,Children's & Safeguarding,Access to Resources & Specialist Commissioning,Services,01/06/2016 00:00,8000063991,584.08,Revenue,Redacted Personal Data,Boarding Out Allowances
Peterborough,http://opendatacommunities.org/id/unitary-authority/peterborough,Peterborough City Council,Children's & Safeguarding,Access to Resources & Specialist Commissioning,Services,01/06/2016 00:00,8000063991,527.52,Revenue,Redacted Personal Data,Boarding Out Allowances
Peterborough,http://opendatacommunities.org/id/unitary-authority/peterborough,Peterborough City Council,Children's & Safeguarding,Access to Resources & Specialist Commissioning,Services,01/06/2016 00:00,8000063991,584.08,Revenue,Redacted Personal Data,Boarding Out Allowances
Peterborough,http://opendatacommunities.org/id/unitary-authority/peterborough,Peterborough City Council,Children's & Safeguarding,Access to Resources & Specialist Commissioning,Services,01/06/2016 00:00,8000063991,584.08,Revenue,Redacted Personal Data,Boarding Out Allowances
Peterborough,http://opendatacommunities.org/id/unitary-authority/peterborough,Peterborough City Council,Children's & Safeguarding,Access to Resources & Specialist Commissioning,Services,01/06/2016 00:00,8000063991,613.83,Revenue,Redacted Personal Data,Boarding Out Allowances
Peterborough,http://opendatacommunities.org/id/unitary-authority/peterborough,Peterborough City Council,Children's & Safeguarding,Access to Resources & Specialist Commissioning,Services,01/06/2016 00:00,8000063991,527.52,Revenue,Redacted Personal Data,Boarding Out Allowances
Peterborough,http://opendatacommunities.org/id/unitary-authority/peterborough,Peterborough City Council,Children's & Safeguarding,Access to Resources & Specialist Commissioning,Services,01/06/2016 00:00,8000063991,584.08,Revenue,Redacted Personal Data,Boarding Out Allowances
Peterborough,http://opendatacommunities.org/id/unitary-authority/peterborough,Peterborough City Council,Children's & Safeguarding,Access to Resources & Specialist Commissioning,Services,01/06/2016 00:00,8000063991,627.06,Revenue,Redacted Personal Data,Boarding Out Allowances
Peterborough,http://opendatacommunities.org/id/unitary-authority/peterborough,Peterborough City Council,Children's & Safeguarding,Access to Resources & Specialist Commissioning,Services,01/06/2016 00:00,8000063991,527.52,Revenue,Redacted Personal Data,Boarding Out Allowances
Peterborough,http://opendatacommunities.org/id/unitary-authority/peterborough,Peterborough City Council,Children's & Safeguarding,Access to Resources & Specialist Commissioning,Services,01/06/2016 00:00,8000063991,909.86,Revenue,Redacted Personal Data,Boarding Out Allowances
Peterborough,http://opendatacommunities.org/id/unitary-authority/peterborough,Peterborough City Council,Children's & Safeguarding,Access to Resources & Specialist Commissioning,Services,01/06/2016 00:00,8000063991,627.06,Revenue,Redacted Personal Data,Boarding Out Allowances
Peterborough,http://opendatacommunities.org/id/unitary-authority/peterborough,Peterborough City Council,Children's & Safeguarding,Access to Resources & Specialist Commissioning,Services,01/06/2016 00:00,8000063991,545.88,Revenue,Redacted Personal Data,Boarding Out Allowances
Peterborough,http://opendatacommunities.org/id/unitary-authority/peterborough,Peterborough City Council,Children's & Safeguarding,Access to Resources & Specialist Commissioning,Services,01/06/2016 00:00,8000063991,545.88,Revenue,Redacted Personal Data,Boarding Out Allowances
Peterborough,http://opendatacommunities.org/id/unitary-authority/peterborough,Peterborough City Council,Children's & Safeguarding,Access to Resources & Specialist Commissioning,Services,01/06/2016 00:00,8000063991,545.88,Revenue,Redacted Personal Data,Boarding Out Allowances
Peterborough,http://opendatacommunities.org/id/unitary-authority/peterborough,Peterborough City Council,Children's & Safeguarding,Access to Resources & Specialist Commissioning,Services,01/06/2016 00:00,8000063991,545.88,Revenue,Redacted Personal Data,Boarding Out Allowances
Peterborough,http://opendatacommunities.org/id/unitary-authority/peterborough,Peterborough City Council,Children's & Safeguarding,Access to Resources & Specialist Commissioning,Services,01/06/2016 00:00,8000063991,527.52,Revenue,Redacted Personal Data,Boarding Out Allowances
Peterborough,http://opendatacommunities.org/id/unitary-authority/peterborough,Peterborough City Council,Children's & Safeguarding,Access to Resources & Specialist Commissioning,Services,01/06/2016 00:00,8000063991,627.06,Revenue,Redacted Personal Data,Boarding Out Allowances
Peterborough,http://opendatacommunities.org/id/unitary-authority/peterborough,Peterborough City Council,Children's & Safeguarding,Access to Resources & Specialist Commissioning,Services,01/06/2016 00:00,8000063991,584.08,Revenue,Redacted Personal Data,Boarding Out Allowances
Peterborough,http://opendatacommunities.org/id/unitary-authority/peterborough,Peterborough City Council,Children's & Safeguarding,Access to Resources & Specialist Commissioning,Services,01/06/2016 00:00,8000063991,627.06,Revenue,Redacted Personal Data,Boarding Out Allowances
Peterborough,http://opendatacommunities.org/id/unitary-authority/peterborough,Peterborough City Council,Children's & Safeguarding,Access to Resources & Specialist Commissioning,Services,01/06/2016 00:00,8000063991,851.48,Revenue,Redacted Personal Data,Boarding Out Allowances
Peterborough,http://opendatacommunities.org/id/unitary-authority/peterborough,Peterborough City Council,Children's & Safeguarding,Access to Resources & Specialist Commissioning,Services,01/06/2016 00:00,8000063991,627.06,Revenue,Redacted Personal Data,Boarding Out Allowances
Peterborough,http://opendatacommunities.org/id/unitary-authority/peterborough,Peterborough City Council,Children's & Safeguarding,Access to Resources & Specialist Commissioning,Services,01/06/2016 00:00,8000063991,552.44,Revenue,Redacted Personal Data,Boarding Out Allowances
Peterborough,http://opendatacommunities.org/id/unitary-authority/peterborough,Peterborough City Council,Children's & Safeguarding,Access to Resources & Specialist Commissioning,Services,01/06/2016 00:00,8000063991,627.06,Revenue,Redacted Personal Data,Boarding Out Allowances
Peterborough,http://opendatacommunities.org/id/unitary-authority/peterborough,Peterborough City Council,Children's & Safeguarding,Access to Resources & Specialist Commissioning,Services,01/06/2016 00:00,8000063991,527.52,Revenue,Redacted Personal Data,Boarding Out Allowances
Peterborough,http://opendatacommunities.org/id/unitary-authority/peterborough,Peterborough City Council,Children's & Safeguarding,Access to Resources & Specialist Commissioning,Services,01/06/2016 00:00,8000063991,513.33,Revenue,Redacted Personal Data,Boarding Out Allowances
Peterborough,http://opendatacommunities.org/id/unitary-authority/peterborough,Peterborough City Council,Children's & Safeguarding,Access to Resources & Specialist Commissioning,Services,01/06/2016 00:00,8000063991,552.61,Revenue,Redacted Personal Data,Boarding Out Allowances
Peterborough,http://opendatacommunities.org/id/unitary-authority/peterborough,Peterborough City Council,Children's & Safeguarding,Access to Resources & Specialist Commissioning,Services,01/06/2016 00:00,8000063991,552.61,Revenue,Redacted Personal Data,Boarding Out Allowances
Peterborough,http://opendatacommunities.org/id/unitary-authority/peterborough,Peterborough City Council,Children's & Safeguarding,Access to Resources & Specialist Commissioning,Services,01/06/2016 00:00,8000063991,645.72,Revenue,Redacted Personal Data,Boarding Out Allowances
Peterborough,http://opendatacommunities.org/id/unitary-authority/peterborough,Peterborough City Council,Children's & Safeguarding,Access to Resources & Specialist Commissioning,Services,01/06/2016 00:00,8000063991,900,Revenue,Redacted Personal Data,Boarding Out Allowances
Peterborough,http://opendatacommunities.org/id/unitary-authority/peterborough,Peterborough City Council,Children's & Safeguarding,Access to Resources & Specialist Commissioning,Services,01/06/2016 00:00,8000063991,584.08,Revenue,Redacted Personal Data,Boarding Out Allowances
Peterborough,http://opendatacommunities.org/id/unitary-authority/peterborough,Peterborough City Council,Children's & Safeguarding,Access to Resources & Specialist Commissioning,Services,01/06/2016 00:00,8000063991,613.83,Revenue,Redacted Personal Data,Boarding Out Allowances
Peterborough,http://opendatacommunities.org/id/unitary-authority/peterborough,Peterborough City Council,Children's & Safeguarding,Access to Resources & Specialist Commissioning,Services,01/06/2016 00:00,8000063991,590.22,Revenue,Redacted Personal Data,Boarding Out Allowances
Peterborough,http://opendatacommunities.org/id/unitary-authority/peterborough,Peterborough City Council,Children's & Safeguarding,Access to Resources & Specialist Commissioning,Services,01/06/2016 00:00,8000063991,584.08,Revenue,Redacted Personal Data,Boarding Out Allowances
Peterborough,http://opendatacommunities.org/id/unitary-authority/peterborough,Peterborough City Council,Children's & Safeguarding,Access to Resources & Specialist Commissioning,Services,01/06/2016 00:00,8000063991,527.52,Revenue,Redacted Personal Data,Boarding Out Allowances
Peterborough,http://opendatacommunities.org/id/unitary-authority/peterborough,Peterborough City Council,Children's & Safeguarding,Access to Resources & Specialist Commissioning,Services,01/06/2016 00:00,8000063991,527.52,Revenue,Redacted Personal Data,Boarding Out Allowances
Peterborough,http://opendatacommunities.org/id/unitary-authority/peterborough,Peterborough City Council,Children's & Safeguarding,Access to Resources & Specialist Commissioning,Services,01/06/2016 00:00,8000063991,527.52,Revenue,Redacted Personal Data,Boarding Out Allowances
Peterborough,http://opendatacommunities.org/id/unitary-authority/peterborough,Peterborough City Council,Children's & Safeguarding,Access to Resources & Specialist Commissioning,Services,01/06/2016 00:00,8000063991,584.08,Revenue,Redacted Personal Data,Boarding Out Allowances
Peterborough,http://opendatacommunities.org/id/unitary-authority/peterborough,Peterborough City Council,Children's & Safeguarding,Access to Resources & Specialist Commissioning,Services,01/06/2016 00:00,8000063991,584.08,Revenue,Redacted Personal Data,Boarding Out Allowances
Peterborough,http://opendatacommunities.org/id/unitary-authority/peterborough,Peterborough City Council,Children's & Safeguarding,Access to Resources & Specialist Commissioning,Services,01/06/2016 00:00,8000063991,628.95,Revenue,Redacted Personal Data,Boarding Out Allowances
Peterborough,http://opendatacommunities.org/id/unitary-authority/peterborough,Peterborough City Council,Children's & Safeguarding,Access to Resources & Specialist Commissioning,Services,01/06/2016 00:00,8000063991,527.52,Revenue,Redacted Personal Data,Boarding Out Allowances
Peterborough,http://opendatacommunities.org/id/unitary-authority/peterborough,Peterborough City Council,Children's & Safeguarding,Access to Resources & Specialist Commissioning,Services,01/06/2016 00:00,8000063991,584.08,Revenue,Redacted Personal Data,Boarding Out Allowances
Peterborough,http://opendatacommunities.org/id/unitary-authority/peterborough,Peterborough City Council,Children's & Safeguarding,Access to Resources & Specialist Commissioning,Services,01/06/2016 00:00,8000063991,584.08,Revenue,Redacted Personal Data,Boarding Out Allowances
Peterborough,http://opendatacommunities.org/id/unitary-authority/peterborough,Peterborough City Council,Children's & Safeguarding,Access to Resources & Specialist Commissioning,Services,01/06/2016 00:00,8000063991,527.52,Revenue,Redacted Personal Data,Boarding Out Allowances
Peterborough,http://opendatacommunities.org/id/unitary-authority/peterborough,Peterborough City Council,Children's & Safeguarding,Access to Resources & Specialist Commissioning,Services,01/06/2016 00:00,8000063991,584.08,Revenue,Redacted Personal Data,Boarding Out Allowances
Peterborough,http://opendatacommunities.org/id/unitary-authority/peterborough,Peterborough City Council,Children's & Safeguarding,Access to Resources & Specialist Commissioning,Services,01/06/2016 00:00,8000063991,584.08,Revenue,Redacted Personal Data,Boarding Out Allowances
Peterborough,http://opendatacommunities.org/id/unitary-authority/peterborough,Peterborough City Council,Children's & Safeguarding,Access to Resources & Specialist Commissioning,Services,01/06/2016 00:00,8000063991,527.52,Revenue,Redacted Personal Data,Boarding Out Allowances
Peterborough,http://opendatacommunities.org/id/unitary-authority/peterborough,Peterborough City Council,Children's & Safeguarding,Access to Resources & Specialist Commissioning,Services,01/06/2016 00:00,8000063991,527.52,Revenue,Redacted Personal Data,Boarding Out Allowances
Peterborough,http://opendatacommunities.org/id/unitary-authority/peterborough,Peterborough City Council,Children's & Safeguarding,Child Health,Services,01/06/2016 00:00,8000063991,1436.4,Revenue,Redacted Personal Data,Financial Assistance
Peterborough,http://opendatacommunities.org/id/unitary-authority/peterborough,Peterborough City Council,Children's & Safeguarding,Access to Resources & Specialist Commissioning,Services,01/06/2016 00:00,8000063991,1176.7,Revenue,Redacted Personal Data,Boarding Out Allowances
Peterborough,http://opendatacommunities.org/id/unitary-authority/peterborough,Peterborough City Council,Children's & Safeguarding,Access to Resources & Specialist Commissioning,Services,01/06/2016 00:00,8000063991,527.52,Revenue,Redacted Personal Data,Boarding Out Allowances
Peterborough,http://opendatacommunities.org/id/unitary-authority/peterborough,Peterborough City Council,Children's & Safeguarding,Access to Resources & Specialist Commissioning,Services,01/06/2016 00:00,8000063991,559.1,Revenue,Redacted Personal Data,Boarding Out Allowances
Peterborough,http://opendatacommunities.org/id/unitary-authority/peterborough,Peterborough City Council,Children's & Safeguarding,Access to Resources & Specialist Commissioning,Services,01/06/2016 00:00,8000063991,779.66,Revenue,Redacted Personal Data,Boarding Out Allowances
Peterborough,http://opendatacommunities.org/id/unitary-authority/peterborough,Peterborough City Council,Children's & Safeguarding,Access to Resources & Specialist Commissioning,Services,01/06/2016 00:00,8000063991,1158.67,Revenue,Redacted Personal Data,Boarding Out Allowances
Peterborough,http://opendatacommunities.org/id/unitary-authority/peterborough,Peterborough City Council,Children's & Safeguarding,Access to Resources & Specialist Commissioning,Services,01/06/2016 00:00,8000063991,909.82,Revenue,Redacted Personal Data,Boarding Out Allowances
Peterborough,http://opendatacommunities.org/id/unitary-authority/peterborough,Peterborough City Council,Children's & Safeguarding,Access to Resources & Specialist Commissioning,Services,01/06/2016 00:00,8000063991,909.82,Revenue,Redacted Personal Data,Boarding Out Allowances
Peterborough,http://opendatacommunities.org/id/unitary-authority/peterborough,Peterborough City Council,Children's & Safeguarding,Access to Resources & Specialist Commissioning,Services,01/06/2016 00:00,8000063991,909.82,Revenue,Redacted Personal Data,Boarding Out Allowances
Peterborough,http://opendatacommunities.org/id/unitary-authority/peterborough,Peterborough City Council,Children's & Safeguarding,Access to Resources & Specialist Commissioning,Services,01/06/2016 00:00,8000063991,909.82,Revenue,Redacted Personal Data,Boarding Out Allowances
Peterborough,http://opendatacommunities.org/id/unitary-authority/peterborough,Peterborough City Council,Children's & Safeguarding,Access to Resources & Specialist Commissioning,Services,01/06/2016 00:00,8000063991,668.08,Revenue,Redacted Personal Data,Boarding Out Allowances
Peterborough,http://opendatacommunities.org/id/unitary-authority/peterborough,Peterborough City Council,Children's & Safeguarding,Access to Resources & Specialist Commissioning,Services,01/06/2016 00:00,8000063991,989.78,Revenue,Redacted Personal Data,Boarding Out Allowances
Peterborough,http://opendatacommunities.org/id/unitary-authority/peterborough,Peterborough City Council,Children's & Safeguarding,Access to Resources & Specialist Commissioning,Services,01/06/2016 00:00,8000063991,684.08,Revenue,Redacted Personal Data,Boarding Out Allowances
Peterborough,http://opendatacommunities.org/id/unitary-authority/peterborough,Peterborough City Council,Children's & Safeguarding,Access to Resources & Specialist Commissioning,Services,01/06/2016 00:00,8000063991,810.08,Revenue,Redacted Personal Data,Boarding Out Allowances
Peterborough,http://opendatacommunities.org/id/unitary-authority/peterborough,Peterborough City Council,Children's & Safeguarding,Access to Resources & Specialist Commissioning,Services,01/06/2016 00:00,8000063991,932.56,Revenue,Redacted Personal Data,Boarding Out Allowances
Peterborough,http://opendatacommunities.org/id/unitary-authority/peterborough,Peterborough City Council,Children's & Safeguarding,Access to Resources & Specialist Commissioning,Services,01/06/2016 00:00,8000063991,792.96,Revenue,Redacted Personal Data,Boarding Out Allowances
Peterborough,http://opendatacommunities.org/id/unitary-authority/peterborough,Peterborough City Council,Children's & Safeguarding,Access to Resources & Specialist Commissioning,Services,01/06/2016 00:00,8000063991,676.48,Revenue,Redacted Personal Data,Boarding Out Allowances
Peterborough,http://opendatacommunities.org/id/unitary-authority/peterborough,Peterborough City Council,Children's & Safeguarding,Access to Resources & Specialist Commissioning,Services,01/06/2016 00:00,8000063991,844.9,Revenue,Redacted Personal Data,Boarding Out Allowances
Peterborough,http://opendatacommunities.org/id/unitary-authority/peterborough,Peterborough City Council,Children's & Safeguarding,Access to Resources & Specialist Commissioning,Services,01/06/2016 00:00,8000063991,844.06,Revenue,Redacted Personal Data,Boarding Out Allowances
Peterborough,http://opendatacommunities.org/id/unitary-authority/peterborough,Peterborough City Council,Children's & Safeguarding,Access to Resources & Specialist Commissioning,Services,01/06/2016 00:00,8000063991,804.36,Revenue,Redacted Personal Data,Boarding Out Allowances
Peterborough,http://opendatacommunities.org/id/unitary-authority/peterborough,Peterborough City Council,Children's & Safeguarding,Access to Resources & Specialist Commissioning,Services,01/06/2016 00:00,8000063991,858.76,Revenue,Redacted Personal Data,Boarding Out Allowances
Peterborough,http://opendatacommunities.org/id/unitary-authority/peterborough,Peterborough City Council,Children's & Safeguarding,Access to Resources & Specialist Commissioning,Services,01/06/2016 00:00,8000063991,835.8,Revenue,Redacted Personal Data,Boarding Out Allowances
Peterborough,http://opendatacommunities.org/id/unitary-authority/peterborough,Peterborough City Council,Children's & Safeguarding,Access to Resources & Specialist Commissioning,Services,01/06/2016 00:00,8000063991,684.78,Revenue,Redacted Personal Data,Boarding Out Allowances
Peterborough,http://opendatacommunities.org/id/unitary-authority/peterborough,Peterborough City Council,Children's & Safeguarding,Access to Resources & Specialist Commissioning,Services,01/06/2016 00:00,8000063991,810.08,Revenue,Redacted Personal Data,Boarding Out Allowances
Peterborough,http://opendatacommunities.org/id/unitary-authority/peterborough,Peterborough City Council,Children's & Safeguarding,Access to Resources & Specialist Commissioning,Services,01/06/2016 00:00,8000063991,932.56,Revenue,Redacted Personal Data,Boarding Out Allowances
Peterborough,http://opendatacommunities.org/id/unitary-authority/peterborough,Peterborough City Council,Children's & Safeguarding,Access to Resources & Specialist Commissioning,Services,01/06/2016 00:00,8000063991,792.96,Revenue,Redacted Personal Data,Boarding Out Allowances
Peterborough,http://opendatacommunities.org/id/unitary-authority/peterborough,Peterborough City Council,Children's & Safeguarding,Access to Resources & Specialist Commissioning,Services,01/06/2016 00:00,8000063991,728.42,Revenue,Redacted Personal Data,Boarding Out Allowances
Peterborough,http://opendatacommunities.org/id/unitary-authority/peterborough,Peterborough City Council,Children's & Safeguarding,Access to Resources & Specialist Commissioning,Services,01/06/2016 00:00,8000063991,676.48,Revenue,Redacted Personal Data,Boarding Out Allowances
Peterborough,http://opendatacommunities.org/id/unitary-authority/peterborough,Peterborough City Council,Children's & Safeguarding,Access to Resources & Specialist Commissioning,Services,01/06/2016 00:00,8000063991,844.06,Revenue,Redacted Personal Data,Boarding Out Allowances
Peterborough,http://opendatacommunities.org/id/unitary-authority/peterborough,Peterborough City Council,Children's & Safeguarding,Access to Resources & Specialist Commissioning,Services,01/06/2016 00:00,8000063991,860.86,Revenue,Redacted Personal Data,Boarding Out Allowances
Peterborough,http://opendatacommunities.org/id/unitary-authority/peterborough,Peterborough City Council,Children's & Safeguarding,Access to Resources & Specialist Commissioning,Services,01/06/2016 00:00,8000063991,835.8,Revenue,Redacted Personal Data,Boarding Out Allowances
Peterborough,http://opendatacommunities.org/id/unitary-authority/peterborough,Peterborough City Council,Children's & Safeguarding,Access to Resources & Specialist Commissioning,Services,01/06/2016 00:00,8000063991,686,Revenue,Redacted Personal Data,Boarding Out Allowances
Peterborough,http://opendatacommunities.org/id/unitary-authority/peterborough,Peterborough City Council,Children's & Safeguarding,Access to Resources & Specialist Commissioning,Services,01/06/2016 00:00,8000063991,693.28,Revenue,Redacted Personal Data,Boarding Out Allowances
Peterborough,http://opendatacommunities.org/id/unitary-authority/peterborough,Peterborough City Council,Children's & Safeguarding,Access to Resources & Specialist Commissioning,Services,01/06/2016 00:00,8000063991,527.52,Revenue,Redacted Personal Data,Boarding Out Allowances
Peterborough,http://opendatacommunities.org/id/unitary-authority/peterborough,Peterborough City Council,Children's & Safeguarding,Access to Resources & Specialist Commissioning,Services,01/06/2016 00:00,8000063991,1819.64,Revenue,Redacted Personal Data,Boarding Out Allowances
Peterborough,http://opendatacommunities.org/id/unitary-authority/peterborough,Peterborough City Council,Children's & Safeguarding,Access to Resources & Specialist Commissioning,Services,01/06/2016 00:00,8000063991,685.48,Revenue,Redacted Personal Data,Boarding Out Allowances
Peterborough,http://opendatacommunities.org/id/unitary-authority/peterborough,Peterborough City Council,Children's & Safeguarding,Access to Resources & Specialist Commissioning,Services,01/06/2016 00:00,8000063991,792.96,Revenue,Redacted Personal Data,Boarding Out Allowances
Peterborough,http://opendatacommunities.org/id/unitary-authority/peterborough,Peterborough City Council,Children's & Safeguarding,Access to Resources & Specialist Commissioning,Services,01/06/2016 00:00,8000063991,792.96,Revenue,Redacted Personal Data,Boarding Out Allowances
Peterborough,http://opendatacommunities.org/id/unitary-authority/peterborough,Peterborough City Council,Education,Home to School Transport,Contract Hire and Operating Leases,03/06/2016 00:00,30061127,2370.26,Revenue,Shropshire County Council,Hired Transport
Peterborough,http://opendatacommunities.org/id/unitary-authority/peterborough,Peterborough City Council,ICT,ICT,Services,03/06/2016 00:00,30066739,5308.94,Revenue,BT Contract Rentals Ltd,Telephones
Peterborough,http://opendatacommunities.org/id/unitary-authority/peterborough,Peterborough City Council,Business Management and Commercial Operations,Clare Lodge,Agency Staff,03/06/2016 00:00,30067302,1947,Revenue,Textbook Teachers Ltd,Supply Teachers
Peterborough,http://opendatacommunities.org/id/unitary-authority/peterborough,Peterborough City Council,Adult Services & Communities - Adults,Other Services,Services,03/06/2016 00:00,30074456,28382,Revenue,P'Boro Council For Voluntary Srvs (PCVS),Third Party Payments - Contract
Peterborough,http://opendatacommunities.org/id/unitary-authority/peterborough,Peterborough City Council,Corporate,Corporate,Non Revenue,03/06/2016 00:00,30075010,2462.13,Capital,Paddock Enterprises Ltd,Grant Payment
Peterborough,http://opendatacommunities.org/id/unitary-authority/peterborough,Peterborough City Council,Children's & Safeguarding,Children's Social Care,Agency Staff,03/06/2016 00:00,30075047,1406,Revenue,NonStop Recruitment Ltd,External Temporary Staff
Peterborough,http://opendatacommunities.org/id/unitary-authority/peterborough,Peterborough City Council,Children's & Safeguarding,Children's Social Care,Agency Staff,03/06/2016 00:00,30075139,1406,Revenue,NonStop Recruitment Ltd,External Temporary Staff
Peterborough,http://opendatacommunities.org/id/unitary-authority/peterborough,Peterborough City Council,Adult Services & Communities - Adults,Independent Sector Placements,Services,03/06/2016 00:00,30075412,1629.32,Revenue,BUPA Care Homes,Residential Care
Peterborough,http://opendatacommunities.org/id/unitary-authority/peterborough,Peterborough City Council,Children's & Safeguarding,Children's Social Care,Agency Staff,03/06/2016 00:00,30075743,-1406,Revenue,NonStop Recruitment Ltd,External Temporary Staff
Peterborough,http://opendatacommunities.org/id/unitary-authority/peterborough,Peterborough City Council,Children's & Safeguarding,Access to Resources & Specialist Commissioning,Services,03/06/2016 00:00,30075746,2436.32,Revenue,Farcet C.E. (C) Primary School,Out Of Area Education Costs
Peterborough,http://opendatacommunities.org/id/unitary-authority/peterborough,Peterborough City Council,Adult Services & Communities - Adults,Other Services,Services,03/06/2016 00:00,30075799,12750,Revenue,Healthwatch,Third Party Payments - Contract
Peterborough,http://opendatacommunities.org/id/unitary-authority/peterborough,Peterborough City Council,City Servs & Communications,"Markets, Tourism & Events",Services,03/06/2016 00:00,30075840,2224.5,Revenue,Cresset Leisure Services Ltd,Tickets
Peterborough,http://opendatacommunities.org/id/unitary-authority/peterborough,Peterborough City Council,City Servs & Communications,"Markets, Tourism & Events",Services,03/06/2016 00:00,30075841,749.7,Revenue,Chapter of Peterborough Cathedral,Tickets
Peterborough,http://opendatacommunities.org/id/unitary-authority/peterborough,Peterborough City Council,Legal & Democratic,Legal Services,Services,03/06/2016 00:00,30075866,1400,Revenue,"Collins, Mr Peter",Legal Costs
Peterborough,http://opendatacommunities.org/id/unitary-authority/peterborough,Peterborough City Council,Adult Services & Communities - Adults,Independent Sector Placements,Services,03/06/2016 00:00,30076220,1808.4,Revenue,Augusta Care Ltd,Home Care
Peterborough,http://opendatacommunities.org/id/unitary-authority/peterborough,Peterborough City Council,Corporate,Corporate,Non Revenue,03/06/2016 00:00,30076270,3650,Capital,EMS Stairlifts,Grant Payment
Peterborough,http://opendatacommunities.org/id/unitary-authority/peterborough,Peterborough City Council,Business Management and Commercial Operations,Business Management and Commercial Operations,Agency Staff,03/06/2016 00:00,30076301,2700,Revenue,Sanctuary Personnel Ltd,External Temporary Staff
Peterborough,http://opendatacommunities.org/id/unitary-authority/peterborough,Peterborough City Council,Business Management and Commercial Operations,Business Management and Commercial Operations,Agency Staff,03/06/2016 00:00,30076306,2700,Revenue,Sanctuary Personnel Ltd,External Temporary Staff
Peterborough,http://opendatacommunities.org/id/unitary-authority/peterborough,Peterborough City Council,Children's & Safeguarding,Children's Social Care,Agency Staff,03/06/2016 00:00,30076310,1332,Revenue,Sanctuary Personnel Ltd,External Temporary Staff
Peterborough,http://opendatacommunities.org/id/unitary-authority/peterborough,Peterborough City Council,Adult Services & Communities - Adults,Finance,Agency Staff,03/06/2016 00:00,30076312,1147.86,Revenue,Sanctuary Personnel Ltd,External Temporary Staff
Peterborough,http://opendatacommunities.org/id/unitary-authority/peterborough,Peterborough City Council,Children's & Safeguarding,Children's Social Care,Agency Staff,03/06/2016 00:00,30076313,949.05,Revenue,Sanctuary Personnel Ltd,External Temporary Staff
Peterborough,http://opendatacommunities.org/id/unitary-authority/peterborough,Peterborough City Council,Children's & Safeguarding,Children's Social Care,Agency Staff,03/06/2016 00:00,30076315,2000,Revenue,Sanctuary Personnel Ltd,External Temporary Staff
Peterborough,http://opendatacommunities.org/id/unitary-authority/peterborough,Peterborough City Council,Children's & Safeguarding,Children's Social Care,Agency Staff,03/06/2016 00:00,30076316,1000,Revenue,Sanctuary Personnel Ltd,External Temporary Staff
Peterborough,http://opendatacommunities.org/id/unitary-authority/peterborough,Peterborough City Council,Children's & Safeguarding,Children's Social Care,Agency Staff,03/06/2016 00:00,30076317,1054.5,Revenue,Sanctuary Personnel Ltd,External Temporary Staff
Peterborough,http://opendatacommunities.org/id/unitary-authority/peterborough,Peterborough City Council,Children's & Safeguarding,Children's Social Care,Agency Staff,03/06/2016 00:00,30076341,1250.97,Revenue,Sanctuary Personnel Ltd,External Temporary Staff
Peterborough,http://opendatacommunities.org/id/unitary-authority/peterborough,Peterborough City Council,Children's & Safeguarding,Children's Social Care,Agency Staff,03/06/2016 00:00,30076343,1260,Revenue,Sanctuary Personnel Ltd,External Temporary Staff
Peterborough,http://opendatacommunities.org/id/unitary-authority/peterborough,Peterborough City Council,Children's & Safeguarding,Children's Social Care,Agency Staff,03/06/2016 00:00,30076344,1265.4,Revenue,Sanctuary Personnel Ltd,External Temporary Staff
Peterborough,http://opendatacommunities.org/id/unitary-authority/peterborough,Peterborough City Council,Children's & Safeguarding,Children's Social Care,Agency Staff,03/06/2016 00:00,30076345,1406,Revenue,Sanctuary Personnel Ltd,External Temporary Staff
Peterborough,http://opendatacommunities.org/id/unitary-authority/peterborough,Peterborough City Council,Children's & Safeguarding,Children's Social Care,Agency Staff,03/06/2016 00:00,30076346,1392,Revenue,Sanctuary Personnel Ltd,External Temporary Staff
Peterborough,http://opendatacommunities.org/id/unitary-authority/peterborough,Peterborough City Council,Adult Services & Communities - Adults,Therapy/Reablement/Community Equipment,Agency Staff,03/06/2016 00:00,30076347,1321.6,Revenue,Sanctuary Personnel Ltd,External Temporary Staff
Peterborough,http://opendatacommunities.org/id/unitary-authority/peterborough,Peterborough City Council,Business Management and Commercial Operations,Business Management and Commercial Operations,Agency Staff,03/06/2016 00:00,30076348,700,Revenue,Sanctuary Personnel Ltd,External Temporary Staff
Peterborough,http://opendatacommunities.org/id/unitary-authority/peterborough,Peterborough City Council,Adult Services & Communities - Adults,Day Opportunities / In House,Agency Staff,03/06/2016 00:00,30076349,1250,Revenue,Sanctuary Personnel Ltd,External Temporary Staff
Peterborough,http://opendatacommunities.org/id/unitary-authority/peterborough,Peterborough City Council,Adult Services & Communities - Adults,Day Opportunities / In House,Agency Staff,03/06/2016 00:00,30076352,1000,Revenue,Sanctuary Personnel Ltd,External Temporary Staff
Peterborough,http://opendatacommunities.org/id/unitary-authority/peterborough,Peterborough City Council,Adult Services & Communities - Adults,Therapy/Reablement/Community Equipment,Agency Staff,03/06/2016 00:00,30076353,1057.28,Revenue,Sanctuary Personnel Ltd,External Temporary Staff
Peterborough,http://opendatacommunities.org/id/unitary-authority/peterborough,Peterborough City Council,Adult Services & Communities - Adults,Mental Capacity Act & DoLs,Agency Staff,03/06/2016 00:00,30076354,3800,Revenue,Sanctuary Personnel Ltd,External Temporary Staff
Peterborough,http://opendatacommunities.org/id/unitary-authority/peterborough,Peterborough City Council,Children's & Safeguarding,Children's Social Care,Agency Staff,03/06/2016 00:00,30076357,1326.1,Revenue,Sanctuary Personnel Ltd,External Temporary Staff
Peterborough,http://opendatacommunities.org/id/unitary-authority/peterborough,Peterborough City Council,Adult Services & Communities - Adults,Strategic Commissioning - Management,Agency Staff,03/06/2016 00:00,30076433,2375,Revenue,ReThink Recruitment,External Temporary Staff
Peterborough,http://opendatacommunities.org/id/unitary-authority/peterborough,Peterborough City Council,Adult Services & Communities - Adults,Therapy/Reablement/Community Equipment,Agency Staff,03/06/2016 00:00,30076478,1020,Revenue,SWP Consulting,External Temporary Staff
Peterborough,http://opendatacommunities.org/id/unitary-authority/peterborough,Peterborough City Council,Children's & Safeguarding,Children's Social Care,Agency Staff,03/06/2016 00:00,30076482,990,Revenue,SWP Consulting,External Temporary Staff
Peterborough,http://opendatacommunities.org/id/unitary-authority/peterborough,Peterborough City Council,Children's & Safeguarding,Access to Resources & Specialist Commissioning,Services,03/06/2016 00:00,30076757,2184,Revenue,Transition Care Peterborough Ltd,Boarding Out Allowances
Peterborough,http://opendatacommunities.org/id/unitary-authority/peterborough,Peterborough City Council,Children's & Safeguarding,Access to Resources & Specialist Commissioning,Services,03/06/2016 00:00,30076791,2296,Revenue,Transition Care Peterborough Ltd,Boarding Out Allowances
Peterborough,http://opendatacommunities.org/id/unitary-authority/peterborough,Peterborough City Council,Children's & Safeguarding,Access to Resources & Specialist Commissioning,Services,03/06/2016 00:00,30076990,727.25,Revenue,Axiom Housing Association,Boarding Out Allowances
Peterborough,http://opendatacommunities.org/id/unitary-authority/peterborough,Peterborough City Council,Education,School Improvement,Services,03/06/2016 00:00,30077096,600,Revenue,The National CofE Junior School,Grant Payment
Peterborough,http://opendatacommunities.org/id/unitary-authority/peterborough,Peterborough City Council,Education,School Improvement,Services,03/06/2016 00:00,30077100,1776.88,Revenue,Westwood Junior School,Grant Payment
Peterborough,http://opendatacommunities.org/id/unitary-authority/peterborough,Peterborough City Council,Children's & Safeguarding,Adult & Children Safeguarding Board,Services,03/06/2016 00:00,30077153,2560,Revenue,CTD Social Care & Research Consultancy Ltd,Hired Services
Peterborough,http://opendatacommunities.org/id/unitary-authority/peterborough,Peterborough City Council,Adult Services & Communities - Adults,Independent Sector Placements,Services,03/06/2016 00:00,30077179,-6798,Revenue,Augusta Care Ltd,Home Care
Peterborough,http://opendatacommunities.org/id/unitary-authority/peterborough,Peterborough City Council,Adult Services & Communities - Adults,Independent Sector Placements,Services,03/06/2016 00:00,30077182,-693,Revenue,Augusta Care Ltd,Home Care
Peterborough,http://opendatacommunities.org/id/unitary-authority/peterborough,Peterborough City Council,Legal & Democratic,Elections,Services,03/06/2016 00:00,30077185,1773.16,Revenue,Royal Mail,Postage
Peterborough,http://opendatacommunities.org/id/unitary-authority/peterborough,Peterborough City Council,Legal & Democratic,Elections,Services,03/06/2016 00:00,30077189,2464.07,Revenue,Royal Mail,Postage
Peterborough,http://opendatacommunities.org/id/unitary-authority/peterborough,Peterborough City Council,Legal & Democratic,Elections,Rents,03/06/2016 00:00,30077197,2305.4,Revenue,Portakabin Ltd,Hire Of Premises
Peterborough,http://opendatacommunities.org/id/unitary-authority/peterborough,Peterborough City Council,Adult Services & Communities - Adults,Independent Sector Placements,Services,03/06/2016 00:00,30077532,-1123.75,Revenue,Augusta Care Ltd,Home Care
Peterborough,http://opendatacommunities.org/id/unitary-authority/peterborough,Peterborough City Council,Adult Services & Communities - Adults,Independent Sector Placements,Services,03/06/2016 00:00,30077547,788.12,Revenue,THE CLAIR FRANCIS RETIREMENT HOME,Residential Care
Peterborough,http://opendatacommunities.org/id/unitary-authority/peterborough,Peterborough City Council,Adult Services & Communities - Adults,Independent Sector Placements,Services,03/06/2016 00:00,30077548,1176.12,Revenue,THE CLAIR FRANCIS RETIREMENT HOME,Residential Care
Peterborough,http://opendatacommunities.org/id/unitary-authority/peterborough,Peterborough City Council,Adult Services & Communities - Adults,Independent Sector Placements,Services,03/06/2016 00:00,30077549,1037.44,Revenue,THE CLAIR FRANCIS RETIREMENT HOME,Residential Care
Peterborough,http://opendatacommunities.org/id/unitary-authority/peterborough,Peterborough City Council,Adult Services & Communities - Adults,Independent Sector Placements,Services,03/06/2016 00:00,30077551,1305.4,Revenue,THE CLAIR FRANCIS RETIREMENT HOME,Residential Care
Peterborough,http://opendatacommunities.org/id/unitary-authority/peterborough,Peterborough City Council,Adult Services & Communities - Adults,Independent Sector Placements,Services,03/06/2016 00:00,30077552,1222.16,Revenue,THE CLAIR FRANCIS RETIREMENT HOME,Residential Care
Peterborough,http://opendatacommunities.org/id/unitary-authority/peterborough,Peterborough City Council,Adult Services & Communities - Adults,Independent Sector Placements,Services,03/06/2016 00:00,30077553,1299.08,Revenue,THE CLAIR FRANCIS RETIREMENT HOME,Residential Care
Peterborough,http://opendatacommunities.org/id/unitary-authority/peterborough,Peterborough City Council,Adult Services & Communities - Adults,Independent Sector Placements,Services,03/06/2016 00:00,30077554,1053.44,Revenue,THE CLAIR FRANCIS RETIREMENT HOME,Residential Care
Peterborough,http://opendatacommunities.org/id/unitary-authority/peterborough,Peterborough City Council,Adult Services & Communities - Adults,Independent Sector Placements,Services,03/06/2016 00:00,30077555,1071.04,Revenue,THE CLAIR FRANCIS RETIREMENT HOME,Residential Care
Peterborough,http://opendatacommunities.org/id/unitary-authority/peterborough,Peterborough City Council,Adult Services & Communities - Adults,Independent Sector Placements,Services,03/06/2016 00:00,30077556,1260,Revenue,THE CLAIR FRANCIS RETIREMENT HOME,Residential Care
Peterborough,http://opendatacommunities.org/id/unitary-authority/peterborough,Peterborough City Council,Adult Services & Communities - Adults,Independent Sector Placements,Services,03/06/2016 00:00,30077557,1821.88,Revenue,THE CLAIR FRANCIS RETIREMENT HOME,Residential Care
Peterborough,http://opendatacommunities.org/id/unitary-authority/peterborough,Peterborough City Council,Adult Services & Communities - Adults,Independent Sector Placements,Services,03/06/2016 00:00,30077558,1055.94,Revenue,THE CLAIR FRANCIS RETIREMENT HOME,Residential Care
Peterborough,http://opendatacommunities.org/id/unitary-authority/peterborough,Peterborough City Council,Adult Services & Communities - Adults,Independent Sector Placements,Services,03/06/2016 00:00,30077570,720,Revenue,SOCIAL CARE SOLUTIONS LTD,Home Care
Peterborough,http://opendatacommunities.org/id/unitary-authority/peterborough,Peterborough City Council,Business Management and Commercial Operations,Clare Lodge,Agency Staff,03/06/2016 00:00,30077581,2294,Revenue,Textbook Teachers Ltd,Supply Teachers
Peterborough,http://opendatacommunities.org/id/unitary-authority/peterborough,Peterborough City Council,Adult Services & Communities - Adults,Independent Sector Placements,Services,03/06/2016 00:00,30077583,1328.22,Revenue,Barchester Wood Grange,Residential Care
Peterborough,http://opendatacommunities.org/id/unitary-authority/peterborough,Peterborough City Council,Adult Services & Communities - Adults,Independent Sector Placements,Services,03/06/2016 00:00,30077584,1728.4,Revenue,GSE Residential Ltd,Residential Care
Peterborough,http://opendatacommunities.org/id/unitary-authority/peterborough,Peterborough City Council,Adult Services & Communities - Adults,Independent Sector Placements,Services,03/06/2016 00:00,30077587,1674.52,Revenue,Ashmere,Residential Care
Peterborough,http://opendatacommunities.org/id/unitary-authority/peterborough,Peterborough City Council,Adult Services & Communities - Adults,Independent Sector Placements,Services,03/06/2016 00:00,30077589,3676.44,Revenue,Consensus Support Services Ltd,Residential Care
Peterborough,http://opendatacommunities.org/id/unitary-authority/peterborough,Peterborough City Council,Adult Services & Communities - Adults,Independent Sector Placements,Services,03/06/2016 00:00,30077592,3534,Revenue,Thera East Anglia,Day Care
Peterborough,http://opendatacommunities.org/id/unitary-authority/peterborough,Peterborough City Council,Adult Services & Communities - Adults,Independent Sector Placements,Services,03/06/2016 00:00,30077594,2269.45,Revenue,Thera East Anglia,Day Care
Peterborough,http://opendatacommunities.org/id/unitary-authority/peterborough,Peterborough City Council,Adult Services & Communities - Adults,Independent Sector Placements,Services,03/06/2016 00:00,30077596,1403.02,Revenue,The Regard Partnership Limited,Residential Care
Peterborough,http://opendatacommunities.org/id/unitary-authority/peterborough,Peterborough City Council,Adult Services & Communities - Adults,Independent Sector Placements,Services,03/06/2016 00:00,30077597,610,Revenue,The Regard Partnership Limited,Residential Care
Peterborough,http://opendatacommunities.org/id/unitary-authority/peterborough,Peterborough City Council,Adult Services & Communities - Adults,Independent Sector Placements,Services,03/06/2016 00:00,30077601,1234.8,Revenue,Avery Homes (Nelson) Ltd,Residential Care
Peterborough,http://opendatacommunities.org/id/unitary-authority/peterborough,Peterborough City Council,Adult Services & Communities - Adults,Independent Sector Placements,Services,03/06/2016 00:00,30077603,1173.52,Revenue,Avery Homes (Nelson) Ltd,Residential Care
Peterborough,http://opendatacommunities.org/id/unitary-authority/peterborough,Peterborough City Council,Adult Services & Communities - Adults,Independent Sector Placements,Services,03/06/2016 00:00,30077605,2015,Revenue,Klair House Residential Care Homes,Residential Care
Peterborough,http://opendatacommunities.org/id/unitary-authority/peterborough,Peterborough City Council,Adult Services & Communities - Adults,Independent Sector Placements,Services,03/06/2016 00:00,30077606,2004.7,Revenue,Allied Healthcare (UK) Ltd,Home Care
Peterborough,http://opendatacommunities.org/id/unitary-authority/peterborough,Peterborough City Council,Corporate,Corporate,Non Revenue,03/06/2016 00:00,30077632,825107.7,Balance Sheet,Teachers Pensions,Pensions
Peterborough,http://opendatacommunities.org/id/unitary-authority/peterborough,Peterborough City Council,Corporate Items,Corporate Services,Employers Superannuation Contributions,03/06/2016 00:00,30077662,209479.31,Revenue,Cambridgeshire County Council,Pensions
Peterborough,http://opendatacommunities.org/id/unitary-authority/peterborough,Peterborough City Council,Corporate Items,Corporate Services,Employers Superannuation Contributions,03/06/2016 00:00,30077664,204452,Revenue,Cambridgeshire County Council,Pensions
Peterborough,http://opendatacommunities.org/id/unitary-authority/peterborough,Peterborough City Council,Corporate Items,Corporate Services,Employers Superannuation Contributions,03/06/2016 00:00,30077665,12336.96,Revenue,Cambridgeshire County Council,Pensions
Peterborough,http://opendatacommunities.org/id/unitary-authority/peterborough,Peterborough City Council,Corporate,Corporate,Non Revenue,03/06/2016 00:00,30077666,2375,Capital,Number 10 Interim Ltd,Consultants Fees
Peterborough,http://opendatacommunities.org/id/unitary-authority/peterborough,Peterborough City Council,Corporate,Corporate,Non Revenue,03/06/2016 00:00,30077667,2375,Capital,Number 10 Interim Ltd,Consultants Fees
Peterborough,http://opendatacommunities.org/id/unitary-authority/peterborough,Peterborough City Council,Corporate,Corporate,Non Revenue,03/06/2016 00:00,30077668,2375,Capital,Number 10 Interim Ltd,Consultants Fees
Peterborough,http://opendatacommunities.org/id/unitary-authority/peterborough,Peterborough City Council,Corporate,Corporate,Non Revenue,03/06/2016 00:00,30077670,2375,Capital,Number 10 Interim Ltd,Consultants Fees
Peterborough,http://opendatacommunities.org/id/unitary-authority/peterborough,Peterborough City Council,Corporate,Corporate,Non Revenue,03/06/2016 00:00,30077671,1900,Capital,Number 10 Interim Ltd,Consultants Fees
Peterborough,http://opendatacommunities.org/id/unitary-authority/peterborough,Peterborough City Council,Children's & Safeguarding,Access to Resources & Specialist Commissioning,Services,03/06/2016 00:00,30077674,3582.86,Revenue,Ethelbert Childrens Services,Boarding Out Allowances
Peterborough,http://opendatacommunities.org/id/unitary-authority/peterborough,Peterborough City Council,Children's & Safeguarding,Access to Resources & Specialist Commissioning,Services,03/06/2016 00:00,30077675,6070.71,Revenue,Ethelbert Childrens Services,Boarding Out Allowances
Peterborough,http://opendatacommunities.org/id/unitary-authority/peterborough,Peterborough City Council,Peterborough Highway Services,Transport & Infrastructure Commissioning,Services,03/06/2016 00:00,30077692,745,Revenue,Speed,Website
Peterborough,http://opendatacommunities.org/id/unitary-authority/peterborough,Peterborough City Council,HR,HR WFD & Training,Services,03/06/2016 00:00,30077722,8662.5,Revenue,TMP (UK) LTD,I T Services
Peterborough,http://opendatacommunities.org/id/unitary-authority/peterborough,Peterborough City Council,City Servs & Communications,Parking Services,Services,03/06/2016 00:00,30077733,1550,Revenue,Metric Group Ltd,Equipment Maintenance
Peterborough,http://opendatacommunities.org/id/unitary-authority/peterborough,Peterborough City Council,Children's & Safeguarding,Access to Resources & Specialist Commissioning,Services,03/06/2016 00:00,30077741,2621.5,Revenue,Spring Common School,Education Expenses
Peterborough,http://opendatacommunities.org/id/unitary-authority/peterborough,Peterborough City Council,Children's & Safeguarding,Access to Resources & Specialist Commissioning,Services,03/06/2016 00:00,30077742,2621.5,Revenue,Spring Common School,Education Expenses
Peterborough,http://opendatacommunities.org/id/unitary-authority/peterborough,Peterborough City Council,Vivacity/Cultural Services,Cultural Services,Services,03/06/2016 00:00,30077757,3541.54,Revenue,Vivacity Culture and Leisure,Cash Collection
Peterborough,http://opendatacommunities.org/id/unitary-authority/peterborough,Peterborough City Council,Westcombe Engineering,Westcombe Engineering,Services,03/06/2016 00:00,30077795,570,Revenue,Barron Clark Castings Ltd,Items For Resale
Peterborough,http://opendatacommunities.org/id/unitary-authority/peterborough,Peterborough City Council,Westcombe Engineering,Westcombe Engineering,Services,03/06/2016 00:00,30077798,1324,Revenue,Barron Clark Castings Ltd,Items For Resale
Peterborough,http://opendatacommunities.org/id/unitary-authority/peterborough,Peterborough City Council,Adults and Communities - Communities,Housing and Health,Services,03/06/2016 00:00,30077802,1725.5,Revenue,Nightingale Services,Contractors
Peterborough,http://opendatacommunities.org/id/unitary-authority/peterborough,Peterborough City Council,Westcombe Engineering,Westcombe Engineering,Services,03/06/2016 00:00,30077805,1158.5,Revenue,Barron Clark Castings Ltd,Items For Resale
Peterborough,http://opendatacommunities.org/id/unitary-authority/peterborough,Peterborough City Council,Westcombe Engineering,Westcombe Engineering,Services,03/06/2016 00:00,30077807,1324,Revenue,Barron Clark Castings Ltd,Items For Resale
Peterborough,http://opendatacommunities.org/id/unitary-authority/peterborough,Peterborough City Council,Children's & Safeguarding,Access to Resources & Specialist Commissioning,Services,03/06/2016 00:00,30077826,1950,Revenue,Sixteen Plus Limited,Boarding Out Allowances
Peterborough,http://opendatacommunities.org/id/unitary-authority/peterborough,Peterborough City Council,Children's & Safeguarding,Access to Resources & Specialist Commissioning,Services,03/06/2016 00:00,30077827,1642.85,Revenue,Sixteen Plus Limited,Boarding Out Allowances
Peterborough,http://opendatacommunities.org/id/unitary-authority/peterborough,Peterborough City Council,Children's & Safeguarding,Access to Resources & Specialist Commissioning,Services,03/06/2016 00:00,30077831,2035.71,Revenue,Sixteen Plus Limited,Boarding Out Allowances
Peterborough,http://opendatacommunities.org/id/unitary-authority/peterborough,Peterborough City Council,Children's & Safeguarding,Access to Resources & Specialist Commissioning,Services,03/06/2016 00:00,30077833,3509.99,Revenue,Sixteen Plus Limited,Boarding Out Allowances
Peterborough,http://opendatacommunities.org/id/unitary-authority/peterborough,Peterborough City Council,Children's & Safeguarding,Access to Resources & Specialist Commissioning,Services,03/06/2016 00:00,30077834,2464.28,Revenue,Sixteen Plus Limited,Boarding Out Allowances
Peterborough,http://opendatacommunities.org/id/unitary-authority/peterborough,Peterborough City Council,Education,Service Director Education,Employers Superannuation Contributions,03/06/2016 00:00,30077840,25947.73,Revenue,Teachers Pensions,Pensions
Peterborough,http://opendatacommunities.org/id/unitary-authority/peterborough,Peterborough City Council,Children's & Safeguarding,Children's Social Care,Agency Staff,03/06/2016 00:00,30077882,1406,Revenue,NonStop Recruitment Ltd,External Temporary Staff
Peterborough,http://opendatacommunities.org/id/unitary-authority/peterborough,Peterborough City Council,Children's & Safeguarding,Children's Social Care,Agency Staff,03/06/2016 00:00,30077883,1406,Revenue,NonStop Recruitment Ltd,External Temporary Staff
Peterborough,http://opendatacommunities.org/id/unitary-authority/peterborough,Peterborough City Council,ICT,ICT,Services,03/06/2016 00:00,30077884,-5308.94,Revenue,BT Contract Rentals Ltd,Telephones
Peterborough,http://opendatacommunities.org/id/unitary-authority/peterborough,Peterborough City Council,Corporate,Corporate,Non Revenue,03/06/2016 00:00,30077887,28500,Capital,Rider Levett Bucknall UK Ltd,Consultants Fees
Peterborough,http://opendatacommunities.org/id/unitary-authority/peterborough,Peterborough City Council,Corporate,Corporate,Non Revenue,03/06/2016 00:00,30077889,3000,Capital,Rider Levett Bucknall UK Ltd,Consultants Fees
Peterborough,http://opendatacommunities.org/id/unitary-authority/peterborough,Peterborough City Council,Corporate,Corporate,Non Revenue,03/06/2016 00:00,30077894,4000,Capital,Rider Levett Bucknall UK Ltd,Consultants Fees
Peterborough,http://opendatacommunities.org/id/unitary-authority/peterborough,Peterborough City Council,Corporate,Corporate,Non Revenue,03/06/2016 00:00,30077895,21500,Capital,Rider Levett Bucknall UK Ltd,Consultants Fees
Peterborough,http://opendatacommunities.org/id/unitary-authority/peterborough,Peterborough City Council,Education,Service Director Education,Repairs & Maintenance of Buildings,03/06/2016 00:00,30077898,8582.03,Revenue,GPR Gas Services,Premises Maintenance
Peterborough,http://opendatacommunities.org/id/unitary-authority/peterborough,Peterborough City Council,Business Management and Commercial Operations,Clare Lodge,Services,03/06/2016 00:00,30077903,1112,Revenue,Redacted Personal Data,Hired Services
Peterborough,http://opendatacommunities.org/id/unitary-authority/peterborough,Peterborough City Council,Vivacity/Cultural Services,Cultural Services,Services,03/06/2016 00:00,30077906,4297.08,Revenue,Whistl UK Ltd,Postage
Peterborough,http://opendatacommunities.org/id/unitary-authority/peterborough,Peterborough City Council,Adults and Communities - Communities,Housing and Health,Services,03/06/2016 00:00,30077911,507.5,Revenue,Eastfield Guesthouse,Homelessness Bed & Breakfast Costs
Peterborough,http://opendatacommunities.org/id/unitary-authority/peterborough,Peterborough City Council,Adults and Communities - Communities,Housing and Health,Services,03/06/2016 00:00,30077923,507.5,Revenue,Eastfield Guesthouse,Homelessness Bed & Breakfast Costs
Peterborough,http://opendatacommunities.org/id/unitary-authority/peterborough,Peterborough City Council,Adults and Communities - Communities,Housing and Health,Services,03/06/2016 00:00,30077925,507.5,Revenue,Eastfield Guesthouse,Homelessness Bed & Breakfast Costs
Peterborough,http://opendatacommunities.org/id/unitary-authority/peterborough,Peterborough City Council,Adults and Communities - Communities,Housing and Health,Services,03/06/2016 00:00,30077927,507.5,Revenue,Eastfield Guesthouse,Homelessness Bed & Breakfast Costs
Peterborough,http://opendatacommunities.org/id/unitary-authority/peterborough,Peterborough City Council,Adults and Communities - Communities,Housing and Health,Services,03/06/2016 00:00,30077928,507.5,Revenue,Eastfield Guesthouse,Homelessness Bed & Breakfast Costs
Peterborough,http://opendatacommunities.org/id/unitary-authority/peterborough,Peterborough City Council,Adults and Communities - Communities,Housing and Health,Services,03/06/2016 00:00,30077941,655.06,Revenue,DA Rosalia Hotel,Homelessness Bed & Breakfast Costs
Peterborough,http://opendatacommunities.org/id/unitary-authority/peterborough,Peterborough City Council,Adult Services & Communities - Adults,Independent Sector Placements,Services,03/06/2016 00:00,8000063557,5090.4,Revenue,Augusta Care Ltd,Home Care
Peterborough,http://opendatacommunities.org/id/unitary-authority/peterborough,Peterborough City Council,Adult Services & Communities - Adults,Independent Sector Placements,Services,03/06/2016 00:00,8000063558,792,Revenue,Augusta Care Ltd,Home Care
Peterborough,http://opendatacommunities.org/id/unitary-authority/peterborough,Peterborough City Council,Adult Services & Communities - Adults,Independent Sector Placements,Services,03/06/2016 00:00,8000063559,1703.2,Revenue,Augusta Care Ltd,Home Care
Peterborough,http://opendatacommunities.org/id/unitary-authority/peterborough,Peterborough City Council,Adult Services & Communities - Adults,Independent Sector Placements,Services,03/06/2016 00:00,8000063560,3075.96,Revenue,Augusta Care Ltd,Home Care
Peterborough,http://opendatacommunities.org/id/unitary-authority/peterborough,Peterborough City Council,Adult Services & Communities - Adults,Independent Sector Placements,Services,03/06/2016 00:00,8000063561,4430.4,Revenue,Augusta Care Ltd,Home Care
Peterborough,http://opendatacommunities.org/id/unitary-authority/peterborough,Peterborough City Council,Adult Services & Communities - Adults,Independent Sector Placements,Services,03/06/2016 00:00,8000063563,3702,Revenue,Augusta Care Ltd,Home Care
Peterborough,http://opendatacommunities.org/id/unitary-authority/peterborough,Peterborough City Council,Adult Services & Communities - Adults,Independent Sector Placements,Services,03/06/2016 00:00,8000063564,2646,Revenue,Augusta Care Ltd,Home Care
Peterborough,http://opendatacommunities.org/id/unitary-authority/peterborough,Peterborough City Council,Adult Services & Communities - Adults,Independent Sector Placements,Services,03/06/2016 00:00,8000063565,4764.8,Revenue,Augusta Care Ltd,Home Care
Peterborough,http://opendatacommunities.org/id/unitary-authority/peterborough,Peterborough City Council,Adult Services & Communities - Adults,Independent Sector Placements,Services,03/06/2016 00:00,8000063566,3200,Revenue,Augusta Care Ltd,Home Care
Peterborough,http://opendatacommunities.org/id/unitary-authority/peterborough,Peterborough City Council,Adult Services & Communities - Adults,Independent Sector Placements,Services,03/06/2016 00:00,8000063567,3339.2,Revenue,Augusta Care Ltd,Home Care
Peterborough,http://opendatacommunities.org/id/unitary-authority/peterborough,Peterborough City Council,Adult Services & Communities - Adults,Independent Sector Placements,Services,03/06/2016 00:00,8000063569,4126.8,Revenue,Augusta Care Ltd,Home Care
Peterborough,http://opendatacommunities.org/id/unitary-authority/peterborough,Peterborough City Council,Adult Services & Communities - Adults,Independent Sector Placements,Services,03/06/2016 00:00,8000063570,4232.4,Revenue,Augusta Care Ltd,Home Care
Peterborough,http://opendatacommunities.org/id/unitary-authority/peterborough,Peterborough City Council,Adult Services & Communities - Adults,Independent Sector Placements,Services,03/06/2016 00:00,8000063572,6854.4,Revenue,Augusta Care Ltd,Home Care
Peterborough,http://opendatacommunities.org/id/unitary-authority/peterborough,Peterborough City Council,Adult Services & Communities - Adults,Independent Sector Placements,Services,03/06/2016 00:00,8000063573,10348.8,Revenue,Augusta Care Ltd,Home Care
Peterborough,http://opendatacommunities.org/id/unitary-authority/peterborough,Peterborough City Council,Adult Services & Communities - Adults,Independent Sector Placements,Services,03/06/2016 00:00,8000063577,8452.8,Revenue,Augusta Care Ltd,Home Care
Peterborough,http://opendatacommunities.org/id/unitary-authority/peterborough,Peterborough City Council,Adult Services & Communities - Adults,Independent Sector Placements,Services,03/06/2016 00:00,8000063578,1301.52,Revenue,Augusta Care Ltd,Home Care
Peterborough,http://opendatacommunities.org/id/unitary-authority/peterborough,Peterborough City Council,Adult Services & Communities - Adults,Independent Sector Placements,Services,03/06/2016 00:00,8000063579,1455.12,Revenue,Augusta Care Ltd,Home Care
Peterborough,http://opendatacommunities.org/id/unitary-authority/peterborough,Peterborough City Council,Adult Services & Communities - Adults,Independent Sector Placements,Services,03/06/2016 00:00,8000063580,879.12,Revenue,Augusta Care Ltd,Home Care
Peterborough,http://opendatacommunities.org/id/unitary-authority/peterborough,Peterborough City Council,Adult Services & Communities - Adults,Independent Sector Placements,Services,03/06/2016 00:00,8000063581,2661.12,Revenue,Augusta Care Ltd,Home Care
Peterborough,http://opendatacommunities.org/id/unitary-authority/peterborough,Peterborough City Council,Adult Services & Communities - Adults,Independent Sector Placements,Services,03/06/2016 00:00,8000063582,3097.2,Revenue,Augusta Care Ltd,Home Care
Peterborough,http://opendatacommunities.org/id/unitary-authority/peterborough,Peterborough City Council,Adult Services & Communities - Adults,Independent Sector Placements,Services,03/06/2016 00:00,8000063583,4029.92,Revenue,Augusta Care Ltd,Home Care
Peterborough,http://opendatacommunities.org/id/unitary-authority/peterborough,Peterborough City Council,Adult Services & Communities - Adults,Independent Sector Placements,Services,03/06/2016 00:00,8000063584,508.2,Revenue,Augusta Care Ltd,Home Care
Peterborough,http://opendatacommunities.org/id/unitary-authority/peterborough,Peterborough City Council,Adult Services & Communities - Adults,Independent Sector Placements,Services,03/06/2016 00:00,8000063585,508.2,Revenue,Augusta Care Ltd,Home Care
Peterborough,http://opendatacommunities.org/id/unitary-authority/peterborough,Peterborough City Council,Adult Services & Communities - Adults,Independent Sector Placements,Services,03/06/2016 00:00,8000063586,508.2,Revenue,Augusta Care Ltd,Home Care
Peterborough,http://opendatacommunities.org/id/unitary-authority/peterborough,Peterborough City Council,Adult Services & Communities - Adults,Independent Sector Placements,Services,03/06/2016 00:00,8000063587,1234.2,Revenue,Augusta Care Ltd,Home Care
Peterborough,http://opendatacommunities.org/id/unitary-authority/peterborough,Peterborough City Council,Adult Services & Communities - Adults,Independent Sector Placements,Services,03/06/2016 00:00,8000063588,6854.4,Revenue,Augusta Care Ltd,Home Care
Peterborough,http://opendatacommunities.org/id/unitary-authority/peterborough,Peterborough City Council,Adult Services & Communities - Adults,Independent Sector Placements,Services,03/06/2016 00:00,8000063589,1491.6,Revenue,Augusta Care Ltd,Home Care
Peterborough,http://opendatacommunities.org/id/unitary-authority/peterborough,Peterborough City Council,Adult Services & Communities - Adults,Independent Sector Placements,Services,03/06/2016 00:00,8000063590,3127.6,Revenue,Augusta Care Ltd,Home Care
Peterborough,http://opendatacommunities.org/id/unitary-authority/peterborough,Peterborough City Council,Adult Services & Communities - Adults,Independent Sector Placements,Services,03/06/2016 00:00,8000063591,3219.76,Revenue,Augusta Care Ltd,Home Care
Peterborough,http://opendatacommunities.org/id/unitary-authority/peterborough,Peterborough City Council,Adult Services & Communities - Adults,Independent Sector Placements,Services,03/06/2016 00:00,8000063592,3506.4,Revenue,Augusta Care Ltd,Home Care
Peterborough,http://opendatacommunities.org/id/unitary-authority/peterborough,Peterborough City Council,Adult Services & Communities - Adults,Independent Sector Placements,Services,03/06/2016 00:00,8000063593,607.2,Revenue,Augusta Care Ltd,Home Care
Peterborough,http://opendatacommunities.org/id/unitary-authority/peterborough,Peterborough City Council,Adult Services & Communities - Adults,Independent Sector Placements,Services,03/06/2016 00:00,8000063594,3116.4,Revenue,Augusta Care Ltd,Home Care
Peterborough,http://opendatacommunities.org/id/unitary-authority/peterborough,Peterborough City Council,Adult Services & Communities - Adults,Independent Sector Placements,Services,03/06/2016 00:00,8000063595,1724.8,Revenue,Augusta Care Ltd,Home Care
Peterborough,http://opendatacommunities.org/id/unitary-authority/peterborough,Peterborough City Council,Adult Services & Communities - Adults,Independent Sector Placements,Services,03/06/2016 00:00,8000063596,1724.8,Revenue,Augusta Care Ltd,Home Care
Peterborough,http://opendatacommunities.org/id/unitary-authority/peterborough,Peterborough City Council,Adult Services & Communities - Adults,Independent Sector Placements,Services,03/06/2016 00:00,8000063597,501.6,Revenue,Augusta Care Ltd,Home Care
Peterborough,http://opendatacommunities.org/id/unitary-authority/peterborough,Peterborough City Council,Adult Services & Communities - Adults,Independent Sector Placements,Services,03/06/2016 00:00,8000063601,2391.03,Revenue,COMFORCARE SENIOR SERVICES,Home Care
Peterborough,http://opendatacommunities.org/id/unitary-authority/peterborough,Peterborough City Council,Adult Services & Communities - Adults,Independent Sector Placements,Services,03/06/2016 00:00,8000063602,1336.36,Revenue,COMFORCARE SENIOR SERVICES,Home Care
Peterborough,http://opendatacommunities.org/id/unitary-authority/peterborough,Peterborough City Council,Adult Services & Communities - Adults,Independent Sector Placements,Services,03/06/2016 00:00,8000063604,742.28,Revenue,COMFORCARE SENIOR SERVICES,Home Care
Peterborough,http://opendatacommunities.org/id/unitary-authority/peterborough,Peterborough City Council,Adult Services & Communities - Adults,Independent Sector Placements,Services,03/06/2016 00:00,8000063606,649.66,Revenue,COMFORCARE SENIOR SERVICES,Home Care
Peterborough,http://opendatacommunities.org/id/unitary-authority/peterborough,Peterborough City Council,Adult Services & Communities - Adults,Independent Sector Placements,Services,03/06/2016 00:00,8000063607,916.3,Revenue,COMFORCARE SENIOR SERVICES,Home Care
Peterborough,http://opendatacommunities.org/id/unitary-authority/peterborough,Peterborough City Council,Adult Services & Communities - Adults,Independent Sector Placements,Services,03/06/2016 00:00,8000063608,1241.24,Revenue,COMFORCARE SENIOR SERVICES,Home Care
Peterborough,http://opendatacommunities.org/id/unitary-authority/peterborough,Peterborough City Council,Adult Services & Communities - Adults,Independent Sector Placements,Services,03/06/2016 00:00,8000063611,1306.58,Revenue,COMFORCARE SENIOR SERVICES,Home Care
Peterborough,http://opendatacommunities.org/id/unitary-authority/peterborough,Peterborough City Council,Adult Services & Communities - Adults,Independent Sector Placements,Services,03/06/2016 00:00,8000063612,749.1,Revenue,COMFORCARE SENIOR SERVICES,Home Care
Peterborough,http://opendatacommunities.org/id/unitary-authority/peterborough,Peterborough City Council,Adult Services & Communities - Adults,Independent Sector Placements,Services,03/06/2016 00:00,8000063614,646.8,Revenue,COMFORCARE SENIOR SERVICES,Home Care
Peterborough,http://opendatacommunities.org/id/unitary-authority/peterborough,Peterborough City Council,Adult Services & Communities - Adults,Independent Sector Placements,Services,03/06/2016 00:00,8000063616,1227.6,Revenue,COMFORCARE SENIOR SERVICES,Home Care
Peterborough,http://opendatacommunities.org/id/unitary-authority/peterborough,Peterborough City Council,Adult Services & Communities - Adults,Independent Sector Placements,Services,03/06/2016 00:00,8000063618,551.76,Revenue,COMFORCARE SENIOR SERVICES,Home Care
Peterborough,http://opendatacommunities.org/id/unitary-authority/peterborough,Peterborough City Council,Adult Services & Communities - Adults,Independent Sector Placements,Services,03/06/2016 00:00,8000063620,1181.74,Revenue,COMFORCARE SENIOR SERVICES,Home Care
Peterborough,http://opendatacommunities.org/id/unitary-authority/peterborough,Peterborough City Council,Adult Services & Communities - Adults,Independent Sector Placements,Services,03/06/2016 00:00,8000063624,748.22,Revenue,COMFORCARE SENIOR SERVICES,Home Care
Peterborough,http://opendatacommunities.org/id/unitary-authority/peterborough,Peterborough City Council,Adult Services & Communities - Adults,Independent Sector Placements,Services,03/06/2016 00:00,8000063626,1124.2,Revenue,COMFORCARE SENIOR SERVICES,Home Care
Peterborough,http://opendatacommunities.org/id/unitary-authority/peterborough,Peterborough City Council,Adult Services & Communities - Adults,Independent Sector Placements,Services,03/06/2016 00:00,8000063628,2060.74,Revenue,COMFORCARE SENIOR SERVICES,Home Care
Peterborough,http://opendatacommunities.org/id/unitary-authority/peterborough,Peterborough City Council,Adult Services & Communities - Adults,Independent Sector Placements,Services,03/06/2016 00:00,8000063631,739.42,Revenue,COMFORCARE SENIOR SERVICES,Home Care
Peterborough,http://opendatacommunities.org/id/unitary-authority/peterborough,Peterborough City Council,Adult Services & Communities - Adults,Independent Sector Placements,Services,03/06/2016 00:00,8000063632,974.16,Revenue,COMFORCARE SENIOR SERVICES,Home Care
Peterborough,http://opendatacommunities.org/id/unitary-authority/peterborough,Peterborough City Council,Adult Services & Communities - Adults,Independent Sector Placements,Services,03/06/2016 00:00,8000063635,555.28,Revenue,COMFORCARE SENIOR SERVICES,Home Care
Peterborough,http://opendatacommunities.org/id/unitary-authority/peterborough,Peterborough City Council,Adult Services & Communities - Adults,Independent Sector Placements,Services,03/06/2016 00:00,8000063636,557.04,Revenue,COMFORCARE SENIOR SERVICES,Home Care
Peterborough,http://opendatacommunities.org/id/unitary-authority/peterborough,Peterborough City Council,Adult Services & Communities - Adults,Independent Sector Placements,Services,03/06/2016 00:00,8000063638,875.16,Revenue,COMFORCARE SENIOR SERVICES,Home Care
Peterborough,http://opendatacommunities.org/id/unitary-authority/peterborough,Peterborough City Council,Adult Services & Communities - Adults,Independent Sector Placements,Services,03/06/2016 00:00,8000063645,550.44,Revenue,COMFORCARE SENIOR SERVICES,Home Care
Peterborough,http://opendatacommunities.org/id/unitary-authority/peterborough,Peterborough City Council,Adult Services & Communities - Adults,Independent Sector Placements,Services,03/06/2016 00:00,8000063655,539,Revenue,COMFORCARE SENIOR SERVICES,Home Care
Peterborough,http://opendatacommunities.org/id/unitary-authority/peterborough,Peterborough City Council,Education,Home to School Transport,Contract Hire and Operating Leases,03/06/2016 00:00,8000064023,1507.99,Revenue,A2B Euro Cars,Hired Transport
Peterborough,http://opendatacommunities.org/id/unitary-authority/peterborough,Peterborough City Council,Education,Home to School Transport,Contract Hire and Operating Leases,03/06/2016 00:00,8000064024,630,Revenue,A2B Euro Cars,Hired Transport
Peterborough,http://opendatacommunities.org/id/unitary-authority/peterborough,Peterborough City Council,Education,Home to School Transport,Contract Hire and Operating Leases,03/06/2016 00:00,8000064025,1255,Revenue,A2B Euro Cars,Hired Transport
Peterborough,http://opendatacommunities.org/id/unitary-authority/peterborough,Peterborough City Council,Education,Home to School Transport,Contract Hire and Operating Leases,03/06/2016 00:00,8000064026,945.5,Revenue,A2B Euro Cars,Hired Transport
Peterborough,http://opendatacommunities.org/id/unitary-authority/peterborough,Peterborough City Council,Education,Home to School Transport,Contract Hire and Operating Leases,03/06/2016 00:00,8000064027,538,Revenue,A2B Euro Cars,Hired Transport
Peterborough,http://opendatacommunities.org/id/unitary-authority/peterborough,Peterborough City Council,Education,Home to School Transport,Contract Hire and Operating Leases,03/06/2016 00:00,8000064028,812,Revenue,A2B Euro Cars,Hired Transport
Peterborough,http://opendatacommunities.org/id/unitary-authority/peterborough,Peterborough City Council,Education,Home to School Transport,Contract Hire and Operating Leases,03/06/2016 00:00,8000064029,686,Revenue,A2B Euro Cars,Hired Transport
Peterborough,http://opendatacommunities.org/id/unitary-authority/peterborough,Peterborough City Council,Education,Home to School Transport,Contract Hire and Operating Leases,03/06/2016 00:00,8000064030,779,Revenue,A2B Euro Cars,Hired Transport
Peterborough,http://opendatacommunities.org/id/unitary-authority/peterborough,Peterborough City Council,Education,Home to School Transport,Contract Hire and Operating Leases,03/06/2016 00:00,8000064032,1458.05,Revenue,Goldstar Cabs Ltd,Hired Transport
Peterborough,http://opendatacommunities.org/id/unitary-authority/peterborough,Peterborough City Council,Education,Home to School Transport,Contract Hire and Operating Leases,03/06/2016 00:00,8000064033,1530.45,Revenue,Goldstar Cabs Ltd,Hired Transport
Peterborough,http://opendatacommunities.org/id/unitary-authority/peterborough,Peterborough City Council,Education,Home to School Transport,Contract Hire and Operating Leases,03/06/2016 00:00,8000064034,822.3,Revenue,Goldstar Cabs Ltd,Hired Transport
Peterborough,http://opendatacommunities.org/id/unitary-authority/peterborough,Peterborough City Council,Education,Home to School Transport,Contract Hire and Operating Leases,03/06/2016 00:00,8000064035,779.2,Revenue,Goldstar Cabs Ltd,Hired Transport
Peterborough,http://opendatacommunities.org/id/unitary-authority/peterborough,Peterborough City Council,Education,Home to School Transport,Contract Hire and Operating Leases,03/06/2016 00:00,8000064036,815.6,Revenue,Goldstar Cabs Ltd,Hired Transport
Peterborough,http://opendatacommunities.org/id/unitary-authority/peterborough,Peterborough City Council,Education,Home to School Transport,Contract Hire and Operating Leases,03/06/2016 00:00,8000064037,815.2,Revenue,Goldstar Cabs Ltd,Hired Transport
Peterborough,http://opendatacommunities.org/id/unitary-authority/peterborough,Peterborough City Council,Education,Home to School Transport,Contract Hire and Operating Leases,03/06/2016 00:00,8000064038,1934,Revenue,Goldstar Cabs Ltd,Hired Transport
Peterborough,http://opendatacommunities.org/id/unitary-authority/peterborough,Peterborough City Council,Education,Home to School Transport,Contract Hire and Operating Leases,03/06/2016 00:00,8000064039,584,Revenue,Goldstar Cabs Ltd,Hired Transport
Peterborough,http://opendatacommunities.org/id/unitary-authority/peterborough,Peterborough City Council,Education,Home to School Transport,Contract Hire and Operating Leases,03/06/2016 00:00,8000064040,1224.5,Revenue,Goldstar Cabs Ltd,Hired Transport
Peterborough,http://opendatacommunities.org/id/unitary-authority/peterborough,Peterborough City Council,Education,Home to School Transport,Contract Hire and Operating Leases,03/06/2016 00:00,8000064041,665,Revenue,Goldstar Cabs Ltd,Hired Transport
Peterborough,http://opendatacommunities.org/id/unitary-authority/peterborough,Peterborough City Council,Education,Home to School Transport,Contract Hire and Operating Leases,03/06/2016 00:00,8000064042,1848,Revenue,Goldstar Cabs Ltd,Hired Transport
Peterborough,http://opendatacommunities.org/id/unitary-authority/peterborough,Peterborough City Council,Education,Home to School Transport,Contract Hire and Operating Leases,03/06/2016 00:00,8000064043,540,Revenue,Goldstar Cabs Ltd,Hired Transport
Peterborough,http://opendatacommunities.org/id/unitary-authority/peterborough,Peterborough City Council,Education,Home to School Transport,Contract Hire and Operating Leases,03/06/2016 00:00,8000064044,1899.99,Revenue,Goldstar Cabs Ltd,Hired Transport
Peterborough,http://opendatacommunities.org/id/unitary-authority/peterborough,Peterborough City Council,Education,Home to School Transport,Contract Hire and Operating Leases,03/06/2016 00:00,8000064045,1682,Revenue,Goldstar Cabs Ltd,Hired Transport
Peterborough,http://opendatacommunities.org/id/unitary-authority/peterborough,Peterborough City Council,Education,Home to School Transport,Contract Hire and Operating Leases,03/06/2016 00:00,8000064046,1286.25,Revenue,Goldstar Cabs Ltd,Hired Transport
Peterborough,http://opendatacommunities.org/id/unitary-authority/peterborough,Peterborough City Council,Education,Home to School Transport,Contract Hire and Operating Leases,03/06/2016 00:00,8000064049,509.2,Revenue,Redacted Personal Data,Hired Transport
Peterborough,http://opendatacommunities.org/id/unitary-authority/peterborough,Peterborough City Council,Adult Services & Communities - Adults,Independent Sector Placements,Services,06/06/2016 00:00,30061615,-2245.68,Revenue,BUPA Care Homes,Residential Care
Peterborough,http://opendatacommunities.org/id/unitary-authority/peterborough,Peterborough City Council,Adult Services & Communities - Adults,Independent Sector Placements,Services,06/06/2016 00:00,30061653,-2245.68,Revenue,BUPA Care Homes,Residential Care
Peterborough,http://opendatacommunities.org/id/unitary-authority/peterborough,Peterborough City Council,Adult Services & Communities - Adults,Independent Sector Placements,Services,06/06/2016 00:00,30061654,-2245.68,Revenue,BUPA Care Homes,Residential Care
Peterborough,http://opendatacommunities.org/id/unitary-authority/peterborough,Peterborough City Council,Adult Services & Communities - Adults,Independent Sector Placements,Services,06/06/2016 00:00,30061655,-562.86,Revenue,BUPA Care Homes,Residential Care
Peterborough,http://opendatacommunities.org/id/unitary-authority/peterborough,Peterborough City Council,Adult Services & Communities - Adults,Independent Sector Placements,Services,06/06/2016 00:00,30061657,-2245.68,Revenue,BUPA Care Homes,Residential Care
Peterborough,http://opendatacommunities.org/id/unitary-authority/peterborough,Peterborough City Council,Adult Services & Communities - Adults,Independent Sector Placements,Services,06/06/2016 00:00,30061660,-2245.68,Revenue,BUPA Care Homes,Residential Care
Peterborough,http://opendatacommunities.org/id/unitary-authority/peterborough,Peterborough City Council,Adult Services & Communities - Adults,Independent Sector Placements,Services,06/06/2016 00:00,30061665,-2245.68,Revenue,BUPA Care Homes,Residential Care
Peterborough,http://opendatacommunities.org/id/unitary-authority/peterborough,Peterborough City Council,Adult Services & Communities - Adults,Independent Sector Placements,Services,06/06/2016 00:00,30061669,-2245.68,Revenue,BUPA Care Homes,Residential Care
Peterborough,http://opendatacommunities.org/id/unitary-authority/peterborough,Peterborough City Council,Adult Services & Communities - Adults,Independent Sector Placements,Services,06/06/2016 00:00,30061735,2006.8,Revenue,BUPA Care Homes,Residential Care
Peterborough,http://opendatacommunities.org/id/unitary-authority/peterborough,Peterborough City Council,Adult Services & Communities - Adults,Independent Sector Placements,Services,06/06/2016 00:00,30061737,1610.8,Revenue,BUPA Care Homes,Residential Care
Peterborough,http://opendatacommunities.org/id/unitary-authority/peterborough,Peterborough City Council,Adult Services & Communities - Adults,Independent Sector Placements,Services,06/06/2016 00:00,30061738,-2245.68,Revenue,BUPA Care Homes,Residential Care
Peterborough,http://opendatacommunities.org/id/unitary-authority/peterborough,Peterborough City Council,Adult Services & Communities - Adults,Independent Sector Placements,Services,06/06/2016 00:00,30061739,2203.08,Revenue,BUPA Care Homes,Residential Care
Peterborough,http://opendatacommunities.org/id/unitary-authority/peterborough,Peterborough City Council,Adult Services & Communities - Adults,Independent Sector Placements,Services,06/06/2016 00:00,30061852,2120.92,Revenue,BUPA Care Homes,Residential Care
Peterborough,http://opendatacommunities.org/id/unitary-authority/peterborough,Peterborough City Council,Children's & Safeguarding,Access to Resources & Specialist Commissioning,Services,06/06/2016 00:00,30064038,2834.89,Revenue,IAS TACT,Boarding Out Allowances
Peterborough,http://opendatacommunities.org/id/unitary-authority/peterborough,Peterborough City Council,Westcombe Engineering,Westcombe Engineering,Services,06/06/2016 00:00,30064618,647.22,Revenue,Barron Clark Castings Ltd,Items For Resale
Peterborough,http://opendatacommunities.org/id/unitary-authority/peterborough,Peterborough City Council,Education,Home to School Transport,Contract Hire and Operating Leases,06/06/2016 00:00,30065025,2446.72,Revenue,Shropshire County Council,Hired Transport
Peterborough,http://opendatacommunities.org/id/unitary-authority/peterborough,Peterborough City Council,Adult Services & Communities - Adults,Independent Sector Placements,Services,06/06/2016 00:00,30065394,2203.08,Revenue,BUPA Care Homes,Residential Care
Peterborough,http://opendatacommunities.org/id/unitary-authority/peterborough,Peterborough City Council,Adult Services & Communities - Adults,Independent Sector Placements,Services,06/06/2016 00:00,30065395,2006.8,Revenue,BUPA Care Homes,Residential Care
Peterborough,http://opendatacommunities.org/id/unitary-authority/peterborough,Peterborough City Council,Adult Services & Communities - Adults,Independent Sector Placements,Services,06/06/2016 00:00,30065396,1610.8,Revenue,BUPA Care Homes,Residential Care
Peterborough,http://opendatacommunities.org/id/unitary-authority/peterborough,Peterborough City Council,Adult Services & Communities - Adults,Independent Sector Placements,Services,06/06/2016 00:00,30065397,-1287.7,Revenue,BUPA Care Homes,Residential Care
Peterborough,http://opendatacommunities.org/id/unitary-authority/peterborough,Peterborough City Council,Adult Services & Communities - Adults,Independent Sector Placements,Services,06/06/2016 00:00,30065398,-2120.92,Revenue,BUPA Care Homes,Residential Care
Peterborough,http://opendatacommunities.org/id/unitary-authority/peterborough,Peterborough City Council,Adult Services & Communities - Adults,Independent Sector Placements,Services,06/06/2016 00:00,30065399,2120.92,Revenue,BUPA Care Homes,Residential Care
Peterborough,http://opendatacommunities.org/id/unitary-authority/peterborough,Peterborough City Council,Adult Services & Communities - Adults,Independent Sector Placements,Services,06/06/2016 00:00,30065400,-2120.92,Revenue,BUPA Care Homes,Residential Care
Peterborough,http://opendatacommunities.org/id/unitary-authority/peterborough,Peterborough City Council,Adult Services & Communities - Adults,Independent Sector Placements,Services,06/06/2016 00:00,30065401,-2120.92,Revenue,BUPA Care Homes,Residential Care
Peterborough,http://opendatacommunities.org/id/unitary-authority/peterborough,Peterborough City Council,Adult Services & Communities - Adults,Independent Sector Placements,Services,06/06/2016 00:00,30069188,1610.8,Revenue,BUPA Care Homes,Residential Care
Peterborough,http://opendatacommunities.org/id/unitary-authority/peterborough,Peterborough City Council,Adult Services & Communities - Adults,Independent Sector Placements,Services,06/06/2016 00:00,30069189,2006.8,Revenue,BUPA Care Homes,Residential Care
Peterborough,http://opendatacommunities.org/id/unitary-authority/peterborough,Peterborough City Council,Adult Services & Communities - Adults,Independent Sector Placements,Services,06/06/2016 00:00,30069190,2203.08,Revenue,BUPA Care Homes,Residential Care
Peterborough,http://opendatacommunities.org/id/unitary-authority/peterborough,Peterborough City Council,Children's & Safeguarding,Children's Social Care,Services,06/06/2016 00:00,30070259,856.1,Revenue,Peterborough City Council,Financial Assistance
Peterborough,http://opendatacommunities.org/id/unitary-authority/peterborough,Peterborough City Council,Children's & Safeguarding,Access to Resources & Specialist Commissioning,Services,06/06/2016 00:00,30070576,808,Revenue,Transition Care Peterborough Ltd,Boarding Out Allowances
Peterborough,http://opendatacommunities.org/id/unitary-authority/peterborough,Peterborough City Council,Adult Services & Communities - Adults,Independent Sector Placements,Services,06/06/2016 00:00,30073607,2006.8,Revenue,BUPA Care Homes,Residential Care
Peterborough,http://opendatacommunities.org/id/unitary-authority/peterborough,Peterborough City Council,Adult Services & Communities - Adults,Independent Sector Placements,Services,06/06/2016 00:00,30073608,2203.08,Revenue,BUPA Care Homes,Residential Care
Peterborough,http://opendatacommunities.org/id/unitary-authority/peterborough,Peterborough City Council,Adult Services & Communities - Adults,Independent Sector Placements,Services,06/06/2016 00:00,30073610,1610.8,Revenue,BUPA Care Homes,Residential Care
Peterborough,http://opendatacommunities.org/id/unitary-authority/peterborough,Peterborough City Council,Children's & Safeguarding,Access to Resources & Specialist Commissioning,Services,06/06/2016 00:00,30073779,2184,Revenue,Transition Care Peterborough Ltd,Boarding Out Allowances
Peterborough,http://opendatacommunities.org/id/unitary-authority/peterborough,Peterborough City Council,Children's & Safeguarding,Access to Resources & Specialist Commissioning,Services,06/06/2016 00:00,30073791,790,Revenue,Transition Care Peterborough Ltd,Boarding Out Allowances
Peterborough,http://opendatacommunities.org/id/unitary-authority/peterborough,Peterborough City Council,Children's & Safeguarding,Children's Social Care,Agency Staff,06/06/2016 00:00,30075140,1124.8,Revenue,NonStop Recruitment Ltd,External Temporary Staff
Peterborough,http://opendatacommunities.org/id/unitary-authority/peterborough,Peterborough City Council,Adult Services & Communities - Adults,Independent Sector Placements,Services,06/06/2016 00:00,30075414,1172.44,Revenue,BUPA Care Homes,Residential Care
Peterborough,http://opendatacommunities.org/id/unitary-authority/peterborough,Peterborough City Council,Adult Services & Communities - Adults,Independent Sector Placements,Services,06/06/2016 00:00,30075415,1587.36,Revenue,BUPA Care Homes,Residential Care
Peterborough,http://opendatacommunities.org/id/unitary-authority/peterborough,Peterborough City Council,Adult Services & Communities - Adults,Independent Sector Placements,Services,06/06/2016 00:00,30075416,1821.88,Revenue,BUPA Care Homes,Residential Care
Peterborough,http://opendatacommunities.org/id/unitary-authority/peterborough,Peterborough City Council,Adult Services & Communities - Adults,Independent Sector Placements,Services,06/06/2016 00:00,30075417,1365.08,Revenue,BUPA Care Homes,Residential Care
Peterborough,http://opendatacommunities.org/id/unitary-authority/peterborough,Peterborough City Council,Adult Services & Communities - Adults,Independent Sector Placements,Services,06/06/2016 00:00,30075418,828.8,Revenue,BUPA Care Homes,Residential Care
Peterborough,http://opendatacommunities.org/id/unitary-authority/peterborough,Peterborough City Council,Adult Services & Communities - Adults,Independent Sector Placements,Services,06/06/2016 00:00,30075419,1606.12,Revenue,BUPA Care Homes,Residential Care
Peterborough,http://opendatacommunities.org/id/unitary-authority/peterborough,Peterborough City Council,Adult Services & Communities - Adults,Independent Sector Placements,Services,06/06/2016 00:00,30075420,1131.04,Revenue,BUPA Care Homes,Residential Care
Peterborough,http://opendatacommunities.org/id/unitary-authority/peterborough,Peterborough City Council,Adult Services & Communities - Adults,Independent Sector Placements,Services,06/06/2016 00:00,30075422,1601.04,Revenue,BUPA Care Homes,Residential Care
Peterborough,http://opendatacommunities.org/id/unitary-authority/peterborough,Peterborough City Council,Adult Services & Communities - Adults,Independent Sector Placements,Services,06/06/2016 00:00,30075423,1422.92,Revenue,BUPA Care Homes,Residential Care
Peterborough,http://opendatacommunities.org/id/unitary-authority/peterborough,Peterborough City Council,Adult Services & Communities - Adults,Independent Sector Placements,Services,06/06/2016 00:00,30075463,1542.24,Revenue,BUPA Care Homes,Residential Care
Peterborough,http://opendatacommunities.org/id/unitary-authority/peterborough,Peterborough City Council,Adult Services & Communities - Adults,Independent Sector Placements,Services,06/06/2016 00:00,30075467,2460,Revenue,BUPA Care Homes,Residential Care
Peterborough,http://opendatacommunities.org/id/unitary-authority/peterborough,Peterborough City Council,Adult Services & Communities - Adults,Independent Sector Placements,Services,06/06/2016 00:00,30075469,965.64,Revenue,BUPA Care Homes,Residential Care
Peterborough,http://opendatacommunities.org/id/unitary-authority/peterborough,Peterborough City Council,Adult Services & Communities - Adults,Independent Sector Placements,Services,06/06/2016 00:00,30075473,1230.64,Revenue,BUPA Care Homes,Residential Care
Peterborough,http://opendatacommunities.org/id/unitary-authority/peterborough,Peterborough City Council,Adult Services & Communities - Adults,Independent Sector Placements,Services,06/06/2016 00:00,30075476,1606.12,Revenue,BUPA Care Homes,Residential Care
Peterborough,http://opendatacommunities.org/id/unitary-authority/peterborough,Peterborough City Council,Adult Services & Communities - Adults,Independent Sector Placements,Services,06/06/2016 00:00,30075479,718.72,Revenue,BUPA Care Homes,Residential Care
Peterborough,http://opendatacommunities.org/id/unitary-authority/peterborough,Peterborough City Council,Adult Services & Communities - Adults,Independent Sector Placements,Services,06/06/2016 00:00,30075480,1607.76,Revenue,BUPA Care Homes,Residential Care
Peterborough,http://opendatacommunities.org/id/unitary-authority/peterborough,Peterborough City Council,Adult Services & Communities - Adults,Independent Sector Placements,Services,06/06/2016 00:00,30075482,1680.92,Revenue,BUPA Care Homes,Residential Care
Peterborough,http://opendatacommunities.org/id/unitary-authority/peterborough,Peterborough City Council,Adult Services & Communities - Adults,Independent Sector Placements,Services,06/06/2016 00:00,30075486,3158.2,Revenue,BUPA Care Homes,Residential Care
Peterborough,http://opendatacommunities.org/id/unitary-authority/peterborough,Peterborough City Council,Adult Services & Communities - Adults,Independent Sector Placements,Services,06/06/2016 00:00,30075491,1472.28,Revenue,BUPA Care Homes,Residential Care
Peterborough,http://opendatacommunities.org/id/unitary-authority/peterborough,Peterborough City Council,Adult Services & Communities - Adults,Independent Sector Placements,Services,06/06/2016 00:00,30075492,1277.88,Revenue,BUPA Care Homes,Residential Care
Peterborough,http://opendatacommunities.org/id/unitary-authority/peterborough,Peterborough City Council,Adult Services & Communities - Adults,Independent Sector Placements,Services,06/06/2016 00:00,30075497,759.72,Revenue,BUPA Care Homes,Residential Care
Peterborough,http://opendatacommunities.org/id/unitary-authority/peterborough,Peterborough City Council,Adult Services & Communities - Adults,Independent Sector Placements,Services,06/06/2016 00:00,30075503,1613.8,Revenue,BUPA Care Homes,Residential Care
Peterborough,http://opendatacommunities.org/id/unitary-authority/peterborough,Peterborough City Council,Adult Services & Communities - Adults,Independent Sector Placements,Services,06/06/2016 00:00,30075510,1258.92,Revenue,BUPA Care Homes,Residential Care
Peterborough,http://opendatacommunities.org/id/unitary-authority/peterborough,Peterborough City Council,Adult Services & Communities - Adults,Independent Sector Placements,Services,06/06/2016 00:00,30075523,1461.96,Revenue,BUPA Care Homes,Residential Care
Peterborough,http://opendatacommunities.org/id/unitary-authority/peterborough,Peterborough City Council,Adult Services & Communities - Adults,Independent Sector Placements,Services,06/06/2016 00:00,30075534,867.28,Revenue,BUPA Care Homes,Residential Care
Peterborough,http://opendatacommunities.org/id/unitary-authority/peterborough,Peterborough City Council,Adult Services & Communities - Adults,Independent Sector Placements,Services,06/06/2016 00:00,30075541,1821.88,Revenue,BUPA Care Homes,Residential Care
Peterborough,http://opendatacommunities.org/id/unitary-authority/peterborough,Peterborough City Council,Adult Services & Communities - Adults,Independent Sector Placements,Services,06/06/2016 00:00,30075551,1299.08,Revenue,BUPA Care Homes,Residential Care
Peterborough,http://opendatacommunities.org/id/unitary-authority/peterborough,Peterborough City Council,Adult Services & Communities - Adults,Independent Sector Placements,Services,06/06/2016 00:00,30075553,744.52,Revenue,BUPA Care Homes,Residential Care
Peterborough,http://opendatacommunities.org/id/unitary-authority/peterborough,Peterborough City Council,Adult Services & Communities - Adults,Independent Sector Placements,Services,06/06/2016 00:00,30075558,1047,Revenue,BUPA Care Homes,Residential Care
Peterborough,http://opendatacommunities.org/id/unitary-authority/peterborough,Peterborough City Council,Adult Services & Communities - Adults,Independent Sector Placements,Services,06/06/2016 00:00,30075565,690.36,Revenue,BUPA Care Homes,Residential Care
Peterborough,http://opendatacommunities.org/id/unitary-authority/peterborough,Peterborough City Council,Adult Services & Communities - Adults,Independent Sector Placements,Services,06/06/2016 00:00,30075568,1821.88,Revenue,BUPA Care Homes,Residential Care
Peterborough,http://opendatacommunities.org/id/unitary-authority/peterborough,Peterborough City Council,Adult Services & Communities - Adults,Independent Sector Placements,Services,06/06/2016 00:00,30075605,1623.72,Revenue,BUPA Care Homes,Residential Care
Peterborough,http://opendatacommunities.org/id/unitary-authority/peterborough,Peterborough City Council,Adult Services & Communities - Adults,Independent Sector Placements,Services,06/06/2016 00:00,30075609,1606.12,Revenue,BUPA Care Homes,Residential Care
Peterborough,http://opendatacommunities.org/id/unitary-authority/peterborough,Peterborough City Council,Adult Services & Communities - Adults,Independent Sector Placements,Services,06/06/2016 00:00,30075615,2128.92,Revenue,BUPA Care Homes,Residential Care
Peterborough,http://opendatacommunities.org/id/unitary-authority/peterborough,Peterborough City Council,Adult Services & Communities - Adults,Independent Sector Placements,Services,06/06/2016 00:00,30075624,993.84,Revenue,BUPA Care Homes,Residential Care
Peterborough,http://opendatacommunities.org/id/unitary-authority/peterborough,Peterborough City Council,Adult Services & Communities - Adults,Independent Sector Placements,Services,06/06/2016 00:00,30075626,1545.56,Revenue,BUPA Care Homes,Residential Care
Peterborough,http://opendatacommunities.org/id/unitary-authority/peterborough,Peterborough City Council,Adult Services & Communities - Adults,Independent Sector Placements,Services,06/06/2016 00:00,30075628,2207.72,Revenue,BUPA Care Homes,Residential Care
Peterborough,http://opendatacommunities.org/id/unitary-authority/peterborough,Peterborough City Council,Adult Services & Communities - Adults,Independent Sector Placements,Services,06/06/2016 00:00,30075635,2006.8,Revenue,BUPA Care Homes,Residential Care
Peterborough,http://opendatacommunities.org/id/unitary-authority/peterborough,Peterborough City Council,Adult Services & Communities - Adults,Independent Sector Placements,Services,06/06/2016 00:00,30075641,1610.8,Revenue,BUPA Care Homes,Residential Care
Peterborough,http://opendatacommunities.org/id/unitary-authority/peterborough,Peterborough City Council,Business Management and Commercial Operations,Commissioning,Services,06/06/2016 00:00,30075802,2760,Revenue,Cambridge Clinical Psychology Services Ltd (CCPS LTD),Hired Services
Peterborough,http://opendatacommunities.org/id/unitary-authority/peterborough,Peterborough City Council,Adult Services & Communities - Adults,Independent Sector Placements,Services,06/06/2016 00:00,30075882,1668.6,Revenue,Homecare Solutions,Home Care
Peterborough,http://opendatacommunities.org/id/unitary-authority/peterborough,Peterborough City Council,Adult Services & Communities - Adults,Independent Sector Placements,Services,06/06/2016 00:00,30075904,9514.8,Revenue,Homecare Solutions,Home Care
Peterborough,http://opendatacommunities.org/id/unitary-authority/peterborough,Peterborough City Council,HR,HR,Services,06/06/2016 00:00,30076495,1545,Revenue,Disclosure and Barring Service,Hired Services
Peterborough,http://opendatacommunities.org/id/unitary-authority/peterborough,Peterborough City Council,Corporate,Corporate,Non Revenue,06/06/2016 00:00,30076800,3521.22,Capital,Enterprise Managed Services Limited,Property Services Fees
Peterborough,http://opendatacommunities.org/id/unitary-authority/peterborough,Peterborough City Council,Amey Peterborough & Waste Management,Waste & Operational Svs Mgmt,Services,06/06/2016 00:00,30076807,3650,Revenue,Enterprise Managed Services Limited,Third Party Payments - Contract
Peterborough,http://opendatacommunities.org/id/unitary-authority/peterborough,Peterborough City Council,Adult Services & Communities - Adults,Mental Health,Services,06/06/2016 00:00,30076937,5733.75,Revenue,Norfolk & Suffolk NHS Foundation Trust,Third Party Payments - Contract
Peterborough,http://opendatacommunities.org/id/unitary-authority/peterborough,Peterborough City Council,Children's & Safeguarding,Children's Social Care,Interview & Training Expenses,06/06/2016 00:00,30076992,750,Revenue,Adoptionplus Ltd,Training
Peterborough,http://opendatacommunities.org/id/unitary-authority/peterborough,Peterborough City Council,City Servs & Communications,"Markets, Tourism & Events",Services,06/06/2016 00:00,30077371,1601,Revenue,Ustigate Ltd,Scientific Testing
Peterborough,http://opendatacommunities.org/id/unitary-authority/peterborough,Peterborough City Council,Business Management and Commercial Operations,Clare Lodge,Interview & Training Expenses,06/06/2016 00:00,30077535,650,Revenue,M Caton Associates Ltd,Training
Peterborough,http://opendatacommunities.org/id/unitary-authority/peterborough,Peterborough City Council,Adult Services & Communities - Adults,Independent Sector Placements,Services,06/06/2016 00:00,30077559,4463.2,Revenue,SOCIAL CARE SOLUTIONS LTD,Home Care
Peterborough,http://opendatacommunities.org/id/unitary-authority/peterborough,Peterborough City Council,Adult Services & Communities - Adults,Independent Sector Placements,Services,06/06/2016 00:00,30077560,7509.6,Revenue,SOCIAL CARE SOLUTIONS LTD,Home Care
Peterborough,http://opendatacommunities.org/id/unitary-authority/peterborough,Peterborough City Council,Adult Services & Communities - Adults,Independent Sector Placements,Services,06/06/2016 00:00,30077562,3903.2,Revenue,SOCIAL CARE SOLUTIONS LTD,Home Care
Peterborough,http://opendatacommunities.org/id/unitary-authority/peterborough,Peterborough City Council,Adult Services & Communities - Adults,Independent Sector Placements,Services,06/06/2016 00:00,30077563,3740.12,Revenue,SOCIAL CARE SOLUTIONS LTD,Home Care
Peterborough,http://opendatacommunities.org/id/unitary-authority/peterborough,Peterborough City Council,Adult Services & Communities - Adults,Independent Sector Placements,Services,06/06/2016 00:00,30077564,998.7,Revenue,SOCIAL CARE SOLUTIONS LTD,Home Care
Peterborough,http://opendatacommunities.org/id/unitary-authority/peterborough,Peterborough City Council,Adult Services & Communities - Adults,Independent Sector Placements,Services,06/06/2016 00:00,30077565,3223.2,Revenue,SOCIAL CARE SOLUTIONS LTD,Home Care
Peterborough,http://opendatacommunities.org/id/unitary-authority/peterborough,Peterborough City Council,Adult Services & Communities - Adults,Independent Sector Placements,Services,06/06/2016 00:00,30077566,7929.6,Revenue,SOCIAL CARE SOLUTIONS LTD,Home Care
Peterborough,http://opendatacommunities.org/id/unitary-authority/peterborough,Peterborough City Council,Adult Services & Communities - Adults,Independent Sector Placements,Services,06/06/2016 00:00,30077567,3211.2,Revenue,SOCIAL CARE SOLUTIONS LTD,Home Care
Peterborough,http://opendatacommunities.org/id/unitary-authority/peterborough,Peterborough City Council,Adult Services & Communities - Adults,Independent Sector Placements,Services,06/06/2016 00:00,30077568,3223.2,Revenue,SOCIAL CARE SOLUTIONS LTD,Home Care
Peterborough,http://opendatacommunities.org/id/unitary-authority/peterborough,Peterborough City Council,Adult Services & Communities - Adults,Independent Sector Placements,Services,06/06/2016 00:00,30077571,2983.2,Revenue,SOCIAL CARE SOLUTIONS LTD,Home Care
Peterborough,http://opendatacommunities.org/id/unitary-authority/peterborough,Peterborough City Council,Children's & Safeguarding,Children's Social Care,Services,06/06/2016 00:00,30077626,2048,Revenue,Redacted Personal Data,Purchased Social Care Services
Peterborough,http://opendatacommunities.org/id/unitary-authority/peterborough,Peterborough City Council,Business Management and Commercial Operations,Commissioning,Services,06/06/2016 00:00,30077649,4025,Revenue,Emma Devonport FP,Hired Services
Peterborough,http://opendatacommunities.org/id/unitary-authority/peterborough,Peterborough City Council,Children's & Safeguarding,Access to Resources & Specialist Commissioning,Services,06/06/2016 00:00,30077653,6195.35,Revenue,Fostering People Ltd,Boarding Out Allowances
Peterborough,http://opendatacommunities.org/id/unitary-authority/peterborough,Peterborough City Council,Business Management and Commercial Operations,Clare Lodge,Agency Staff,06/06/2016 00:00,30077654,1376,Revenue,Wrixon Care Services,External Temporary Staff
Peterborough,http://opendatacommunities.org/id/unitary-authority/peterborough,Peterborough City Council,Children's & Safeguarding,Access to Resources & Specialist Commissioning,Services,06/06/2016 00:00,30077655,5995.5,Revenue,Fostering People Ltd,Boarding Out Allowances
Peterborough,http://opendatacommunities.org/id/unitary-authority/peterborough,Peterborough City Council,Business Management and Commercial Operations,Commissioning,Services,06/06/2016 00:00,30077657,1525.75,Revenue,Wrixon Care Services,Hired Services
Peterborough,http://opendatacommunities.org/id/unitary-authority/peterborough,Peterborough City Council,Business Management and Commercial Operations,Clare Lodge,Agency Staff,06/06/2016 00:00,30077658,512,Revenue,Wrixon Care Services,External Temporary Staff
Peterborough,http://opendatacommunities.org/id/unitary-authority/peterborough,Peterborough City Council,Corporate,Corporate,Non Revenue,06/06/2016 00:00,30077673,2375,Capital,Number 10 Interim Ltd,Consultants Fees
Peterborough,http://opendatacommunities.org/id/unitary-authority/peterborough,Peterborough City Council,City Servs & Communications,"Markets, Tourism & Events",Services,06/06/2016 00:00,30077713,925,Revenue,Shaws Coaches,Contractors
Peterborough,http://opendatacommunities.org/id/unitary-authority/peterborough,Peterborough City Council,Business Management and Commercial Operations,Commissioning,Services,06/06/2016 00:00,30077716,877.5,Revenue,Rise & Shine Day Nursery,Grant Payment
Peterborough,http://opendatacommunities.org/id/unitary-authority/peterborough,Peterborough City Council,Vivacity/Cultural Services,Cultural Services,Services,06/06/2016 00:00,30077744,11500,Revenue,Britten Sinfonia Ltd,Hired Services
Peterborough,http://opendatacommunities.org/id/unitary-authority/peterborough,Peterborough City Council,Business Management and Commercial Operations,Commissioning,Services,06/06/2016 00:00,30077758,819,Revenue,Stars Pre-School Dogsthorpe,Grant Payment
Peterborough,http://opendatacommunities.org/id/unitary-authority/peterborough,Peterborough City Council,Amey Peterborough & Waste Management,Waste Management,Services,06/06/2016 00:00,30077852,452535.15,Revenue,Viridor Peterborough Ltd,Waste Disposal
Peterborough,http://opendatacommunities.org/id/unitary-authority/peterborough,Peterborough City Council,Energy,Environment Capital,Services,06/06/2016 00:00,30077899,2000,Revenue,APSE South and South West,Professional Membership
Peterborough,http://opendatacommunities.org/id/unitary-authority/peterborough,Peterborough City Council,Business Management and Commercial Operations,Early Years & Quality Improvement,Services,06/06/2016 00:00,30077916,9139.1,Revenue,Family Action,Grant Payment
Peterborough,http://opendatacommunities.org/id/unitary-authority/peterborough,Peterborough City Council,Adults and Communities - Communities,Housing and Health,Services,06/06/2016 00:00,30077938,507.5,Revenue,Eastfield Guesthouse,Homelessness Bed & Breakfast Costs
Peterborough,http://opendatacommunities.org/id/unitary-authority/peterborough,Peterborough City Council,Business Management and Commercial Operations,Business Management and Commercial Operations,Services,06/06/2016 00:00,30077994,1778.85,Revenue,CAS Care Consultancy Ltd,Consultants Fees
Peterborough,http://opendatacommunities.org/id/unitary-authority/peterborough,Peterborough City Council,Business Management and Commercial Operations,Business Management and Commercial Operations,Services,06/06/2016 00:00,30077995,1668,Revenue,CAS Care Consultancy Ltd,Consultants Fees
Peterborough,http://opendatacommunities.org/id/unitary-authority/peterborough,Peterborough City Council,Business Management and Commercial Operations,Business Management and Commercial Operations,Services,06/06/2016 00:00,30077996,2102,Revenue,CAS Care Consultancy Ltd,Consultants Fees
Peterborough,http://opendatacommunities.org/id/unitary-authority/peterborough,Peterborough City Council,Children's & Safeguarding,Access to Resources & Specialist Commissioning,Services,06/06/2016 00:00,30078001,5637.97,Revenue,I S P,Boarding Out Allowances
Peterborough,http://opendatacommunities.org/id/unitary-authority/peterborough,Peterborough City Council,Adult Services & Communities - Adults,Finance,Agency Staff,06/06/2016 00:00,30078003,3325,Revenue,Willowmead Consultants Ltd,External Temporary Staff
Peterborough,http://opendatacommunities.org/id/unitary-authority/peterborough,Peterborough City Council,Adult Services & Communities - Adults,Finance,Agency Staff,06/06/2016 00:00,30078004,3325,Revenue,Willowmead Consultants Ltd,External Temporary Staff
Peterborough,http://opendatacommunities.org/id/unitary-authority/peterborough,Peterborough City Council,City Servs & Communications,"Markets, Tourism & Events",Services,06/06/2016 00:00,30078009,1268,Revenue,Ustigate Ltd,Equipment Maintenance
Peterborough,http://opendatacommunities.org/id/unitary-authority/peterborough,Peterborough City Council,Adult Services & Communities - Adults,Day Opportunities / In House,Agency Staff,06/06/2016 00:00,30078020,710.4,Revenue,Medicare First,External Temporary Staff
